﻿Department Family,Entity,Date,Expense Type,Expense Area,Supplier,Transaction Number,Amount,Item Description
BEIS,UKRI - AHRC,01/03/2022,Fees (Including College Members),Operations,Unspecified,99322393,170.00,Fees (Including College Members)
BEIS,UKRI - AHRC,02/03/2022,Research Grant Expenditure,HERA JRP Project,Irish Research Council,99321633,102817.25,Research Grant Expenditure
BEIS,UKRI - AHRC,03/03/2022,Research Grant Expenditure,Public Engagement,University of London,99318667,5000.00,Research Grant Expenditure
BEIS,UKRI - AHRC,03/03/2022,Research Grant Expenditure,Public Engagement,University of London,99319271,15000.00,Research Grant Expenditure
BEIS,UKRI - AHRC,03/03/2022,Staff Training,AI&Design,QA Ltd,99323184,2929.50,Staff Training
BEIS,UKRI - AHRC,03/03/2022,Unspecified,Public Engagement,Inside Edge Media Training Ltd,99323618,2040.00,Legal & Professional Services
BEIS,UKRI - AHRC,03/03/2022,Unspecified,Public Engagement,Giggabox Ltd,99325807,4999.80,Legal & Professional Services
BEIS,UKRI - AHRC,03/03/2022,Unspecified,Public Engagement,Giggabox Ltd,99325808,597.00,Legal & Professional Services
BEIS,UKRI - AHRC,03/03/2022,Fees (Including College Members),Executive Office,Unspecified,99325950,500.00,Fees (Including College Members)
BEIS,UKRI - AHRC,03/03/2022,Fees (Including College Members),Executive Office,Unspecified,99325951,170.00,Fees (Including College Members)
BEIS,UKRI - AHRC,03/03/2022,Fees (Including College Members),Executive Office,Unspecified,99325952,170.00,Fees (Including College Members)
BEIS,UKRI - AHRC,03/03/2022,Unspecified,Public Engagement,Ultra Social Ltd,99326650,3000.00,Legal & Professional Services
BEIS,UKRI - AHRC,04/03/2022,Unspecified,AI&Design,Design Council,99305722,26976.00,Legal & Professional Services
BEIS,UKRI - AHRC,04/03/2022,Research Grant Expenditure,Artificial Intelligence,The Nuffield Foundation,99310459,26000.00,Research Grant Expenditure
BEIS,UKRI - AHRC,04/03/2022,T&S UK - Mileage,Operations,Unspecified,99327864,99.00,T&S UK - Mileage
BEIS,UKRI - AHRC,07/03/2022,Fees (Including College Members),Operations,Unspecified,99331428,170.00,Fees (Including College Members)
BEIS,UKRI - AHRC,07/03/2022,Fees (Including College Members),Operations,Unspecified,99331429,170.00,Fees (Including College Members)
BEIS,UKRI - AHRC,08/03/2022,Research Grant Expenditure,Public Engagement,United Agents LLP,99313469,200.00,Research Grant Expenditure
BEIS,UKRI - AHRC,08/03/2022,Research Grant Expenditure,Artificial Intelligence,THE DESIGN MUSEUM,99333959,333336.00,Research Grant Expenditure
BEIS,UKRI - AHRC,09/03/2022,Research Grant Expenditure,Intergenerational Justice,Historic Buildings and Monuments Commission for England T/A Historic England,99335531,63099.72,Research Grant Expenditure
BEIS,UKRI - AHRC,09/03/2022,Research Grant Expenditure,Towards a National Collection (SPF),Historic Buildings and Monuments Commission for England T/A Historic England,99335577,239579.87,Research Grant Expenditure
BEIS,UKRI - AHRC,09/03/2022,Non-staff travel and subsistance,Operations,Corporate Travel Management (North) Ltd,99336103,1.60,Non-staff travel and subsistance
BEIS,UKRI - AHRC,09/03/2022,Non-staff travel and subsistance,Operations,Corporate Travel Management (North) Ltd,99336103,46.88,Non-staff travel and subsistance
BEIS,UKRI - AHRC,09/03/2022,Non-staff travel and subsistance,Operations,Corporate Travel Management (North) Ltd,99336103,80.00,Non-staff travel and subsistance
BEIS,UKRI - AHRC,09/03/2022,Non-staff travel and subsistance,Operations,Corporate Travel Management (North) Ltd,99336103,0.32,Non-staff travel and subsistance
BEIS,UKRI - AHRC,09/03/2022,T&S Overseas - Public Transport,Infrastructure Fund - CoSTAR,Corporate Travel Management (North) Ltd,99336103,0.25,T&S Overseas - Public Transport
BEIS,UKRI - AHRC,09/03/2022,T&S Overseas - Public Transport,Infrastructure Fund - CoSTAR,Corporate Travel Management (North) Ltd,99336103,85.80,T&S Overseas - Public Transport
BEIS,UKRI - AHRC,09/03/2022,T&S UK - Accommodation,Infrastructure Fund - CoSTAR,Corporate Travel Management (North) Ltd,99336103,0.80,T&S UK - Accommodation
BEIS,UKRI - AHRC,09/03/2022,T&S UK - Accommodation,Infrastructure Fund - CoSTAR,Corporate Travel Management (North) Ltd,99336103,110.00,T&S UK - Accommodation
BEIS,UKRI - AHRC,09/03/2022,T&S UK - Accommodation,Infrastructure Fund - CoSTAR,Corporate Travel Management (North) Ltd,99336103,0.80,T&S UK - Accommodation
BEIS,UKRI - AHRC,09/03/2022,T&S UK - Accommodation,Infrastructure Fund - CoSTAR,Corporate Travel Management (North) Ltd,99336103,110.00,T&S UK - Accommodation
BEIS,UKRI - AHRC,09/03/2022,T&S UK - Accommodation,Infrastructure Fund - CoSTAR,Corporate Travel Management (North) Ltd,99336103,0.32,T&S UK - Accommodation
BEIS,UKRI - AHRC,09/03/2022,T&S UK - Accommodation,Infrastruture Roadmap,Corporate Travel Management (North) Ltd,99336103,0.80,T&S UK - Accommodation
BEIS,UKRI - AHRC,09/03/2022,T&S UK - Accommodation,Infrastruture Roadmap,Corporate Travel Management (North) Ltd,99336103,90.00,T&S UK - Accommodation
BEIS,UKRI - AHRC,09/03/2022,T&S UK - Accommodation,Infrastruture Roadmap,Corporate Travel Management (North) Ltd,99336103,0.16,T&S UK - Accommodation
BEIS,UKRI - AHRC,09/03/2022,T&S UK - Flights,Operations,Corporate Travel Management (North) Ltd,99336103,2.50,T&S UK - Flights
BEIS,UKRI - AHRC,09/03/2022,T&S UK - Flights,Operations,Corporate Travel Management (North) Ltd,99336103,209.89,T&S UK - Flights
BEIS,UKRI - AHRC,09/03/2022,T&S UK - Flights,SMT,Corporate Travel Management (North) Ltd,99336103,4.50,T&S UK - Flights
BEIS,UKRI - AHRC,09/03/2022,T&S UK - Flights,SMT,Corporate Travel Management (North) Ltd,99336103,70.98,T&S UK - Flights
BEIS,UKRI - AHRC,09/03/2022,T&S UK - Public Transport,AHRC - Creative Industries,Corporate Travel Management (North) Ltd,99336103,10.00,T&S UK - Public Transport
BEIS,UKRI - AHRC,09/03/2022,T&S UK - Public Transport,AHRC - Creative Industries,Corporate Travel Management (North) Ltd,99336103,-183.80,T&S UK - Public Transport
BEIS,UKRI - AHRC,09/03/2022,T&S UK - Public Transport,AI&Design,Corporate Travel Management (North) Ltd,99336103,0.25,T&S UK - Public Transport
BEIS,UKRI - AHRC,09/03/2022,T&S UK - Public Transport,AI&Design,Corporate Travel Management (North) Ltd,99336103,103.90,T&S UK - Public Transport
BEIS,UKRI - AHRC,09/03/2022,T&S UK - Public Transport,AI&Design,Corporate Travel Management (North) Ltd,99336103,0.25,T&S UK - Public Transport
BEIS,UKRI - AHRC,09/03/2022,T&S UK - Public Transport,AI&Design,Corporate Travel Management (North) Ltd,99336103,100.70,T&S UK - Public Transport
BEIS,UKRI - AHRC,09/03/2022,T&S UK - Public Transport,Executive Office,Corporate Travel Management (North) Ltd,99336103,0.25,T&S UK - Public Transport
BEIS,UKRI - AHRC,09/03/2022,T&S UK - Public Transport,Executive Office,Corporate Travel Management (North) Ltd,99336103,102.20,T&S UK - Public Transport
BEIS,UKRI - AHRC,09/03/2022,T&S UK - Public Transport,Health and Environmental Humanities,Corporate Travel Management (North) Ltd,99336103,0.25,T&S UK - Public Transport
BEIS,UKRI - AHRC,09/03/2022,T&S UK - Public Transport,Health and Environmental Humanities,Corporate Travel Management (North) Ltd,99336103,193.90,T&S UK - Public Transport
BEIS,UKRI - AHRC,09/03/2022,T&S UK - Public Transport,ISCF Creative Clusters,Corporate Travel Management (North) Ltd,99336103,0.25,T&S UK - Public Transport
BEIS,UKRI - AHRC,09/03/2022,T&S UK - Public Transport,ISCF Creative Clusters,Corporate Travel Management (North) Ltd,99336103,161.40,T&S UK - Public Transport
BEIS,UKRI - AHRC,09/03/2022,T&S UK - Public Transport,Industrial Strategy Challenge Fund (ISCF) - Creative Clusters,Corporate Travel Management (North) Ltd,99336103,0.25,T&S UK - Public Transport
BEIS,UKRI - AHRC,09/03/2022,T&S UK - Public Transport,Industrial Strategy Challenge Fund (ISCF) - Creative Clusters,Corporate Travel Management (North) Ltd,99336103,68.70,T&S UK - Public Transport
BEIS,UKRI - AHRC,09/03/2022,T&S UK - Public Transport,Industrial Strategy Challenge Fund (ISCF) - Creative Clusters,Corporate Travel Management (North) Ltd,99336103,0.25,T&S UK - Public Transport
BEIS,UKRI - AHRC,09/03/2022,T&S UK - Public Transport,Industrial Strategy Challenge Fund (ISCF) - Creative Clusters,Corporate Travel Management (North) Ltd,99336103,114.40,T&S UK - Public Transport
BEIS,UKRI - AHRC,09/03/2022,T&S UK - Public Transport,Industrial Strategy Challenge Fund (ISCF) - Creative Clusters,Corporate Travel Management (North) Ltd,99336103,0.12,T&S UK - Public Transport
BEIS,UKRI - AHRC,09/03/2022,T&S UK - Public Transport,Industrial Strategy Challenge Fund (ISCF) - Creative Clusters,Corporate Travel Management (North) Ltd,99336103,145.60,T&S UK - Public Transport
BEIS,UKRI - AHRC,09/03/2022,T&S UK - Public Transport,Industrial Strategy Challenge Fund (ISCF) - Creative Clusters,Corporate Travel Management (North) Ltd,99336103,0.25,T&S UK - Public Transport
BEIS,UKRI - AHRC,09/03/2022,T&S UK - Public Transport,Industrial Strategy Challenge Fund (ISCF) - Creative Clusters,Corporate Travel Management (North) Ltd,99336103,161.40,T&S UK - Public Transport
BEIS,UKRI - AHRC,09/03/2022,T&S UK - Public Transport,Industrial Strategy Challenge Fund (ISCF) - Creative Clusters,Corporate Travel Management (North) Ltd,99336103,0.13,T&S UK - Public Transport
BEIS,UKRI - AHRC,09/03/2022,T&S UK - Public Transport,Industrial Strategy Challenge Fund (ISCF) - Creative Clusters,Corporate Travel Management (North) Ltd,99336103,145.60,T&S UK - Public Transport
BEIS,UKRI - AHRC,09/03/2022,T&S UK - Public Transport,Infrastructure Fund - CoSTAR,Corporate Travel Management (North) Ltd,99336103,0.25,T&S UK - Public Transport
BEIS,UKRI - AHRC,09/03/2022,T&S UK - Public Transport,Infrastructure Fund - CoSTAR,Corporate Travel Management (North) Ltd,99336103,41.40,T&S UK - Public Transport
BEIS,UKRI - AHRC,09/03/2022,T&S UK - Public Transport,Infrastruture Roadmap,Corporate Travel Management (North) Ltd,99336103,0.25,T&S UK - Public Transport
BEIS,UKRI - AHRC,09/03/2022,T&S UK - Public Transport,Infrastruture Roadmap,Corporate Travel Management (North) Ltd,99336103,63.30,T&S UK - Public Transport
BEIS,UKRI - AHRC,09/03/2022,T&S UK - Public Transport,Infrastruture Roadmap,Corporate Travel Management (North) Ltd,99336103,0.25,T&S UK - Public Transport
BEIS,UKRI - AHRC,09/03/2022,T&S UK - Public Transport,Infrastruture Roadmap,Corporate Travel Management (North) Ltd,99336103,25.20,T&S UK - Public Transport
BEIS,UKRI - AHRC,09/03/2022,T&S UK - Public Transport,Infrastruture Roadmap,Corporate Travel Management (North) Ltd,99336103,0.25,T&S UK - Public Transport
BEIS,UKRI - AHRC,09/03/2022,T&S UK - Public Transport,Infrastruture Roadmap,Corporate Travel Management (North) Ltd,99336103,22.20,T&S UK - Public Transport
BEIS,UKRI - AHRC,09/03/2022,T&S UK - Public Transport,Operations,Corporate Travel Management (North) Ltd,99336103,0.25,T&S UK - Public Transport
BEIS,UKRI - AHRC,09/03/2022,T&S UK - Public Transport,Operations,Corporate Travel Management (North) Ltd,99336103,61.70,T&S UK - Public Transport
BEIS,UKRI - AHRC,09/03/2022,T&S UK - Public Transport,Operations,Corporate Travel Management (North) Ltd,99336103,0.25,T&S UK - Public Transport
BEIS,UKRI - AHRC,09/03/2022,T&S UK - Public Transport,Operations,Corporate Travel Management (North) Ltd,99336103,36.70,T&S UK - Public Transport
BEIS,UKRI - AHRC,09/03/2022,T&S UK - Public Transport,Operations,Corporate Travel Management (North) Ltd,99336103,0.25,T&S UK - Public Transport
BEIS,UKRI - AHRC,09/03/2022,T&S UK - Public Transport,Operations,Corporate Travel Management (North) Ltd,99336103,215.50,T&S UK - Public Transport
BEIS,UKRI - AHRC,09/03/2022,T&S UK - Public Transport,Operations,Corporate Travel Management (North) Ltd,99336103,0.25,T&S UK - Public Transport
BEIS,UKRI - AHRC,09/03/2022,T&S UK - Public Transport,Operations,Corporate Travel Management (North) Ltd,99336103,50.30,T&S UK - Public Transport
BEIS,UKRI - AHRC,09/03/2022,T&S UK - Public Transport,Operations,Corporate Travel Management (North) Ltd,99336103,0.25,T&S UK - Public Transport
BEIS,UKRI - AHRC,09/03/2022,T&S UK - Public Transport,Operations,Corporate Travel Management (North) Ltd,99336103,50.30,T&S UK - Public Transport
BEIS,UKRI - AHRC,09/03/2022,T&S UK - Public Transport,Operations,Corporate Travel Management (North) Ltd,99336103,0.25,T&S UK - Public Transport
BEIS,UKRI - AHRC,09/03/2022,T&S UK - Public Transport,Operations,Corporate Travel Management (North) Ltd,99336103,50.30,T&S UK - Public Transport
BEIS,UKRI - AHRC,09/03/2022,T&S UK - Public Transport,Operations,Corporate Travel Management (North) Ltd,99336103,0.25,T&S UK - Public Transport
BEIS,UKRI - AHRC,09/03/2022,T&S UK - Public Transport,Operations,Corporate Travel Management (North) Ltd,99336103,65.60,T&S UK - Public Transport
BEIS,UKRI - AHRC,09/03/2022,T&S UK - Public Transport,Operations,Corporate Travel Management (North) Ltd,99336103,0.25,T&S UK - Public Transport
BEIS,UKRI - AHRC,09/03/2022,T&S UK - Public Transport,Operations,Corporate Travel Management (North) Ltd,99336103,29.30,T&S UK - Public Transport
BEIS,UKRI - AHRC,09/03/2022,T&S UK - Public Transport,SMT,Corporate Travel Management (North) Ltd,99336103,0.25,T&S UK - Public Transport
BEIS,UKRI - AHRC,09/03/2022,T&S UK - Public Transport,SMT,Corporate Travel Management (North) Ltd,99336103,25.20,T&S UK - Public Transport
BEIS,UKRI - AHRC,09/03/2022,T&S UK - Public Transport,SMT,Corporate Travel Management (North) Ltd,99336103,0.25,T&S UK - Public Transport
BEIS,UKRI - AHRC,09/03/2022,T&S UK - Public Transport,SMT,Corporate Travel Management (North) Ltd,99336103,50.40,T&S UK - Public Transport
BEIS,UKRI - AHRC,09/03/2022,T&S UK - Public Transport,SMT,Corporate Travel Management (North) Ltd,99336103,0.25,T&S UK - Public Transport
BEIS,UKRI - AHRC,09/03/2022,T&S UK - Public Transport,SMT,Corporate Travel Management (North) Ltd,99336103,33.30,T&S UK - Public Transport
BEIS,UKRI - AHRC,09/03/2022,T&S UK - Public Transport,SMT,Corporate Travel Management (North) Ltd,99336103,0.25,T&S UK - Public Transport
BEIS,UKRI - AHRC,09/03/2022,T&S UK - Public Transport,SMT,Corporate Travel Management (North) Ltd,99336103,23.50,T&S UK - Public Transport
BEIS,UKRI - AHRC,09/03/2022,T&S UK - Public Transport,SMT,Corporate Travel Management (North) Ltd,99336103,0.25,T&S UK - Public Transport
BEIS,UKRI - AHRC,09/03/2022,T&S UK - Public Transport,SMT,Corporate Travel Management (North) Ltd,99336103,83.20,T&S UK - Public Transport
BEIS,UKRI - AHRC,09/03/2022,T&S UK - Public Transport,SMT,Corporate Travel Management (North) Ltd,99336103,0.25,T&S UK - Public Transport
BEIS,UKRI - AHRC,09/03/2022,T&S UK - Public Transport,SMT,Corporate Travel Management (North) Ltd,99336103,179.40,T&S UK - Public Transport
BEIS,UKRI - AHRC,09/03/2022,T&S UK - Public Transport,SMT,Corporate Travel Management (North) Ltd,99336103,0.25,T&S UK - Public Transport
BEIS,UKRI - AHRC,09/03/2022,T&S UK - Public Transport,SMT,Corporate Travel Management (North) Ltd,99336103,83.20,T&S UK - Public Transport
BEIS,UKRI - AHRC,09/03/2022,T&S UK - Public Transport,SMT,Corporate Travel Management (North) Ltd,99336103,0.25,T&S UK - Public Transport
BEIS,UKRI - AHRC,09/03/2022,T&S UK - Public Transport,SMT,Corporate Travel Management (North) Ltd,99336103,62.80,T&S UK - Public Transport
BEIS,UKRI - AHRC,09/03/2022,T&S UK - Public Transport,SMT,Corporate Travel Management (North) Ltd,99336103,0.25,T&S UK - Public Transport
BEIS,UKRI - AHRC,09/03/2022,T&S UK - Public Transport,SMT,Corporate Travel Management (North) Ltd,99336103,46.00,T&S UK - Public Transport
BEIS,UKRI - AHRC,09/03/2022,T&S UK - Public Transport,SMT,Corporate Travel Management (North) Ltd,99336103,0.25,T&S UK - Public Transport
BEIS,UKRI - AHRC,09/03/2022,T&S UK - Public Transport,SMT,Corporate Travel Management (North) Ltd,99336103,25.20,T&S UK - Public Transport
BEIS,UKRI - AHRC,09/03/2022,T&S UK - Public Transport,SMT,Corporate Travel Management (North) Ltd,99336103,0.25,T&S UK - Public Transport
BEIS,UKRI - AHRC,09/03/2022,T&S UK - Public Transport,SMT,Corporate Travel Management (North) Ltd,99336103,49.00,T&S UK - Public Transport
BEIS,UKRI - AHRC,09/03/2022,T&S UK - Public Transport,SMT,Corporate Travel Management (North) Ltd,99336103,0.25,T&S UK - Public Transport
BEIS,UKRI - AHRC,09/03/2022,T&S UK - Public Transport,SMT,Corporate Travel Management (North) Ltd,99336103,25.20,T&S UK - Public Transport
BEIS,UKRI - AHRC,09/03/2022,T&S UK - Public Transport,Secretariat,Corporate Travel Management (North) Ltd,99336103,0.25,T&S UK - Public Transport
BEIS,UKRI - AHRC,09/03/2022,T&S UK - Public Transport,Secretariat,Corporate Travel Management (North) Ltd,99336103,97.40,T&S UK - Public Transport
BEIS,UKRI - AHRC,10/03/2022,Research Consumables,AI&Design,Unspecified,99334644,9000.00,Research Consumables
BEIS,UKRI - AHRC,10/03/2022,Fees (Including College Members),Operations,Unspecified,99336337,170.00,Fees (Including College Members)
BEIS,UKRI - AHRC,10/03/2022,Health & Safety (inc. Medicals & Opticians),Health and Environmental Humanities,Unspecified,99338553,100.00,Health & Safety (inc. Medicals & Opticians)
BEIS,UKRI - AHRC,11/03/2022,Fees (Including College Members),Executive Office,Unspecified,99337884,500.00,Fees (Including College Members)
BEIS,UKRI - AHRC,14/03/2022,Unspecified,Skills Strategy,Careers Research and Advisory Centre (CRAC Ltd),99330691,40752.00,Legal & Professional Services
BEIS,UKRI - AHRC,14/03/2022,Unspecified,Balance Sheet,HM Revenue & Customs,99336108,60145.63,NI Payable Salaries
BEIS,UKRI - AHRC,14/03/2022,Unspecified,Balance Sheet,HM Revenue & Customs,99336109,45011.49,PAYE Payable Salaries
BEIS,UKRI - AHRC,14/03/2022,Unspecified,Balance Sheet,HM Revenue & Customs,99336110,4917.00,Student Loans
BEIS,UKRI - AHRC,14/03/2022,Unspecified,Corporate Services,HM Revenue & Customs,99336111,1598.00,Apprenticeship Levy
BEIS,UKRI - AHRC,14/03/2022,Unspecified,Infrastruture Roadmap,Alexander Mann Solutions Ltd,99340473,2772.24,Legal & Professional Services
BEIS,UKRI - AHRC,14/03/2022,T&S UK - Public Transport,Industrial Strategy Challenge Fund (ISCF) - Creative Clusters,Unspecified,99341545,28.20,T&S UK - Public Transport
BEIS,UKRI - AHRC,14/03/2022,T&S UK - Public Transport,Strategy and Evidence,Unspecified,99341545,13.00,T&S UK - Public Transport
BEIS,UKRI - AHRC,14/03/2022,T&S UK - Subsistence,Strategy and Evidence,Unspecified,99341545,7.80,T&S UK - Subsistence
BEIS,UKRI - AHRC,15/03/2022,Voluntary Deductions,Balance Sheet,Swindon Office Sports and Social Club,99336112,24.00,Voluntary Deductions
BEIS,UKRI - AHRC,15/03/2022,Union Deductions,Balance Sheet,PCS Union,99336113,58.67,Union Deductions
BEIS,UKRI - AHRC,15/03/2022,Unspecified,Balance Sheet,Unspecified,99336114,19008.52,Ees Pension Deductions - JSS
BEIS,UKRI - AHRC,15/03/2022,Unspecified,Balance Sheet,Unspecified,99336115,81702.94,Ers Pension Deductions - JSS
BEIS,UKRI - AHRC,15/03/2022,Unspecified,Balance Sheet,Scottish Widows,99336116,193.37,Partnership Pension Deductions
BEIS,UKRI - AHRC,15/03/2022,Unspecified,Balance Sheet,Cabinet Office RM Shared Services,99336117,9852.80,Ees Pension Deductions - MyCSP
BEIS,UKRI - AHRC,15/03/2022,Unspecified,Balance Sheet,Cabinet Office RM Shared Services,99336118,47814.06,Ers Pension Deductions - MyCSP
BEIS,UKRI - AHRC,15/03/2022,Unspecified,Balance Sheet,Unspecified,99336119,207.09,Ees Pension Deductions - MRC
BEIS,UKRI - AHRC,15/03/2022,Unspecified,Balance Sheet,Unspecified,99336120,509.76,Ers Pension Deductions - MRC
BEIS,UKRI - AHRC,15/03/2022,Nursery Deductions,Balance Sheet,UKRI - Engineering & Physical Sciences Research Council,99336121,1013.00,Nursery Deductions
BEIS,UKRI - AHRC,15/03/2022,Fees (Including College Members),Infrastruture Roadmap,Unspecified,99340959,170.00,Fees (Including College Members)
BEIS,UKRI - AHRC,15/03/2022,Unspecified,Infrastruture Roadmap,Falmouth University,99341867,37828.42,Secondments
BEIS,UKRI - AHRC,16/03/2022,Research Grant Expenditure,DEDEFI Capital Grants,University of Leicester,99334431,8000.55,Research Grant Expenditure
BEIS,UKRI - AHRC,16/03/2022,Research Grant Expenditure,DEDEFI Capital Grants,Birkbeck College,99334432,19030.56,Research Grant Expenditure
BEIS,UKRI - AHRC,16/03/2022,Research Grant Expenditure,International Other,The British Library,99334433,40175.98,Research Grant Expenditure
BEIS,UKRI - AHRC,16/03/2022,Research Grant Expenditure,DEDEFI Capital Grants,University of East Anglia,99334434,14750.81,Research Grant Expenditure
BEIS,UKRI - AHRC,16/03/2022,Research Grant Expenditure,DEDEFI Capital Grants,University of Durham,99334435,9418.93,Research Grant Expenditure
BEIS,UKRI - AHRC,16/03/2022,Research Grant Expenditure,DEDEFI Capital Grants,Historic Environment Scotland (GRANT),99334436,15317.40,Research Grant Expenditure
BEIS,UKRI - AHRC,16/03/2022,Research Grant Expenditure,DEDEFI Capital Grants,University of Kent,99334437,20086.50,Research Grant Expenditure
BEIS,UKRI - AHRC,16/03/2022,Research Grant Expenditure,DEDEFI Capital Grants,University of Dundee,99334438,15058.59,Research Grant Expenditure
BEIS,UKRI - AHRC,16/03/2022,Research Grant Expenditure,International Other,Birmingham City University,99334439,40381.57,Research Grant Expenditure
BEIS,UKRI - AHRC,16/03/2022,Research Grant Expenditure,International Other,"SOAS, University of London",99334440,40322.32,Research Grant Expenditure
BEIS,UKRI - AHRC,16/03/2022,Research Grant Expenditure,International Other,De Montfort University,99334441,34342.93,Research Grant Expenditure
BEIS,UKRI - AHRC,16/03/2022,Research Grant Expenditure,International Other,Loughborough University,99334442,85268.08,Research Grant Expenditure
BEIS,UKRI - AHRC,16/03/2022,Research Grant Expenditure,Mobilising Cultural and Natural Assets,Lancaster University,99334443,72424.93,Research Grant Expenditure
BEIS,UKRI - AHRC,16/03/2022,Research Grant Expenditure,Mobilising Cultural and Natural Assets,Royal College of Art,99334444,71454.71,Research Grant Expenditure
BEIS,UKRI - AHRC,16/03/2022,Research Grant Expenditure,Mobilising Cultural and Natural Assets,Nottingham Trent University,99334445,72285.85,Research Grant Expenditure
BEIS,UKRI - AHRC,16/03/2022,Research Grant Expenditure,International Other,Lancaster University,99334446,57285.48,Research Grant Expenditure
BEIS,UKRI - AHRC,16/03/2022,Research Grant Expenditure,DEDEFI Capital Grants,The National Archives,99334447,14445.03,Research Grant Expenditure
BEIS,UKRI - AHRC,16/03/2022,Research Grant Expenditure,DEDEFI Capital Grants,Manchester Metropolitan University,99334448,13785.56,Research Grant Expenditure
BEIS,UKRI - AHRC,16/03/2022,Research Grant Expenditure,AHRC - DFG Collaborative Research Grant,Cardiff University,99334449,22716.25,Research Grant Expenditure
BEIS,UKRI - AHRC,16/03/2022,Research Grant Expenditure,AHRC - DFG Collaborative Research Grant,University of Durham,99334450,16332.02,Research Grant Expenditure
BEIS,UKRI - AHRC,16/03/2022,Research Grant Expenditure,AHRC - DFG Collaborative Research Grant,University of Edinburgh,99334451,25757.61,Research Grant Expenditure
BEIS,UKRI - AHRC,16/03/2022,Research Grant Expenditure,AHRC - DFG Collaborative Research Grant,University of Cambridge,99334452,25301.99,Research Grant Expenditure
BEIS,UKRI - AHRC,16/03/2022,Research Grant Expenditure,AHRC - DFG Collaborative Research Grant,University of Edinburgh,99334453,15275.59,Research Grant Expenditure
BEIS,UKRI - AHRC,16/03/2022,Research Grant Expenditure,AHRC - DFG Collaborative Research Grant,University of Essex,99334454,27930.89,Research Grant Expenditure
BEIS,UKRI - AHRC,16/03/2022,Research Grant Expenditure,AHRC - DFG Collaborative Research Grant,University of the Highlands and Islands,99334455,15794.21,Research Grant Expenditure
BEIS,UKRI - AHRC,16/03/2022,Research Grant Expenditure,AHRC - DFG Collaborative Research Grant,University of Oxford,99334456,35281.34,Research Grant Expenditure
BEIS,UKRI - AHRC,16/03/2022,Research Grant Expenditure,AHRC - DFG Collaborative Research Grant,Teesside University,99334457,19968.42,Research Grant Expenditure
BEIS,UKRI - AHRC,16/03/2022,Research Grant Expenditure,AHRC - DFG Collaborative Research Grant,University of Oxford,99334458,25085.75,Research Grant Expenditure
BEIS,UKRI - AHRC,16/03/2022,Research Grant Expenditure,AHRC - DFG Collaborative Research Grant,University of Newcastle Upon Tyne,99334459,23439.12,Research Grant Expenditure
BEIS,UKRI - AHRC,16/03/2022,Research Grant Expenditure,AHRC - DFG Collaborative Research Grant,University of Liverpool,99334460,21775.41,Research Grant Expenditure
BEIS,UKRI - AHRC,16/03/2022,Research Grant Expenditure,AHRC - DFG Collaborative Research Grant,University of Warwick,99334461,35280.68,Research Grant Expenditure
BEIS,UKRI - AHRC,16/03/2022,Research Grant Expenditure,AHRC - DFG Collaborative Research Grant,The University of Manchester,99334462,20197.02,Research Grant Expenditure
BEIS,UKRI - AHRC,16/03/2022,Research Grant Expenditure,AHRC - DFG Collaborative Research Grant,University of Birmingham GRANT,99334463,16717.90,Research Grant Expenditure
BEIS,UKRI - AHRC,16/03/2022,Research Grant Expenditure,AHRC - DFG Collaborative Research Grant,University of Bristol GRANT,99334464,33668.41,Research Grant Expenditure
BEIS,UKRI - AHRC,16/03/2022,Research Grant Expenditure,AHRC - DFG Collaborative Research Grant,University of Exeter,99334465,17563.27,Research Grant Expenditure
BEIS,UKRI - AHRC,16/03/2022,T&S UK - Mileage,SMT,Unspecified,99334487,40.91,T&S UK - Mileage
BEIS,UKRI - AHRC,16/03/2022,T&S UK - Other Charges,SMT,Unspecified,99334487,8.00,T&S UK - Other Charges
BEIS,UKRI - AHRC,16/03/2022,Research Grant Expenditure,Public and Stakeholder Engagement,University of Exeter,99334541,-405.62,Research Grant Expenditure
BEIS,UKRI - AHRC,16/03/2022,Research Grant Expenditure,Public and Stakeholder Engagement,University of Bristol GRANT,99334542,10080.90,Research Grant Expenditure
BEIS,UKRI - AHRC,16/03/2022,Research Grant Expenditure,COVID-19 (AHRC funded),University of Leicester,99334543,31644.42,Research Grant Expenditure
BEIS,UKRI - AHRC,16/03/2022,Research Grant Expenditure,Commissioned Research,The British Museum,99334544,14052.89,Research Grant Expenditure
BEIS,UKRI - AHRC,16/03/2022,Research Grant Expenditure,COVID-19 (AHRC funded),Loughborough University,99334545,-4764.04,Research Grant Expenditure
BEIS,UKRI - AHRC,16/03/2022,Research Grant Expenditure,Commissioned Research,Royal College of Art,99334546,-22669.34,Research Grant Expenditure
BEIS,UKRI - AHRC,16/03/2022,Research Grant Expenditure,COVID-19 (AHRC funded),University of York,99334547,35901.89,Research Grant Expenditure
BEIS,UKRI - AHRC,16/03/2022,Research Grant Expenditure,COVID-19 (AHRC funded),University of Durham,99334548,-8987.15,Research Grant Expenditure
BEIS,UKRI - AHRC,16/03/2022,Research Grant Expenditure,COVID-19,British Institute Of International And Comparative Law,99334549,-83395.51,Research Grant Expenditure
BEIS,UKRI - AHRC,16/03/2022,Research Grant Expenditure,COVID-19,Queen Mary University of London,99334550,22152.23,Research Grant Expenditure
BEIS,UKRI - AHRC,16/03/2022,Research Grant Expenditure,COVID-19,University of St Andrews,99334551,22046.59,Research Grant Expenditure
BEIS,UKRI - AHRC,16/03/2022,Research Grant Expenditure,COVID-19,Northumbria University,99334552,-7919.01,Research Grant Expenditure
BEIS,UKRI - AHRC,16/03/2022,Research Grant Expenditure,COVID-19,University of Essex,99334553,41843.63,Research Grant Expenditure
BEIS,UKRI - AHRC,16/03/2022,Research Grant Expenditure,COVID-19 (AHRC funded),Bournemouth University,99334554,7128.48,Research Grant Expenditure
BEIS,UKRI - AHRC,16/03/2022,Capital Grants & Equipment to HEIs,DEDEFI Capital Grants,Historic Royal Palaces,99334555,-1362.84,Capital Grants & Equipment to HEIs
BEIS,UKRI - AHRC,16/03/2022,Capital Grants & Equipment to HEIs,DEDEFI Capital Grants,Science Museum Group,99334556,715096.65,Capital Grants & Equipment to HEIs
BEIS,UKRI - AHRC,16/03/2022,Capital Grants & Equipment to HEIs,DEDEFI Capital Grants,The National Archives,99334557,-12649.10,Capital Grants & Equipment to HEIs
BEIS,UKRI - AHRC,16/03/2022,Capital Grants & Equipment to HEIs,DEDEFI Capital Grants,University of Oxford,99334558,-73.45,Capital Grants & Equipment to HEIs
BEIS,UKRI - AHRC,16/03/2022,Research Grant Expenditure,DEDEFI Capital Grants,University of Oxford,99334558,-0.70,Research Grant Expenditure
BEIS,UKRI - AHRC,16/03/2022,Capital Grants & Equipment to HEIs,DEDEFI Capital Grants,National Museums Liverpool,99334559,5714.44,Capital Grants & Equipment to HEIs
BEIS,UKRI - AHRC,16/03/2022,Research Grant Expenditure,DEDEFI Capital Grants,National Museums Liverpool,99334559,-2834.96,Research Grant Expenditure
BEIS,UKRI - AHRC,16/03/2022,Research Grant Expenditure,DEDEFI Capital Grants,University of Cambridge,99334560,94797.14,Research Grant Expenditure
BEIS,UKRI - AHRC,16/03/2022,Capital Grants & Equipment to HEIs,DEDEFI Capital Grants,University of Leicester,99334561,-6365.71,Capital Grants & Equipment to HEIs
BEIS,UKRI - AHRC,16/03/2022,Research Grant Expenditure,DEDEFI Capital Grants,University of Leicester,99334561,-115792.89,Research Grant Expenditure
BEIS,UKRI - AHRC,16/03/2022,Research Grant Expenditure,COVID-19 (AHRC funded),York St John University,99334562,17491.07,Research Grant Expenditure
BEIS,UKRI - AHRC,16/03/2022,Research Grant Expenditure,COVID-19 (AHRC funded),University of Liverpool,99334563,17280.66,Research Grant Expenditure
BEIS,UKRI - AHRC,16/03/2022,Research Grant Expenditure,COVID-19 (AHRC funded),Manchester Metropolitan University,99334564,28634.82,Research Grant Expenditure
BEIS,UKRI - AHRC,16/03/2022,Research Grant Expenditure,COVID-19 (AHRC funded),University of Sheffield,99334565,51518.39,Research Grant Expenditure
BEIS,UKRI - AHRC,16/03/2022,Research Grant Expenditure,COVID-19,University College London,99334566,37750.54,Research Grant Expenditure
BEIS,UKRI - AHRC,16/03/2022,Research Grant Expenditure,Modern Slavery and Human Rights (SPF),Keele University,99334567,-14670.05,Research Grant Expenditure
BEIS,UKRI - AHRC,16/03/2022,Research Grant Expenditure,COVID-19,University of Liverpool,99334568,33728.83,Research Grant Expenditure
BEIS,UKRI - AHRC,16/03/2022,Research Grant Expenditure,Global Challenges Research Fund (GCRF),University of Edinburgh,99334569,-17836.72,Research Grant Expenditure
BEIS,UKRI - AHRC,16/03/2022,Research Grant Expenditure,Global Challenges Research Fund (GCRF),University of Edinburgh,99334570,16824.23,Research Grant Expenditure
BEIS,UKRI - AHRC,16/03/2022,Research Grant Expenditure,Global Challenges Research Fund (GCRF),University of Warwick,99334571,-22615.81,Research Grant Expenditure
BEIS,UKRI - AHRC,16/03/2022,Research Grant Expenditure,Global Challenges Research Fund (GCRF),Queen Mary University of London,99334572,-0.01,Research Grant Expenditure
BEIS,UKRI - AHRC,16/03/2022,Research Grant Expenditure,Commissioned Research,University of Southampton GRANT,99334573,-6349.75,Research Grant Expenditure
BEIS,UKRI - AHRC,16/03/2022,Research Grant Expenditure,Commissioned Research,University of Sheffield,99334574,-49050.65,Research Grant Expenditure
BEIS,UKRI - AHRC,16/03/2022,Research Grant Expenditure,Follow-on Fund,"Royal Holloway, University of London",99334575,-2554.33,Research Grant Expenditure
BEIS,UKRI - AHRC,16/03/2022,Research Grant Expenditure,Global Challenges Research Fund (GCRF),University of the West of England,99334576,-4083.97,Research Grant Expenditure
BEIS,UKRI - AHRC,16/03/2022,Research Grant Expenditure,Follow-on Fund,University of Sheffield,99334577,-2163.21,Research Grant Expenditure
BEIS,UKRI - AHRC,16/03/2022,Research Grant Expenditure,Funds for International Collaboration (FIC 20 US),Queen's University Belfast GRANT,99334578,-8625.03,Research Grant Expenditure
BEIS,UKRI - AHRC,16/03/2022,Research Grant Expenditure,Funds for International Collaboration (FIC 20 US),University of Cambridge,99334579,-10910.26,Research Grant Expenditure
BEIS,UKRI - AHRC,16/03/2022,Research Grant Expenditure,Global Challenges Research Fund (GCRF),University of York,99334580,-3756.05,Research Grant Expenditure
BEIS,UKRI - AHRC,16/03/2022,Research Grant Expenditure,Follow-on Fund,University of Birmingham GRANT,99334581,-24289.32,Research Grant Expenditure
BEIS,UKRI - AHRC,16/03/2022,Research Grant Expenditure,Follow-on Fund,University of Cambridge,99334582,-0.47,Research Grant Expenditure
BEIS,UKRI - AHRC,16/03/2022,Research Grant Expenditure,Landscape Decisions (SPF),Glasgow School of Art,99334583,-340.19,Research Grant Expenditure
BEIS,UKRI - AHRC,16/03/2022,Research Grant Expenditure,Global Challenges Research Fund (GCRF),University of Sheffield,99334584,-31983.54,Research Grant Expenditure
BEIS,UKRI - AHRC,16/03/2022,Research Grant Expenditure,Global Challenges Research Fund (GCRF),University of Durham,99334585,-25362.94,Research Grant Expenditure
BEIS,UKRI - AHRC,16/03/2022,Research Grant Expenditure,Global Challenges Research Fund (GCRF),King's College London,99334586,-50.84,Research Grant Expenditure
BEIS,UKRI - AHRC,16/03/2022,Research Grant Expenditure,Global Challenges Research Fund (GCRF),Cardiff University,99334587,-2685.93,Research Grant Expenditure
BEIS,UKRI - AHRC,16/03/2022,Research Grant Expenditure,Landscape Decisions (SPF),Glasgow School of Art,99334588,-11.10,Research Grant Expenditure
BEIS,UKRI - AHRC,16/03/2022,Research Grant Expenditure,Global Challenges Research Fund (GCRF),University of Leeds,99334589,-3362.61,Research Grant Expenditure
BEIS,UKRI - AHRC,16/03/2022,Research Grant Expenditure,Global Challenges Research Fund (GCRF),The Open University,99334590,-6020.00,Research Grant Expenditure
BEIS,UKRI - AHRC,16/03/2022,Research Grant Expenditure,Global Challenges Research Fund (GCRF),University of London,99334591,-13847.27,Research Grant Expenditure
BEIS,UKRI - AHRC,16/03/2022,Research Grant Expenditure,Follow-on Fund,University College London,99334592,-2961.56,Research Grant Expenditure
BEIS,UKRI - AHRC,16/03/2022,Research Grant Expenditure,Artificial Intelligence,Nottingham Trent University,99334593,-255.75,Research Grant Expenditure
BEIS,UKRI - AHRC,16/03/2022,Research Grant Expenditure,Newton Programme,University of Durham,99334594,-28659.88,Research Grant Expenditure
BEIS,UKRI - AHRC,16/03/2022,Research Grant Expenditure,RCUK Global Challenges Research Fund (RCUK GCRF),International Institute For Environment And Development,99334595,-15414.01,Research Grant Expenditure
BEIS,UKRI - AHRC,16/03/2022,Research Grant Expenditure,RCUK Global Challenges Research Fund (RCUK GCRF),University of Edinburgh,99334596,-31632.48,Research Grant Expenditure
BEIS,UKRI - AHRC,16/03/2022,Research Grant Expenditure,RCUK Global Challenges Research Fund (RCUK GCRF),University of Exeter,99334597,-11284.84,Research Grant Expenditure
BEIS,UKRI - AHRC,16/03/2022,Research Grant Expenditure,Follow-on Fund,University of Glasgow,99334598,-4438.51,Research Grant Expenditure
BEIS,UKRI - AHRC,16/03/2022,Research Grant Expenditure,Follow-on Fund,University of Exeter,99334599,-25513.78,Research Grant Expenditure
BEIS,UKRI - AHRC,16/03/2022,Research Grant Expenditure,Networks & Workshops,Historic Royal Palaces,99334600,5209.62,Research Grant Expenditure
BEIS,UKRI - AHRC,16/03/2022,Research Grant Expenditure,Networks & Workshops,University of Hull,99334601,-12209.49,Research Grant Expenditure
BEIS,UKRI - AHRC,16/03/2022,Research Grant Expenditure,Newton Programme,King's College London,99334602,-9822.39,Research Grant Expenditure
BEIS,UKRI - AHRC,16/03/2022,Research Grant Expenditure,Follow-on Fund,University of Strathclyde,99334603,51178.94,Research Grant Expenditure
BEIS,UKRI - AHRC,16/03/2022,Research Grant Expenditure,Networks & Workshops,University of Exeter,99334604,-8938.71,Research Grant Expenditure
BEIS,UKRI - AHRC,16/03/2022,Research Grant Expenditure,Newton Programme,Brunel University London,99334605,-7009.28,Research Grant Expenditure
BEIS,UKRI - AHRC,16/03/2022,Research Grant Expenditure,Networks & Workshops,Northumbria University,99334606,3050.29,Research Grant Expenditure
BEIS,UKRI - AHRC,16/03/2022,Research Grant Expenditure,Research Grants,Northumbria University,99334607,11746.33,Research Grant Expenditure
BEIS,UKRI - AHRC,16/03/2022,Research Grant Expenditure,Research Grants,Birkbeck College,99334608,17313.46,Research Grant Expenditure
BEIS,UKRI - AHRC,16/03/2022,Research Grant Expenditure,JPI Cultural Heritage,University of Warwick,99334609,-8727.15,Research Grant Expenditure
BEIS,UKRI - AHRC,16/03/2022,Research Grant Expenditure,Research Grants,University of Chester,99334610,16189.54,Research Grant Expenditure
BEIS,UKRI - AHRC,16/03/2022,Research Grant Expenditure,Networks & Workshops,Birmingham City University,99334611,-6649.17,Research Grant Expenditure
BEIS,UKRI - AHRC,16/03/2022,Research Grant Expenditure,Newton Programme,Cardiff University,99334612,-50857.80,Research Grant Expenditure
BEIS,UKRI - AHRC,16/03/2022,Research Grant Expenditure,Research Grants,Queen Mary University of London,99334613,28970.16,Research Grant Expenditure
BEIS,UKRI - AHRC,16/03/2022,Research Grant Expenditure,Research Grants,University of Exeter,99334614,-13162.01,Research Grant Expenditure
BEIS,UKRI - AHRC,16/03/2022,Research Grant Expenditure,Research Grants,University of Liverpool,99334615,15274.69,Research Grant Expenditure
BEIS,UKRI - AHRC,16/03/2022,Research Grant Expenditure,Networks & Workshops,University of Dundee,99334616,6650.38,Research Grant Expenditure
BEIS,UKRI - AHRC,16/03/2022,Research Grant Expenditure,Global Challenges Research Fund (GCRF),University of Bedfordshire,99334617,-4348.72,Research Grant Expenditure
BEIS,UKRI - AHRC,16/03/2022,Research Grant Expenditure,Care for the Future,University of Essex,99334618,-2861.97,Research Grant Expenditure
BEIS,UKRI - AHRC,16/03/2022,Research Grant Expenditure,Connected Communities Programme,University of Essex,99334618,-2861.97,Research Grant Expenditure
BEIS,UKRI - AHRC,16/03/2022,Research Grant Expenditure,Research Grants,University of Nottingham,99334619,23427.30,Research Grant Expenditure
BEIS,UKRI - AHRC,16/03/2022,Research Grant Expenditure,Research Grants,"SOAS, University of London",99334620,49121.49,Research Grant Expenditure
BEIS,UKRI - AHRC,16/03/2022,Research Grant Expenditure,Care for the Future,University of Kent,99334621,32438.43,Research Grant Expenditure
BEIS,UKRI - AHRC,16/03/2022,Research Grant Expenditure,Connected Communities Programme,University of Kent,99334621,-10812.81,Research Grant Expenditure
BEIS,UKRI - AHRC,16/03/2022,Research Grant Expenditure,Research Grants,University of Cambridge,99334622,50178.14,Research Grant Expenditure
BEIS,UKRI - AHRC,16/03/2022,Research Grant Expenditure,Research Grants,University of Birmingham GRANT,99334623,23389.19,Research Grant Expenditure
BEIS,UKRI - AHRC,16/03/2022,Research Grant Expenditure,Science in Culture,University of London,99334624,22433.23,Research Grant Expenditure
BEIS,UKRI - AHRC,16/03/2022,Research Grant Expenditure,Research Grants,University of Leicester,99334625,-50844.94,Research Grant Expenditure
BEIS,UKRI - AHRC,16/03/2022,Research Grant Expenditure,Research Grants,University of Southampton GRANT,99334626,27609.76,Research Grant Expenditure
BEIS,UKRI - AHRC,16/03/2022,Research Grant Expenditure,Research Grants,University of Oxford,99334627,28588.99,Research Grant Expenditure
BEIS,UKRI - AHRC,16/03/2022,Research Grant Expenditure,Research Grants,Birkbeck College,99334628,34812.78,Research Grant Expenditure
BEIS,UKRI - AHRC,16/03/2022,Research Grant Expenditure,Research Grants,University of Strathclyde,99334629,2253.87,Research Grant Expenditure
BEIS,UKRI - AHRC,16/03/2022,Research Grant Expenditure,Research Grants,University of Stirling,99334630,6200.70,Research Grant Expenditure
BEIS,UKRI - AHRC,16/03/2022,Research Grant Expenditure,Research Grants,University of Leeds,99334631,32502.55,Research Grant Expenditure
BEIS,UKRI - AHRC,16/03/2022,Research Grant Expenditure,Research Grants,The Open University,99334632,-8569.29,Research Grant Expenditure
BEIS,UKRI - AHRC,16/03/2022,Research Grant Expenditure,Research Grants,University of Bristol GRANT,99334633,-13412.95,Research Grant Expenditure
BEIS,UKRI - AHRC,16/03/2022,Research Grant Expenditure,Research Grants,University of Newcastle Upon Tyne,99334872,28214.80,Research Grant Expenditure
BEIS,UKRI - AHRC,16/03/2022,Research Grant Expenditure,Global Challenges Research Fund (GCRF),University of Newcastle Upon Tyne,99334883,-24032.09,Research Grant Expenditure
BEIS,UKRI - AHRC,16/03/2022,Research Grant Expenditure,Commissioned Research,University of Newcastle Upon Tyne,99334938,61422.95,Research Grant Expenditure
BEIS,UKRI - AHRC,16/03/2022,Research Grant Expenditure,Research Grants,University of Newcastle Upon Tyne,99334939,53096.40,Research Grant Expenditure
BEIS,UKRI - AHRC,16/03/2022,Research Grant Expenditure,Research Grants,University of Newcastle Upon Tyne,99334940,61895.33,Research Grant Expenditure
BEIS,UKRI - AHRC,16/03/2022,Research Grant Expenditure,Research Grants,University of Newcastle Upon Tyne,99334941,62732.66,Research Grant Expenditure
BEIS,UKRI - AHRC,16/03/2022,Research Grant Expenditure,Research Grants,University of Newcastle Upon Tyne,99334942,67126.68,Research Grant Expenditure
BEIS,UKRI - AHRC,16/03/2022,Research Grant Expenditure,Research Grants,University of Newcastle Upon Tyne,99334943,51384.91,Research Grant Expenditure
BEIS,UKRI - AHRC,16/03/2022,Research Grant Expenditure,COVID-19,University of Newcastle Upon Tyne,99334944,74570.19,Research Grant Expenditure
BEIS,UKRI - AHRC,16/03/2022,Research Grant Expenditure,AHRC - DFG Collaborative Research Grant,University of Southampton GRANT,99335466,20591.51,Research Grant Expenditure
BEIS,UKRI - AHRC,16/03/2022,Research Grant Expenditure,AHRC - DFG Collaborative Research Grant,University of Stirling,99335467,27064.40,Research Grant Expenditure
BEIS,UKRI - AHRC,16/03/2022,Research Grant Expenditure,Networks & Workshops,London School of Economics and Political Science,99335468,24158.97,Research Grant Expenditure
BEIS,UKRI - AHRC,16/03/2022,Research Grant Expenditure,Networks & Workshops,International Institute For Environment And Development,99335469,27294.70,Research Grant Expenditure
BEIS,UKRI - AHRC,16/03/2022,Research Grant Expenditure,Networks & Workshops,Institute of Development Studies,99335470,25224.08,Research Grant Expenditure
BEIS,UKRI - AHRC,16/03/2022,Research Grant Expenditure,Networks & Workshops,UNIVERSITY OF ULSTER,99335471,25337.57,Research Grant Expenditure
BEIS,UKRI - AHRC,16/03/2022,Research Grant Expenditure,Networks & Workshops,University of Aberdeen,99335472,26872.94,Research Grant Expenditure
BEIS,UKRI - AHRC,16/03/2022,Research Grant Expenditure,Networks & Workshops,University of Essex,99335473,25087.41,Research Grant Expenditure
BEIS,UKRI - AHRC,16/03/2022,Research Grant Expenditure,Networks & Workshops,University of the Arts London,99335474,26047.47,Research Grant Expenditure
BEIS,UKRI - AHRC,16/03/2022,Research Grant Expenditure,Networks & Workshops,University College London,99335475,25053.91,Research Grant Expenditure
BEIS,UKRI - AHRC,16/03/2022,Research Grant Expenditure,Networks & Workshops,UNIVERSITY OF ULSTER,99335476,26602.87,Research Grant Expenditure
BEIS,UKRI - AHRC,16/03/2022,Research Grant Expenditure,Networks & Workshops,University of Bradford,99335477,25758.47,Research Grant Expenditure
BEIS,UKRI - AHRC,16/03/2022,Research Grant Expenditure,Networks & Workshops,De Montfort University,99335478,24071.76,Research Grant Expenditure
BEIS,UKRI - AHRC,16/03/2022,Research Grant Expenditure,Networks & Workshops,Coventry University,99335479,26105.05,Research Grant Expenditure
BEIS,UKRI - AHRC,16/03/2022,Research Grant Expenditure,Networks & Workshops,University of Birmingham GRANT,99335480,24527.34,Research Grant Expenditure
BEIS,UKRI - AHRC,16/03/2022,Research Grant Expenditure,Design: Strategic Initiatives,University of Reading,99335481,10650.58,Research Grant Expenditure
BEIS,UKRI - AHRC,16/03/2022,Research Grant Expenditure,Funds for International Collaboration (FIC 21 China),Falmouth University,99335482,20058.83,Research Grant Expenditure
BEIS,UKRI - AHRC,16/03/2022,Research Grant Expenditure,Funds for International Collaboration (FIC 21 China),Nottingham Trent University,99335483,19992.74,Research Grant Expenditure
BEIS,UKRI - AHRC,16/03/2022,Research Grant Expenditure,Funds for International Collaboration (FIC 21 China),Brunel University London,99335484,15636.70,Research Grant Expenditure
BEIS,UKRI - AHRC,16/03/2022,Research Grant Expenditure,Funds for International Collaboration (FIC 21 China),University of Leeds,99335485,17368.40,Research Grant Expenditure
BEIS,UKRI - AHRC,16/03/2022,Research Grant Expenditure,Funds for International Collaboration (FIC 21 China),Bournemouth University,99335486,16109.24,Research Grant Expenditure
BEIS,UKRI - AHRC,16/03/2022,Research Grant Expenditure,Hidden Histories,University of Sussex,99335487,61392.51,Research Grant Expenditure
BEIS,UKRI - AHRC,16/03/2022,Research Grant Expenditure,Hidden Histories,University of Liverpool,99335488,61185.31,Research Grant Expenditure
BEIS,UKRI - AHRC,16/03/2022,Research Grant Expenditure,Investment in Place,University of Bradford,99335489,53076.41,Research Grant Expenditure
BEIS,UKRI - AHRC,16/03/2022,Research Grant Expenditure,Hidden Histories,University of Strathclyde,99335490,66270.66,Research Grant Expenditure
BEIS,UKRI - AHRC,16/03/2022,Research Grant Expenditure,Investment in Place,Glasgow School of Art,99335491,53202.15,Research Grant Expenditure
BEIS,UKRI - AHRC,16/03/2022,Research Grant Expenditure,Investment in Place,University of Exeter,99335492,53153.50,Research Grant Expenditure
BEIS,UKRI - AHRC,16/03/2022,Research Grant Expenditure,Hidden Histories,The University of Manchester,99335493,44929.69,Research Grant Expenditure
BEIS,UKRI - AHRC,16/03/2022,Research Grant Expenditure,Hidden Histories,UK Centre for Ecology and Hydrology (UKCEH),99335494,71287.77,Research Grant Expenditure
BEIS,UKRI - AHRC,16/03/2022,Research Grant Expenditure,Hidden Histories,University of East Anglia,99335495,62737.68,Research Grant Expenditure
BEIS,UKRI - AHRC,16/03/2022,Research Grant Expenditure,Investment in Place,University of Edinburgh,99335496,53197.70,Research Grant Expenditure
BEIS,UKRI - AHRC,16/03/2022,Research Grant Expenditure,Hidden Histories,University of Southampton GRANT,99335497,61517.07,Research Grant Expenditure
BEIS,UKRI - AHRC,16/03/2022,Research Grant Expenditure,Investment in Place,The Open University,99335498,46667.81,Research Grant Expenditure
BEIS,UKRI - AHRC,16/03/2022,Research Grant Expenditure,Hidden Histories,University of Oxford,99335499,61814.34,Research Grant Expenditure
BEIS,UKRI - AHRC,16/03/2022,Research Grant Expenditure,Investment in Place,Coventry University,99335500,52816.69,Research Grant Expenditure
BEIS,UKRI - AHRC,16/03/2022,Research Grant Expenditure,Hidden Histories,University of Hull,99335501,61953.68,Research Grant Expenditure
BEIS,UKRI - AHRC,16/03/2022,Research Grant Expenditure,Investment in Place,University of Southampton GRANT,99335502,53063.39,Research Grant Expenditure
BEIS,UKRI - AHRC,16/03/2022,Research Grant Expenditure,Investment in Place,University of Nottingham,99335503,52983.63,Research Grant Expenditure
BEIS,UKRI - AHRC,16/03/2022,Research Grant Expenditure,Hidden Histories,University of Winchester,99335504,57921.03,Research Grant Expenditure
BEIS,UKRI - AHRC,16/03/2022,Research Grant Expenditure,Labex,University of Leeds,99335505,11711.96,Research Grant Expenditure
BEIS,UKRI - AHRC,16/03/2022,Research Grant Expenditure,Design: Strategic Initiatives,University of Hertfordshire,99335506,12540.12,Research Grant Expenditure
BEIS,UKRI - AHRC,16/03/2022,Research Grant Expenditure,Design: Strategic Initiatives,University of Hertfordshire,99335507,12457.60,Research Grant Expenditure
BEIS,UKRI - AHRC,16/03/2022,Research Grant Expenditure,Investment in Place,University of Sheffield,99335508,36432.22,Research Grant Expenditure
BEIS,UKRI - AHRC,16/03/2022,Research Grant Expenditure,Design: Strategic Initiatives,University of Hertfordshire,99335509,12431.13,Research Grant Expenditure
BEIS,UKRI - AHRC,16/03/2022,Research Grant Expenditure,Mobilising Cultural and Natural Assets,University of the Highlands and Islands,99335510,44136.66,Research Grant Expenditure
BEIS,UKRI - AHRC,16/03/2022,Research Grant Expenditure,Mobilising Cultural and Natural Assets,University of Newcastle Upon Tyne,99335511,72564.73,Research Grant Expenditure
BEIS,UKRI - AHRC,16/03/2022,Research Grant Expenditure,Mobilising Cultural and Natural Assets,University of Derby,99335512,37327.96,Research Grant Expenditure
BEIS,UKRI - AHRC,16/03/2022,Research Grant Expenditure,Mobilising Cultural and Natural Assets,Leeds Beckett University,99335513,72581.60,Research Grant Expenditure
BEIS,UKRI - AHRC,16/03/2022,Research Grant Expenditure,Mobilising Cultural and Natural Assets,Edge Hill University College,99335514,72567.26,Research Grant Expenditure
BEIS,UKRI - AHRC,16/03/2022,Research Grant Expenditure,Mobilising Cultural and Natural Assets,Bournemouth University,99335515,68537.10,Research Grant Expenditure
BEIS,UKRI - AHRC,16/03/2022,Research Grant Expenditure,Mobilising Cultural and Natural Assets,University of Nottingham,99335516,70397.52,Research Grant Expenditure
BEIS,UKRI - AHRC,16/03/2022,Research Grant Expenditure,Mobilising Cultural and Natural Assets,University College London,99335517,68958.50,Research Grant Expenditure
BEIS,UKRI - AHRC,16/03/2022,Research Grant Expenditure,Mobilising Cultural and Natural Assets,University of Dundee,99335518,71599.66,Research Grant Expenditure
BEIS,UKRI - AHRC,16/03/2022,Research Grant Expenditure,Artificial Intelligence,University of the West of England,99335519,7883.19,Research Grant Expenditure
BEIS,UKRI - AHRC,16/03/2022,Research Grant Expenditure,Artificial Intelligence,University of Warwick,99335520,16376.25,Research Grant Expenditure
BEIS,UKRI - AHRC,16/03/2022,Research Grant Expenditure,Artificial Intelligence,University of Cambridge,99335521,13866.03,Research Grant Expenditure
BEIS,UKRI - AHRC,16/03/2022,Research Grant Expenditure,Artificial Intelligence,University of Sheffield,99335522,17999.61,Research Grant Expenditure
BEIS,UKRI - AHRC,16/03/2022,Research Grant Expenditure,DEDEFI Capital Grants,University of Westminster,99335523,38504.38,Research Grant Expenditure
BEIS,UKRI - AHRC,16/03/2022,Research Grant Expenditure,Investment in Place,University of Glasgow,99335524,50510.84,Research Grant Expenditure
BEIS,UKRI - AHRC,16/03/2022,Research Grant Expenditure,DEDEFI Capital Grants,University of Leeds,99335525,38588.29,Research Grant Expenditure
BEIS,UKRI - AHRC,16/03/2022,Research Grant Expenditure,DEDEFI Capital Grants,University of Oxford,99335526,39444.05,Research Grant Expenditure
BEIS,UKRI - AHRC,16/03/2022,Research Grant Expenditure,DEDEFI Capital Grants,University of Glasgow,99335527,75261.28,Research Grant Expenditure
BEIS,UKRI - AHRC,16/03/2022,Research Grant Expenditure,DEDEFI Capital Grants,University of Edinburgh,99335528,88330.87,Research Grant Expenditure
BEIS,UKRI - AHRC,16/03/2022,Research Grant Expenditure,DEDEFI Capital Grants,Aberystwyth University,99335529,38698.44,Research Grant Expenditure
BEIS,UKRI - AHRC,16/03/2022,Research Grant Expenditure,Digital Transformations,University of Oxford,99335530,99958.00,Research Grant Expenditure
BEIS,UKRI - AHRC,16/03/2022,Research Grant Expenditure,Digital Transformations,The British Library,99335532,52467.94,Research Grant Expenditure
BEIS,UKRI - AHRC,16/03/2022,Research Grant Expenditure,Digital Transformations,University of York,99335533,74723.97,Research Grant Expenditure
BEIS,UKRI - AHRC,16/03/2022,Research Grant Expenditure,Digital Transformations,University of York,99335533,100242.75,Research Grant Expenditure
BEIS,UKRI - AHRC,16/03/2022,Research Grant Expenditure,Intergenerational Justice,National Museums of Scotland,99335534,63235.06,Research Grant Expenditure
BEIS,UKRI - AHRC,16/03/2022,Research Grant Expenditure,Follow-on Fund,Queen Mary University of London,99335535,48745.44,Research Grant Expenditure
BEIS,UKRI - AHRC,16/03/2022,Research Grant Expenditure,Follow-on Fund,Northumbria University,99335536,50793.65,Research Grant Expenditure
BEIS,UKRI - AHRC,16/03/2022,Research Grant Expenditure,Follow-on Fund,"SOAS, University of London",99335537,48958.01,Research Grant Expenditure
BEIS,UKRI - AHRC,16/03/2022,Research Grant Expenditure,Follow-on Fund,University of Leeds,99335538,48745.39,Research Grant Expenditure
BEIS,UKRI - AHRC,16/03/2022,Research Grant Expenditure,Follow-on Fund,Cardiff University,99335539,48491.83,Research Grant Expenditure
BEIS,UKRI - AHRC,16/03/2022,Research Grant Expenditure,Follow-on Fund,University of Leeds,99335540,48100.79,Research Grant Expenditure
BEIS,UKRI - AHRC,16/03/2022,Research Grant Expenditure,Follow-on Fund,Goldsmiths College University of London,99335541,45296.80,Research Grant Expenditure
BEIS,UKRI - AHRC,16/03/2022,Research Grant Expenditure,Follow-on Fund,University of Leeds,99335542,47533.72,Research Grant Expenditure
BEIS,UKRI - AHRC,16/03/2022,Research Grant Expenditure,Follow-on Fund,University of Essex,99335543,47475.60,Research Grant Expenditure
BEIS,UKRI - AHRC,16/03/2022,Research Grant Expenditure,Follow-on Fund,Lancaster University,99335544,50059.66,Research Grant Expenditure
BEIS,UKRI - AHRC,16/03/2022,Research Grant Expenditure,Follow-on Fund,"SOAS, University of London",99335545,45349.85,Research Grant Expenditure
BEIS,UKRI - AHRC,16/03/2022,Research Grant Expenditure,Follow-on Fund,University of Reading,99335546,43747.13,Research Grant Expenditure
BEIS,UKRI - AHRC,16/03/2022,Research Grant Expenditure,Follow-on Fund,Queen's University Belfast GRANT,99335547,52555.36,Research Grant Expenditure
BEIS,UKRI - AHRC,16/03/2022,Research Grant Expenditure,Follow-on Fund,University of Leicester,99335548,50613.68,Research Grant Expenditure
BEIS,UKRI - AHRC,16/03/2022,Research Grant Expenditure,Follow-on Fund,University of Bradford,99335549,46984.68,Research Grant Expenditure
BEIS,UKRI - AHRC,16/03/2022,Research Grant Expenditure,Digital Transformations,The Natural History Museum,99335550,105380.64,Research Grant Expenditure
BEIS,UKRI - AHRC,16/03/2022,Research Grant Expenditure,Follow-on Fund,University of Leeds,99335551,53726.15,Research Grant Expenditure
BEIS,UKRI - AHRC,16/03/2022,Research Grant Expenditure,Follow-on Fund,University of Liverpool,99335552,44666.40,Research Grant Expenditure
BEIS,UKRI - AHRC,16/03/2022,Research Grant Expenditure,Follow-on Fund,Cardiff University,99335553,44094.14,Research Grant Expenditure
BEIS,UKRI - AHRC,16/03/2022,Research Grant Expenditure,Follow-on Fund,Institute of Development Studies,99335554,48939.16,Research Grant Expenditure
BEIS,UKRI - AHRC,16/03/2022,Research Grant Expenditure,Follow-on Fund,University of Surrey,99335555,42848.98,Research Grant Expenditure
BEIS,UKRI - AHRC,16/03/2022,Research Grant Expenditure,Follow-on Fund,University of Oxford,99335556,47969.16,Research Grant Expenditure
BEIS,UKRI - AHRC,16/03/2022,Research Grant Expenditure,Follow-on Fund,University of Birmingham GRANT,99335557,48142.77,Research Grant Expenditure
BEIS,UKRI - AHRC,16/03/2022,Research Grant Expenditure,Follow-on Fund,University of Edinburgh,99335558,46411.56,Research Grant Expenditure
BEIS,UKRI - AHRC,16/03/2022,Research Grant Expenditure,Follow-on Fund,University of Brighton,99335559,45725.79,Research Grant Expenditure
BEIS,UKRI - AHRC,16/03/2022,Research Grant Expenditure,Follow-on Fund,University of Glasgow,99335560,28697.89,Research Grant Expenditure
BEIS,UKRI - AHRC,16/03/2022,Research Grant Expenditure,Funds for International Collaboration (FIC 20 US),University of Edinburgh,99335561,9398.86,Research Grant Expenditure
BEIS,UKRI - AHRC,16/03/2022,Research Grant Expenditure,Funds for International Collaboration (FIC 20 US),University of Westminster,99335562,16519.83,Research Grant Expenditure
BEIS,UKRI - AHRC,16/03/2022,Research Grant Expenditure,Funds for International Collaboration (FIC 20 US),Lancaster University,99335563,14292.28,Research Grant Expenditure
BEIS,UKRI - AHRC,16/03/2022,Research Grant Expenditure,Funds for International Collaboration (FIC 20 US),University of Cambridge,99335564,12988.54,Research Grant Expenditure
BEIS,UKRI - AHRC,16/03/2022,Research Grant Expenditure,Funds for International Collaboration (FIC 20 US),Cardiff University,99335565,19832.19,Research Grant Expenditure
BEIS,UKRI - AHRC,16/03/2022,Research Grant Expenditure,Funds for International Collaboration (FIC 20 US),University of Newcastle Upon Tyne,99335566,4255.10,Research Grant Expenditure
BEIS,UKRI - AHRC,16/03/2022,Research Grant Expenditure,Follow-on Fund,University of Leeds,99335567,19230.62,Research Grant Expenditure
BEIS,UKRI - AHRC,16/03/2022,Research Grant Expenditure,Networks & Workshops,University of Central Lancashire,99335568,3013.63,Research Grant Expenditure
BEIS,UKRI - AHRC,16/03/2022,Research Grant Expenditure,Follow-on Fund,Manchester Metropolitan University,99335569,20132.70,Research Grant Expenditure
BEIS,UKRI - AHRC,16/03/2022,Research Grant Expenditure,Follow-on Fund,University of Cambridge,99335570,3571.00,Research Grant Expenditure
BEIS,UKRI - AHRC,16/03/2022,Research Grant Expenditure,Follow-on Fund,University of Newcastle Upon Tyne,99335571,19536.31,Research Grant Expenditure
BEIS,UKRI - AHRC,16/03/2022,Research Grant Expenditure,COVID-19 (AHRC funded),University of Oxford,99335572,45312.40,Research Grant Expenditure
BEIS,UKRI - AHRC,16/03/2022,Research Grant Expenditure,COVID-19 (AHRC funded),Bangor University,99335573,85993.46,Research Grant Expenditure
BEIS,UKRI - AHRC,16/03/2022,Research Grant Expenditure,COVID-19 (AHRC funded),University of Huddersfield,99335574,11923.04,Research Grant Expenditure
BEIS,UKRI - AHRC,16/03/2022,Research Grant Expenditure,Follow-on Fund,University of Plymouth,99335575,27411.18,Research Grant Expenditure
BEIS,UKRI - AHRC,16/03/2022,Research Grant Expenditure,Towards a National Collection (SPF),University College London,99335576,230876.34,Research Grant Expenditure
BEIS,UKRI - AHRC,16/03/2022,Research Grant Expenditure,Towards a National Collection (SPF),University of the Arts London,99335578,242723.65,Research Grant Expenditure
BEIS,UKRI - AHRC,16/03/2022,Research Grant Expenditure,Towards a National Collection (SPF),Science Museum Group,99335579,245215.40,Research Grant Expenditure
BEIS,UKRI - AHRC,16/03/2022,Research Grant Expenditure,Towards a National Collection (SPF),University of Glasgow,99335580,257283.82,Research Grant Expenditure
BEIS,UKRI - AHRC,16/03/2022,Research Grant Expenditure,Research Grants,Royal College of Art,99335581,40793.69,Research Grant Expenditure
BEIS,UKRI - AHRC,16/03/2022,Research Grant Expenditure,Research Grants,University of Warwick,99335582,22196.58,Research Grant Expenditure
BEIS,UKRI - AHRC,16/03/2022,Research Grant Expenditure,Follow-on Fund,University of Reading,99335583,20161.87,Research Grant Expenditure
BEIS,UKRI - AHRC,16/03/2022,Research Grant Expenditure,Commissioned Research,Goldsmiths College University of London,99335584,59439.98,Research Grant Expenditure
BEIS,UKRI - AHRC,16/03/2022,Research Grant Expenditure,Follow-on Fund,Cardiff University,99335585,8437.26,Research Grant Expenditure
BEIS,UKRI - AHRC,16/03/2022,Research Grant Expenditure,Commissioned Research,University of Durham,99335586,29675.96,Research Grant Expenditure
BEIS,UKRI - AHRC,16/03/2022,Research Grant Expenditure,Follow-on Fund,University of Leeds,99335587,20161.99,Research Grant Expenditure
BEIS,UKRI - AHRC,16/03/2022,Research Grant Expenditure,Follow-on Fund,University of East Anglia,99335588,26437.14,Research Grant Expenditure
BEIS,UKRI - AHRC,16/03/2022,Research Grant Expenditure,Funds for International Collaboration (FIC2-06 Ireland),University of Oxford,99335589,23353.98,Research Grant Expenditure
BEIS,UKRI - AHRC,16/03/2022,Research Grant Expenditure,Funds for International Collaboration (FIC2-06 Ireland),University of Glasgow,99335590,26867.46,Research Grant Expenditure
BEIS,UKRI - AHRC,16/03/2022,Research Grant Expenditure,Funds for International Collaboration (FIC2-06 Ireland),Manchester Metropolitan University,99335591,43210.28,Research Grant Expenditure
BEIS,UKRI - AHRC,16/03/2022,Research Grant Expenditure,Funds for International Collaboration (FIC2-06 Ireland),University of Edinburgh,99335592,28509.88,Research Grant Expenditure
BEIS,UKRI - AHRC,16/03/2022,Research Grant Expenditure,Funds for International Collaboration (FIC2-06 Ireland),Loughborough University,99335593,26881.72,Research Grant Expenditure
BEIS,UKRI - AHRC,16/03/2022,Research Grant Expenditure,Funds for International Collaboration (FIC2-06 Ireland),Queen's University Belfast GRANT,99335594,36129.04,Research Grant Expenditure
BEIS,UKRI - AHRC,16/03/2022,Research Grant Expenditure,Funds for International Collaboration (FIC2-06 Ireland),University of East Anglia,99335595,34677.24,Research Grant Expenditure
BEIS,UKRI - AHRC,16/03/2022,Research Grant Expenditure,Funds for International Collaboration (FIC2-06 Ireland),University of Sussex,99335596,31970.96,Research Grant Expenditure
BEIS,UKRI - AHRC,16/03/2022,Research Grant Expenditure,Funds for International Collaboration (FIC2-06 Ireland),University of Brighton,99335597,23049.48,Research Grant Expenditure
BEIS,UKRI - AHRC,16/03/2022,Research Grant Expenditure,Funds for International Collaboration (FIC2-06 Ireland),Cardiff University,99335598,31318.56,Research Grant Expenditure
BEIS,UKRI - AHRC,16/03/2022,Research Grant Expenditure,Funds for International Collaboration (FIC2-06 Ireland),University of Sheffield,99335599,23625.03,Research Grant Expenditure
BEIS,UKRI - AHRC,16/03/2022,Research Grant Expenditure,Research Grants,King's College London,99335600,38004.37,Research Grant Expenditure
BEIS,UKRI - AHRC,16/03/2022,Research Grant Expenditure,Networks & Workshops,University of Hertfordshire,99335601,6017.07,Research Grant Expenditure
BEIS,UKRI - AHRC,16/03/2022,Research Grant Expenditure,COVID-19 (AHRC funded),University of Exeter,99335602,31123.00,Research Grant Expenditure
BEIS,UKRI - AHRC,16/03/2022,Research Grant Expenditure,COVID-19 (AHRC funded),University of Exeter,99335602,27201.79,Research Grant Expenditure
BEIS,UKRI - AHRC,16/03/2022,Research Grant Expenditure,Follow-on Fund,Middlesex University,99335603,12707.73,Research Grant Expenditure
BEIS,UKRI - AHRC,16/03/2022,Research Grant Expenditure,Networks & Workshops,University of Warwick,99335604,4534.24,Research Grant Expenditure
BEIS,UKRI - AHRC,16/03/2022,Research Grant Expenditure,Networks & Workshops,University of Warwick,99335604,4534.22,Research Grant Expenditure
BEIS,UKRI - AHRC,16/03/2022,Research Grant Expenditure,JPI Cultural Heritage,Sheffield Hallam University,99335605,19689.70,Research Grant Expenditure
BEIS,UKRI - AHRC,16/03/2022,Research Grant Expenditure,JPI Cultural Heritage,University of the Highlands and Islands,99335606,12051.10,Research Grant Expenditure
BEIS,UKRI - AHRC,16/03/2022,Research Grant Expenditure,JPI Cultural Heritage,Falmouth University,99335607,19113.52,Research Grant Expenditure
BEIS,UKRI - AHRC,16/03/2022,Research Grant Expenditure,JPI Cultural Heritage,"SOAS, University of London",99335608,10206.31,Research Grant Expenditure
BEIS,UKRI - AHRC,16/03/2022,Research Grant Expenditure,Networks & Workshops,National Museums of Scotland,99335609,8707.62,Research Grant Expenditure
BEIS,UKRI - AHRC,16/03/2022,Research Grant Expenditure,Networks & Workshops,The Open University,99335610,3646.17,Research Grant Expenditure
BEIS,UKRI - AHRC,16/03/2022,Research Grant Expenditure,JPI Cultural Heritage,Kingston University,99335611,8692.35,Research Grant Expenditure
BEIS,UKRI - AHRC,16/03/2022,Research Grant Expenditure,Networks & Workshops,Manchester Metropolitan University,99335612,4507.47,Research Grant Expenditure
BEIS,UKRI - AHRC,16/03/2022,Research Grant Expenditure,COVID-19 (AHRC funded),Queen Mary University of London,99335613,33616.87,Research Grant Expenditure
BEIS,UKRI - AHRC,16/03/2022,Research Grant Expenditure,Follow-on Fund,University of Bristol GRANT,99335614,19175.77,Research Grant Expenditure
BEIS,UKRI - AHRC,16/03/2022,Research Grant Expenditure,Follow-on Fund,University of Bristol GRANT,99335614,19175.79,Research Grant Expenditure
BEIS,UKRI - AHRC,16/03/2022,Research Grant Expenditure,Follow-on Fund,University of Bristol GRANT,99335614,19175.79,Research Grant Expenditure
BEIS,UKRI - AHRC,16/03/2022,Research Grant Expenditure,COVID-19,Nottingham Trent University,99335615,30548.71,Research Grant Expenditure
BEIS,UKRI - AHRC,16/03/2022,Research Grant Expenditure,Follow-on Fund,University of Exeter,99335616,21924.77,Research Grant Expenditure
BEIS,UKRI - AHRC,16/03/2022,Research Grant Expenditure,Networks & Workshops,Sheffield Hallam University,99335617,8344.48,Research Grant Expenditure
BEIS,UKRI - AHRC,16/03/2022,Research Grant Expenditure,Networks & Workshops,University of West London,99335618,5975.59,Research Grant Expenditure
BEIS,UKRI - AHRC,16/03/2022,Research Grant Expenditure,Research Grants,University of York,99335619,54082.73,Research Grant Expenditure
BEIS,UKRI - AHRC,16/03/2022,Research Grant Expenditure,Research Grants,De Montfort University,99335620,40736.44,Research Grant Expenditure
BEIS,UKRI - AHRC,16/03/2022,Research Grant Expenditure,Research Grants,King's College London,99335621,21778.71,Research Grant Expenditure
BEIS,UKRI - AHRC,16/03/2022,Research Grant Expenditure,Follow-on Fund,University of Portsmouth,99335622,16278.72,Research Grant Expenditure
BEIS,UKRI - AHRC,16/03/2022,Research Grant Expenditure,Research Grants,University of Cambridge,99335623,71396.32,Research Grant Expenditure
BEIS,UKRI - AHRC,16/03/2022,Research Grant Expenditure,Research Grants,University of Cambridge,99335623,71396.30,Research Grant Expenditure
BEIS,UKRI - AHRC,16/03/2022,Research Grant Expenditure,COVID-19 (AHRC funded),National Centre for Social Research,99335624,19429.87,Research Grant Expenditure
BEIS,UKRI - AHRC,16/03/2022,Research Grant Expenditure,COVID-19,University of the West of England,99335625,39892.14,Research Grant Expenditure
BEIS,UKRI - AHRC,16/03/2022,Research Grant Expenditure,COVID-19,Royal College of Art,99335626,54195.40,Research Grant Expenditure
BEIS,UKRI - AHRC,16/03/2022,Research Grant Expenditure,COVID-19 (AHRC funded),University of Edinburgh,99335627,62379.74,Research Grant Expenditure
BEIS,UKRI - AHRC,16/03/2022,Research Grant Expenditure,COVID-19 (AHRC funded),Bournemouth University,99335628,46776.60,Research Grant Expenditure
BEIS,UKRI - AHRC,16/03/2022,Research Grant Expenditure,COVID-19 (AHRC funded),University of Glasgow,99335629,48036.58,Research Grant Expenditure
BEIS,UKRI - AHRC,16/03/2022,Research Grant Expenditure,COVID-19 (AHRC funded),University of Nottingham,99335630,60854.36,Research Grant Expenditure
BEIS,UKRI - AHRC,16/03/2022,Research Grant Expenditure,COVID-19,The Open University,99335631,10801.66,Research Grant Expenditure
BEIS,UKRI - AHRC,16/03/2022,Research Grant Expenditure,Networks & Workshops,Northumbria University,99335632,5682.07,Research Grant Expenditure
BEIS,UKRI - AHRC,16/03/2022,Research Grant Expenditure,Networks & Workshops,Northumbria University,99335632,5682.03,Research Grant Expenditure
BEIS,UKRI - AHRC,16/03/2022,Research Grant Expenditure,COVID-19,University of Leicester,99335633,49754.46,Research Grant Expenditure
BEIS,UKRI - AHRC,16/03/2022,Research Grant Expenditure,COVID-19 (AHRC funded),Queen Mary University of London,99335634,32518.46,Research Grant Expenditure
BEIS,UKRI - AHRC,16/03/2022,Research Grant Expenditure,COVID-19 (AHRC funded),Birkbeck College,99335635,25351.97,Research Grant Expenditure
BEIS,UKRI - AHRC,16/03/2022,Research Grant Expenditure,COVID-19 (AHRC funded),King's College London,99335636,55598.54,Research Grant Expenditure
BEIS,UKRI - AHRC,16/03/2022,Research Grant Expenditure,Research Grants,University of Lincoln,99335637,39118.96,Research Grant Expenditure
BEIS,UKRI - AHRC,16/03/2022,Research Grant Expenditure,Networks & Workshops,Leeds Beckett University,99335638,9204.70,Research Grant Expenditure
BEIS,UKRI - AHRC,16/03/2022,Research Grant Expenditure,Networks & Workshops,Kingston University,99335639,6410.30,Research Grant Expenditure
BEIS,UKRI - AHRC,16/03/2022,Research Grant Expenditure,Research Grants,Northumbria University,99335640,63606.42,Research Grant Expenditure
BEIS,UKRI - AHRC,16/03/2022,Research Grant Expenditure,Research Grants,Northumbria University,99335640,63606.39,Research Grant Expenditure
BEIS,UKRI - AHRC,16/03/2022,Research Grant Expenditure,Networks & Workshops,National Maritime Museum,99335641,6014.41,Research Grant Expenditure
BEIS,UKRI - AHRC,16/03/2022,Research Grant Expenditure,COVID-19 (AHRC funded),University of Oxford,99335642,90246.47,Research Grant Expenditure
BEIS,UKRI - AHRC,16/03/2022,Research Grant Expenditure,COVID-19,Queen Mary University of London,99335643,83784.35,Research Grant Expenditure
BEIS,UKRI - AHRC,16/03/2022,Research Grant Expenditure,COVID-19,University of Brighton,99335644,32778.28,Research Grant Expenditure
BEIS,UKRI - AHRC,16/03/2022,Research Grant Expenditure,COVID-19,Royal College of Music,99335645,66256.77,Research Grant Expenditure
BEIS,UKRI - AHRC,16/03/2022,Research Grant Expenditure,COVID-19,University College London,99335646,59663.35,Research Grant Expenditure
BEIS,UKRI - AHRC,16/03/2022,Research Grant Expenditure,Research Grants,University of London,99335647,61476.60,Research Grant Expenditure
BEIS,UKRI - AHRC,16/03/2022,Research Grant Expenditure,COVID-19,Northumbria University,99335648,20457.66,Research Grant Expenditure
BEIS,UKRI - AHRC,16/03/2022,Research Grant Expenditure,COVID-19,University of Exeter,99335649,42222.71,Research Grant Expenditure
BEIS,UKRI - AHRC,16/03/2022,Research Grant Expenditure,Research Grants,University of Sheffield,99335650,43340.46,Research Grant Expenditure
BEIS,UKRI - AHRC,16/03/2022,Research Grant Expenditure,Networks & Workshops,University of Exeter,99335651,11543.40,Research Grant Expenditure
BEIS,UKRI - AHRC,16/03/2022,Research Grant Expenditure,COVID-19 (AHRC funded),"Royal Holloway, University of London",99335652,32856.97,Research Grant Expenditure
BEIS,UKRI - AHRC,16/03/2022,Research Grant Expenditure,Modern Slavery and Human Rights (SPF),University of Stirling,99335653,114755.40,Research Grant Expenditure
BEIS,UKRI - AHRC,16/03/2022,Research Grant Expenditure,Research Grants,Aberystwyth University,99335654,57341.23,Research Grant Expenditure
BEIS,UKRI - AHRC,16/03/2022,Research Grant Expenditure,Modern Slavery and Human Rights (SPF),St Marys University,99335655,56196.53,Research Grant Expenditure
BEIS,UKRI - AHRC,16/03/2022,Research Grant Expenditure,Modern Slavery and Human Rights (SPF),King's College London,99335656,86035.94,Research Grant Expenditure
BEIS,UKRI - AHRC,16/03/2022,Research Grant Expenditure,Modern Slavery and Human Rights (SPF),University of Birmingham GRANT,99335657,94128.62,Research Grant Expenditure
BEIS,UKRI - AHRC,16/03/2022,Research Grant Expenditure,Modern Slavery and Human Rights (SPF),University of Bedfordshire,99335658,127335.80,Research Grant Expenditure
BEIS,UKRI - AHRC,16/03/2022,Research Grant Expenditure,COVID-19,UNIVERSITY OF ULSTER,99335659,33807.57,Research Grant Expenditure
BEIS,UKRI - AHRC,16/03/2022,Research Grant Expenditure,Research Grants,University of Edinburgh,99335660,70556.53,Research Grant Expenditure
BEIS,UKRI - AHRC,16/03/2022,Research Grant Expenditure,Follow-on Fund,"SOAS, University of London",99335661,20150.58,Research Grant Expenditure
BEIS,UKRI - AHRC,16/03/2022,Research Grant Expenditure,Follow-on Fund,"SOAS, University of London",99335661,20150.57,Research Grant Expenditure
BEIS,UKRI - AHRC,16/03/2022,Research Grant Expenditure,Follow-on Fund,University of Nottingham,99335662,25043.46,Research Grant Expenditure
BEIS,UKRI - AHRC,16/03/2022,Capital Grants & Equipment to HEIs,DEDEFI Capital Grants,University of Bradford,99335663,2999856.00,Capital Grants & Equipment to HEIs
BEIS,UKRI - AHRC,16/03/2022,Research Grant Expenditure,DEDEFI Capital Grants,University of Reading,99335664,459974.86,Research Grant Expenditure
BEIS,UKRI - AHRC,16/03/2022,Capital Grants & Equipment to HEIs,DEDEFI Capital Grants,Teesside University,99335666,116057.12,Capital Grants & Equipment to HEIs
BEIS,UKRI - AHRC,16/03/2022,Research Grant Expenditure,DEDEFI Capital Grants,Teesside University,99335666,613901.65,Research Grant Expenditure
BEIS,UKRI - AHRC,16/03/2022,Research Grant Expenditure,DEDEFI Capital Grants,University of Edinburgh,99335667,358028.26,Research Grant Expenditure
BEIS,UKRI - AHRC,16/03/2022,Research Grant Expenditure,Follow-on Fund,University of St Andrews,99335668,42184.72,Research Grant Expenditure
BEIS,UKRI - AHRC,16/03/2022,Capital Grants & Equipment to HEIs,DEDEFI Capital Grants,National Museums of Scotland,99335669,621332.99,Capital Grants & Equipment to HEIs
BEIS,UKRI - AHRC,16/03/2022,Capital Grants & Equipment to HEIs,DEDEFI Capital Grants,Historic Environment Scotland (GRANT),99335670,10000.00,Capital Grants & Equipment to HEIs
BEIS,UKRI - AHRC,16/03/2022,Research Grant Expenditure,DEDEFI Capital Grants,British Film Institute,99335671,135979.39,Research Grant Expenditure
BEIS,UKRI - AHRC,16/03/2022,Research Grant Expenditure,DEDEFI Capital Grants,University of Leeds,99335672,1112295.00,Research Grant Expenditure
BEIS,UKRI - AHRC,16/03/2022,Capital Grants & Equipment to HEIs,DEDEFI Capital Grants,Tate Galleries,99335673,20016.01,Capital Grants & Equipment to HEIs
BEIS,UKRI - AHRC,16/03/2022,Capital Grants & Equipment to HEIs,DEDEFI Capital Grants,Queen's University Belfast GRANT,99335674,2991573.78,Capital Grants & Equipment to HEIs
BEIS,UKRI - AHRC,16/03/2022,Research Grant Expenditure,Research Grants,University of the Arts London,99335675,20145.80,Research Grant Expenditure
BEIS,UKRI - AHRC,16/03/2022,Research Grant Expenditure,Follow-on Fund,University of Leeds,99335676,39590.02,Research Grant Expenditure
BEIS,UKRI - AHRC,16/03/2022,Capital Grants & Equipment to HEIs,DEDEFI Capital Grants,University College London,99335677,249608.63,Capital Grants & Equipment to HEIs
BEIS,UKRI - AHRC,16/03/2022,Research Grant Expenditure,Follow-on Fund,Queen's University Belfast GRANT,99335678,20066.40,Research Grant Expenditure
BEIS,UKRI - AHRC,16/03/2022,Research Grant Expenditure,Follow-on Fund,Queen's University Belfast GRANT,99335678,20066.39,Research Grant Expenditure
BEIS,UKRI - AHRC,16/03/2022,Research Grant Expenditure,Follow-on Fund,University of Stirling,99335679,39945.66,Research Grant Expenditure
BEIS,UKRI - AHRC,16/03/2022,Research Grant Expenditure,Research Grants,Queen's University Belfast GRANT,99335680,47686.24,Research Grant Expenditure
BEIS,UKRI - AHRC,16/03/2022,Research Grant Expenditure,Research Grants,Queen's University Belfast GRANT,99335680,47685.97,Research Grant Expenditure
BEIS,UKRI - AHRC,16/03/2022,Research Grant Expenditure,Networks & Workshops,University of Birmingham GRANT,99335681,4567.39,Research Grant Expenditure
BEIS,UKRI - AHRC,16/03/2022,Research Grant Expenditure,Research Grants,University of Exeter,99335682,43095.63,Research Grant Expenditure
BEIS,UKRI - AHRC,16/03/2022,Research Grant Expenditure,Research Grants,"SOAS, University of London",99335683,30245.05,Research Grant Expenditure
BEIS,UKRI - AHRC,16/03/2022,Research Grant Expenditure,Networks & Workshops,Liverpool John Moores University,99335684,6026.42,Research Grant Expenditure
BEIS,UKRI - AHRC,16/03/2022,Research Grant Expenditure,Research Grants,University of Aberdeen,99335685,42689.10,Research Grant Expenditure
BEIS,UKRI - AHRC,16/03/2022,Research Grant Expenditure,Research Grants,University of Greenwich,99335686,32647.11,Research Grant Expenditure
BEIS,UKRI - AHRC,16/03/2022,Research Grant Expenditure,Follow-on Fund,"Royal Holloway, University of London",99335687,19722.75,Research Grant Expenditure
BEIS,UKRI - AHRC,16/03/2022,Research Grant Expenditure,Networks & Workshops,The University of Manchester,99335688,4498.28,Research Grant Expenditure
BEIS,UKRI - AHRC,16/03/2022,Research Grant Expenditure,Follow-on Fund,The National Archives,99335689,22243.31,Research Grant Expenditure
BEIS,UKRI - AHRC,16/03/2022,Research Grant Expenditure,Follow-on Fund,The National Archives,99335689,25047.66,Research Grant Expenditure
BEIS,UKRI - AHRC,16/03/2022,Research Grant Expenditure,Global Challenges Research Fund (GCRF),The Open University,99335690,15410.30,Research Grant Expenditure
BEIS,UKRI - AHRC,16/03/2022,Research Grant Expenditure,Research Grants,University of London,99335691,50409.49,Research Grant Expenditure
BEIS,UKRI - AHRC,16/03/2022,Research Grant Expenditure,Networks & Workshops,University of Brighton,99335692,4782.13,Research Grant Expenditure
BEIS,UKRI - AHRC,16/03/2022,Research Grant Expenditure,Networks & Workshops,Coventry University,99335693,3427.09,Research Grant Expenditure
BEIS,UKRI - AHRC,16/03/2022,Research Grant Expenditure,Networks & Workshops,Coventry University,99335693,3427.04,Research Grant Expenditure
BEIS,UKRI - AHRC,16/03/2022,Research Grant Expenditure,Networks & Workshops,Coventry University,99335693,3427.04,Research Grant Expenditure
BEIS,UKRI - AHRC,16/03/2022,Research Grant Expenditure,Networks & Workshops,University of York,99335694,3546.37,Research Grant Expenditure
BEIS,UKRI - AHRC,16/03/2022,Research Grant Expenditure,Funds for International Collaboration (FIC 20 US),Nottingham Trent University,99335695,16933.11,Research Grant Expenditure
BEIS,UKRI - AHRC,16/03/2022,Research Grant Expenditure,Funds for International Collaboration (FIC 20 US),University of Leicester,99335696,33864.99,Research Grant Expenditure
BEIS,UKRI - AHRC,16/03/2022,Research Grant Expenditure,Funds for International Collaboration (FIC 20 US),"City, University of London",99335697,27776.73,Research Grant Expenditure
BEIS,UKRI - AHRC,16/03/2022,Research Grant Expenditure,Funds for International Collaboration (FIC 20 US),University of York,99335698,34874.57,Research Grant Expenditure
BEIS,UKRI - AHRC,16/03/2022,Research Grant Expenditure,Funds for International Collaboration (FIC 20 US),University of Reading,99335699,20587.11,Research Grant Expenditure
BEIS,UKRI - AHRC,16/03/2022,Research Grant Expenditure,Funds for International Collaboration (FIC 20 US),University of Oxford,99335700,24525.83,Research Grant Expenditure
BEIS,UKRI - AHRC,16/03/2022,Research Grant Expenditure,Funds for International Collaboration (FIC 20 US),University of Exeter,99335701,23231.02,Research Grant Expenditure
BEIS,UKRI - AHRC,16/03/2022,Research Grant Expenditure,Funds for International Collaboration (FIC 20 US),Goldsmiths College University of London,99335702,11176.59,Research Grant Expenditure
BEIS,UKRI - AHRC,16/03/2022,Research Grant Expenditure,Funds for International Collaboration (FIC 20 US),Science Museum Group,99335703,21786.58,Research Grant Expenditure
BEIS,UKRI - AHRC,16/03/2022,Research Grant Expenditure,Funds for International Collaboration (FIC 20 US),University of Cambridge,99335704,17368.42,Research Grant Expenditure
BEIS,UKRI - AHRC,16/03/2022,Research Grant Expenditure,Funds for International Collaboration (FIC 20 US),Loughborough University,99335705,6096.05,Research Grant Expenditure
BEIS,UKRI - AHRC,16/03/2022,Research Grant Expenditure,Funds for International Collaboration (FIC 20 US),The Alan Turing Institute,99335706,30469.58,Research Grant Expenditure
BEIS,UKRI - AHRC,16/03/2022,Research Grant Expenditure,Global Challenges Research Fund (GCRF),University College London,99335707,94837.45,Research Grant Expenditure
BEIS,UKRI - AHRC,16/03/2022,Research Grant Expenditure,Research Grants,University of Brighton,99335708,29974.04,Research Grant Expenditure
BEIS,UKRI - AHRC,16/03/2022,Research Grant Expenditure,Research Grants,The Open University,99335709,62662.23,Research Grant Expenditure
BEIS,UKRI - AHRC,16/03/2022,Research Grant Expenditure,Research Grants,University of Reading,99335710,77037.07,Research Grant Expenditure
BEIS,UKRI - AHRC,16/03/2022,Research Grant Expenditure,Follow-on Fund,University of Sheffield,99335711,28215.42,Research Grant Expenditure
BEIS,UKRI - AHRC,16/03/2022,Research Grant Expenditure,Networks & Workshops,University of the Arts London,99335712,5297.61,Research Grant Expenditure
BEIS,UKRI - AHRC,16/03/2022,Research Grant Expenditure,Networks & Workshops,University of St Andrews,99335713,2953.10,Research Grant Expenditure
BEIS,UKRI - AHRC,16/03/2022,Research Grant Expenditure,Research Grants,"SOAS, University of London",99335714,38764.36,Research Grant Expenditure
BEIS,UKRI - AHRC,16/03/2022,Research Grant Expenditure,Global Challenges Research Fund (GCRF),University of Leicester,99335715,13617.19,Research Grant Expenditure
BEIS,UKRI - AHRC,16/03/2022,Research Grant Expenditure,Follow-on Fund,University of Leeds,99335716,20450.78,Research Grant Expenditure
BEIS,UKRI - AHRC,16/03/2022,Research Grant Expenditure,Networks & Workshops,University of Kent,99335717,4471.94,Research Grant Expenditure
BEIS,UKRI - AHRC,16/03/2022,Research Grant Expenditure,Research Grants,Queen's University Belfast GRANT,99335718,59548.94,Research Grant Expenditure
BEIS,UKRI - AHRC,16/03/2022,Research Grant Expenditure,Networks & Workshops,University of Glasgow,99335719,4129.18,Research Grant Expenditure
BEIS,UKRI - AHRC,16/03/2022,Research Grant Expenditure,Follow-on Fund,University of Chester,99335720,19401.37,Research Grant Expenditure
BEIS,UKRI - AHRC,16/03/2022,Research Grant Expenditure,Networks & Workshops,King's College London,99335721,5824.22,Research Grant Expenditure
BEIS,UKRI - AHRC,16/03/2022,Research Grant Expenditure,Networks & Workshops,The University of Manchester,99335722,4495.54,Research Grant Expenditure
BEIS,UKRI - AHRC,16/03/2022,Research Grant Expenditure,Follow-on Fund,University of Sussex,99335723,33454.73,Research Grant Expenditure
BEIS,UKRI - AHRC,16/03/2022,Research Grant Expenditure,Follow-on Fund,University of Glasgow,99335724,19705.34,Research Grant Expenditure
BEIS,UKRI - AHRC,16/03/2022,Research Grant Expenditure,Global Challenges Research Fund (GCRF),University of Glasgow,99335725,20492.62,Research Grant Expenditure
BEIS,UKRI - AHRC,16/03/2022,Research Grant Expenditure,Networks & Workshops,Goldsmiths College University of London,99335726,4018.96,Research Grant Expenditure
BEIS,UKRI - AHRC,16/03/2022,Research Grant Expenditure,Global Challenges Research Fund (GCRF),Loughborough University,99335727,67601.92,Research Grant Expenditure
BEIS,UKRI - AHRC,16/03/2022,Research Grant Expenditure,Research Grants,University of Cambridge,99335728,23748.96,Research Grant Expenditure
BEIS,UKRI - AHRC,16/03/2022,Research Grant Expenditure,Follow-on Fund,University of Edinburgh,99335729,20341.64,Research Grant Expenditure
BEIS,UKRI - AHRC,16/03/2022,Research Grant Expenditure,Networks & Workshops,University of Leicester,99335730,3397.12,Research Grant Expenditure
BEIS,UKRI - AHRC,16/03/2022,Research Grant Expenditure,Research Grants,University of Warwick,99335731,13447.87,Research Grant Expenditure
BEIS,UKRI - AHRC,16/03/2022,Research Grant Expenditure,Networks & Workshops,University of Bristol GRANT,99335732,5754.34,Research Grant Expenditure
BEIS,UKRI - AHRC,16/03/2022,Research Grant Expenditure,Research Grants,University College London,99335733,65037.59,Research Grant Expenditure
BEIS,UKRI - AHRC,16/03/2022,Research Grant Expenditure,Research Grants,Northumbria University,99335734,59797.20,Research Grant Expenditure
BEIS,UKRI - AHRC,16/03/2022,Research Grant Expenditure,Research Grants,Oxford Brookes University,99335735,66436.40,Research Grant Expenditure
BEIS,UKRI - AHRC,16/03/2022,Research Grant Expenditure,Research Grants,University of Leeds,99335736,20002.03,Research Grant Expenditure
BEIS,UKRI - AHRC,16/03/2022,Research Grant Expenditure,Networks & Workshops,University of Warwick,99335737,3897.46,Research Grant Expenditure
BEIS,UKRI - AHRC,16/03/2022,Research Grant Expenditure,Research Grants,University of Sussex,99335738,66663.32,Research Grant Expenditure
BEIS,UKRI - AHRC,16/03/2022,Research Grant Expenditure,Follow-on Fund,Queen's University Belfast GRANT,99335739,19842.43,Research Grant Expenditure
BEIS,UKRI - AHRC,16/03/2022,Research Grant Expenditure,Follow-on Fund,Aston University,99335740,20160.57,Research Grant Expenditure
BEIS,UKRI - AHRC,16/03/2022,Research Grant Expenditure,Networks & Workshops,University of Southampton GRANT,99335741,4887.18,Research Grant Expenditure
BEIS,UKRI - AHRC,16/03/2022,Research Grant Expenditure,Research Grants,Lancaster University,99335742,74028.32,Research Grant Expenditure
BEIS,UKRI - AHRC,16/03/2022,Research Grant Expenditure,Research Grants,Northumbria University,99335743,54988.55,Research Grant Expenditure
BEIS,UKRI - AHRC,16/03/2022,Research Grant Expenditure,Research Grants,University College London,99335744,31114.62,Research Grant Expenditure
BEIS,UKRI - AHRC,16/03/2022,Research Grant Expenditure,Networks & Workshops,University of Glasgow,99335745,5635.92,Research Grant Expenditure
BEIS,UKRI - AHRC,16/03/2022,Research Grant Expenditure,Climate Resilience (SPF w1),University of Hull,99335746,45217.16,Research Grant Expenditure
BEIS,UKRI - AHRC,16/03/2022,Research Grant Expenditure,JPI Cultural Heritage,University College London,99335747,11192.11,Research Grant Expenditure
BEIS,UKRI - AHRC,16/03/2022,Research Grant Expenditure,Climate Resilience (SPF w1),University of Liverpool,99335748,40651.76,Research Grant Expenditure
BEIS,UKRI - AHRC,16/03/2022,Research Grant Expenditure,AHRC - DFG Collaborative Research Grant,University College London,99335749,70869.70,Research Grant Expenditure
BEIS,UKRI - AHRC,16/03/2022,Research Grant Expenditure,AHRC - DFG Collaborative Research Grant,University College London,99335750,70708.07,Research Grant Expenditure
BEIS,UKRI - AHRC,16/03/2022,Research Grant Expenditure,AHRC - DFG Collaborative Research Grant,University of Oxford,99335751,69987.90,Research Grant Expenditure
BEIS,UKRI - AHRC,16/03/2022,Research Grant Expenditure,AHRC - DFG Collaborative Research Grant,Birkbeck College,99335752,81383.51,Research Grant Expenditure
BEIS,UKRI - AHRC,16/03/2022,Research Grant Expenditure,Research Grants,"City, University of London",99335753,58348.00,Research Grant Expenditure
BEIS,UKRI - AHRC,16/03/2022,Research Grant Expenditure,AHRC - DFG Collaborative Research Grant,University of Dundee,99335754,70888.45,Research Grant Expenditure
BEIS,UKRI - AHRC,16/03/2022,Research Grant Expenditure,AHRC - DFG Collaborative Research Grant,University of the Arts London,99335755,70710.15,Research Grant Expenditure
BEIS,UKRI - AHRC,16/03/2022,Research Grant Expenditure,AHRC - DFG Collaborative Research Grant,"SOAS, University of London",99335756,71056.98,Research Grant Expenditure
BEIS,UKRI - AHRC,16/03/2022,Research Grant Expenditure,AHRC - DFG Collaborative Research Grant,University of Stirling,99335757,71059.54,Research Grant Expenditure
BEIS,UKRI - AHRC,16/03/2022,Research Grant Expenditure,Climate Resilience (SPF w1),The University of Manchester,99335758,42563.27,Research Grant Expenditure
BEIS,UKRI - AHRC,16/03/2022,Research Grant Expenditure,AHRC - DFG Collaborative Research Grant,King's College London,99335759,67822.48,Research Grant Expenditure
BEIS,UKRI - AHRC,16/03/2022,Research Grant Expenditure,AHRC - DFG Collaborative Research Grant,University of Bristol GRANT,99335760,70565.09,Research Grant Expenditure
BEIS,UKRI - AHRC,16/03/2022,Research Grant Expenditure,Research Grants,Birmingham City University,99335761,21213.18,Research Grant Expenditure
BEIS,UKRI - AHRC,16/03/2022,Research Grant Expenditure,AHRC - DFG Collaborative Research Grant,University College London,99335762,25981.17,Research Grant Expenditure
BEIS,UKRI - AHRC,16/03/2022,Research Grant Expenditure,AHRC - DFG Collaborative Research Grant,University of Durham,99335763,90038.85,Research Grant Expenditure
BEIS,UKRI - AHRC,16/03/2022,Research Grant Expenditure,AHRC - DFG Collaborative Research Grant,University of Edinburgh,99335764,69131.33,Research Grant Expenditure
BEIS,UKRI - AHRC,16/03/2022,Research Grant Expenditure,AHRC - DFG Collaborative Research Grant,University of Edinburgh,99335765,71180.58,Research Grant Expenditure
BEIS,UKRI - AHRC,16/03/2022,Research Grant Expenditure,AHRC - DFG Collaborative Research Grant,Nottingham Trent University,99335766,51038.55,Research Grant Expenditure
BEIS,UKRI - AHRC,16/03/2022,Research Grant Expenditure,AHRC - DFG Collaborative Research Grant,Loughborough University,99335767,67455.23,Research Grant Expenditure
BEIS,UKRI - AHRC,16/03/2022,Research Grant Expenditure,Research Grants,University of Exeter,99335768,54643.44,Research Grant Expenditure
BEIS,UKRI - AHRC,16/03/2022,Research Grant Expenditure,AHRC - DFG Collaborative Research Grant,University of Sheffield,99335769,69950.25,Research Grant Expenditure
BEIS,UKRI - AHRC,16/03/2022,Research Grant Expenditure,JPI Cultural Heritage,University of Durham,99335770,10828.72,Research Grant Expenditure
BEIS,UKRI - AHRC,16/03/2022,Research Grant Expenditure,AHRC - DFG Collaborative Research Grant,University College London,99335771,71035.30,Research Grant Expenditure
BEIS,UKRI - AHRC,16/03/2022,Research Grant Expenditure,Research Grants,Lancaster University,99335772,73934.65,Research Grant Expenditure
BEIS,UKRI - AHRC,16/03/2022,Research Grant Expenditure,Networks & Workshops,University of the Arts London,99335773,6043.87,Research Grant Expenditure
BEIS,UKRI - AHRC,16/03/2022,Research Grant Expenditure,Research Grants,University of Birmingham GRANT,99335774,69704.82,Research Grant Expenditure
BEIS,UKRI - AHRC,16/03/2022,Research Grant Expenditure,Networks & Workshops,University of Stirling,99335775,5192.13,Research Grant Expenditure
BEIS,UKRI - AHRC,16/03/2022,Research Grant Expenditure,Research Grants,Queen Mary University of London,99335776,43061.12,Research Grant Expenditure
BEIS,UKRI - AHRC,16/03/2022,Research Grant Expenditure,Research Grants,The University of Manchester,99335777,67544.11,Research Grant Expenditure
BEIS,UKRI - AHRC,16/03/2022,Research Grant Expenditure,Research Grants,University of Edinburgh,99335778,89312.30,Research Grant Expenditure
BEIS,UKRI - AHRC,16/03/2022,Research Grant Expenditure,JPI Cultural Heritage,University of York,99335779,7376.68,Research Grant Expenditure
BEIS,UKRI - AHRC,16/03/2022,Research Grant Expenditure,Research Grants,National Museums of Scotland,99335780,66577.58,Research Grant Expenditure
BEIS,UKRI - AHRC,16/03/2022,Research Grant Expenditure,Networks & Workshops,University of Westminster,99335781,4884.86,Research Grant Expenditure
BEIS,UKRI - AHRC,16/03/2022,Research Grant Expenditure,Networks & Workshops,University of Westminster,99335781,4884.86,Research Grant Expenditure
BEIS,UKRI - AHRC,16/03/2022,Research Grant Expenditure,Research Grants,Brunel University London,99335782,32851.74,Research Grant Expenditure
BEIS,UKRI - AHRC,16/03/2022,Research Grant Expenditure,Networks & Workshops,University of York,99335783,4017.47,Research Grant Expenditure
BEIS,UKRI - AHRC,16/03/2022,Research Grant Expenditure,Follow-on Fund,University of Derby,99335784,20117.07,Research Grant Expenditure
BEIS,UKRI - AHRC,16/03/2022,Research Grant Expenditure,Networks & Workshops,University of Sheffield,99335785,5959.78,Research Grant Expenditure
BEIS,UKRI - AHRC,16/03/2022,Research Grant Expenditure,Research Grants,University of York,99335786,22611.51,Research Grant Expenditure
BEIS,UKRI - AHRC,16/03/2022,Research Grant Expenditure,Towards a National Collection (SPF),Historic Environment Scotland (GRANT),99335787,341043.78,Research Grant Expenditure
BEIS,UKRI - AHRC,16/03/2022,Research Grant Expenditure,Research Grants,University of Wolverhampton,99335788,39838.31,Research Grant Expenditure
BEIS,UKRI - AHRC,16/03/2022,Research Grant Expenditure,RCUK Global Challenges Research Fund (RCUK GCRF),University of Liverpool,99335789,3130.00,Research Grant Expenditure
BEIS,UKRI - AHRC,16/03/2022,Research Grant Expenditure,Commissioned Research,Royal Botanic Gardens Kew,99335790,50011.36,Research Grant Expenditure
BEIS,UKRI - AHRC,16/03/2022,Research Grant Expenditure,Commissioned Research,"Royal Holloway, University of London",99335791,55966.72,Research Grant Expenditure
BEIS,UKRI - AHRC,16/03/2022,Research Grant Expenditure,Commissioned Research,Institute of Development Studies,99335792,50042.62,Research Grant Expenditure
BEIS,UKRI - AHRC,16/03/2022,Research Grant Expenditure,RCUK Global Challenges Research Fund (RCUK GCRF),University of Stirling,99335793,2999.99,Research Grant Expenditure
BEIS,UKRI - AHRC,16/03/2022,Research Grant Expenditure,RCUK Global Challenges Research Fund (RCUK GCRF),Institute of Development Studies,99335794,2340.00,Research Grant Expenditure
BEIS,UKRI - AHRC,16/03/2022,Research Grant Expenditure,Networks & Workshops,University of Sussex,99335795,9000.44,Research Grant Expenditure
BEIS,UKRI - AHRC,16/03/2022,Research Grant Expenditure,Research Grants,University of Oxford,99335796,67390.61,Research Grant Expenditure
BEIS,UKRI - AHRC,16/03/2022,Research Grant Expenditure,AHRC - DFG Collaborative Research Grant,University of Leeds,99335797,71139.62,Research Grant Expenditure
BEIS,UKRI - AHRC,16/03/2022,Research Grant Expenditure,AHRC - DFG Collaborative Research Grant,University of Glasgow,99335798,10039.99,Research Grant Expenditure
BEIS,UKRI - AHRC,16/03/2022,Research Grant Expenditure,Creative Economy,Loughborough University,99335799,68586.58,Research Grant Expenditure
BEIS,UKRI - AHRC,16/03/2022,Research Grant Expenditure,Networks & Workshops,Queen Mary University of London,99335800,7263.02,Research Grant Expenditure
BEIS,UKRI - AHRC,16/03/2022,Research Grant Expenditure,Research Grants,University of Birmingham GRANT,99335801,19770.65,Research Grant Expenditure
BEIS,UKRI - AHRC,16/03/2022,Research Grant Expenditure,Research Grants,University of Cambridge,99335802,86987.06,Research Grant Expenditure
BEIS,UKRI - AHRC,16/03/2022,Research Grant Expenditure,Research Grants,University of Sheffield,99335803,42611.78,Research Grant Expenditure
BEIS,UKRI - AHRC,16/03/2022,Research Grant Expenditure,AHRC - DFG Collaborative Research Grant,University of Strathclyde,99335804,67504.33,Research Grant Expenditure
BEIS,UKRI - AHRC,16/03/2022,Research Grant Expenditure,AHRC - DFG Collaborative Research Grant,Bath Spa University,99335805,73010.00,Research Grant Expenditure
BEIS,UKRI - AHRC,16/03/2022,Research Grant Expenditure,Funds for International Collaboration (FIC 20 US),University of Southampton GRANT,99335806,3566.40,Research Grant Expenditure
BEIS,UKRI - AHRC,16/03/2022,Research Grant Expenditure,AHRC - DFG Collaborative Research Grant,Queen Mary University of London,99335807,71002.88,Research Grant Expenditure
BEIS,UKRI - AHRC,16/03/2022,Research Grant Expenditure,Research Grants,University of York,99335808,41505.18,Research Grant Expenditure
BEIS,UKRI - AHRC,16/03/2022,Research Grant Expenditure,AHRC - DFG Collaborative Research Grant,University of Oxford,99335809,70959.98,Research Grant Expenditure
BEIS,UKRI - AHRC,16/03/2022,Research Grant Expenditure,AHRC - DFG Collaborative Research Grant,University of Oxford,99335810,71078.84,Research Grant Expenditure
BEIS,UKRI - AHRC,16/03/2022,Research Grant Expenditure,AHRC - DFG Collaborative Research Grant,University of Oxford,99335811,71109.90,Research Grant Expenditure
BEIS,UKRI - AHRC,16/03/2022,Research Grant Expenditure,AHRC - DFG Collaborative Research Grant,University of Aberdeen,99335812,71068.31,Research Grant Expenditure
BEIS,UKRI - AHRC,16/03/2022,Research Grant Expenditure,AHRC - DFG Collaborative Research Grant,Roehampton University (University of Roehampton),99335813,71129.28,Research Grant Expenditure
BEIS,UKRI - AHRC,16/03/2022,Research Grant Expenditure,AHRC - DFG Collaborative Research Grant,University of Cambridge,99335814,71139.98,Research Grant Expenditure
BEIS,UKRI - AHRC,16/03/2022,Research Grant Expenditure,AHRC - DFG Collaborative Research Grant,University of Bristol GRANT,99335815,71018.22,Research Grant Expenditure
BEIS,UKRI - AHRC,16/03/2022,Research Grant Expenditure,AHRC - DFG Collaborative Research Grant,University of Oxford,99335816,70890.21,Research Grant Expenditure
BEIS,UKRI - AHRC,16/03/2022,Research Grant Expenditure,AHRC - DFG Collaborative Research Grant,University of Liverpool,99335817,71140.00,Research Grant Expenditure
BEIS,UKRI - AHRC,16/03/2022,Research Grant Expenditure,AHRC - DFG Collaborative Research Grant,The British Museum,99335818,63689.50,Research Grant Expenditure
BEIS,UKRI - AHRC,16/03/2022,Research Grant Expenditure,AHRC - DFG Collaborative Research Grant,University of Cambridge,99335819,71132.30,Research Grant Expenditure
BEIS,UKRI - AHRC,16/03/2022,Research Grant Expenditure,AHRC - DFG Collaborative Research Grant,University College London,99335820,71140.15,Research Grant Expenditure
BEIS,UKRI - AHRC,16/03/2022,Research Grant Expenditure,AHRC - DFG Collaborative Research Grant,University of the Highlands and Islands,99335821,71020.47,Research Grant Expenditure
BEIS,UKRI - AHRC,16/03/2022,Research Grant Expenditure,AHRC - DFG Collaborative Research Grant,University of Birmingham GRANT,99335822,71082.40,Research Grant Expenditure
BEIS,UKRI - AHRC,16/03/2022,Research Grant Expenditure,Research Grants,The University of Manchester,99335823,66338.80,Research Grant Expenditure
BEIS,UKRI - AHRC,16/03/2022,Research Grant Expenditure,Networks & Workshops,University of Birmingham GRANT,99335824,4486.71,Research Grant Expenditure
BEIS,UKRI - AHRC,16/03/2022,Research Grant Expenditure,Research Grants,The University of Manchester,99335825,19992.56,Research Grant Expenditure
BEIS,UKRI - AHRC,16/03/2022,Research Grant Expenditure,Modern Slavery and Human Rights (SPF),British Institute Of International And Comparative Law,99335826,217933.71,Research Grant Expenditure
BEIS,UKRI - AHRC,16/03/2022,Research Grant Expenditure,Networks & Workshops,Coventry University,99335827,5398.58,Research Grant Expenditure
BEIS,UKRI - AHRC,16/03/2022,Research Grant Expenditure,Research Grants,National Museums of Scotland,99335828,63608.63,Research Grant Expenditure
BEIS,UKRI - AHRC,16/03/2022,Research Grant Expenditure,Follow-on Fund,University of Reading,99335829,19912.23,Research Grant Expenditure
BEIS,UKRI - AHRC,16/03/2022,Research Grant Expenditure,Funds for International Collaboration (FIC 20 US),Abertay University,99335830,81434.14,Research Grant Expenditure
BEIS,UKRI - AHRC,16/03/2022,Research Grant Expenditure,Funds for International Collaboration (FIC 20 US),Robert Gordon University,99335831,83863.53,Research Grant Expenditure
BEIS,UKRI - AHRC,16/03/2022,Research Grant Expenditure,Funds for International Collaboration (FIC 20 US),Goldsmiths College University of London,99335832,85592.20,Research Grant Expenditure
BEIS,UKRI - AHRC,16/03/2022,Research Grant Expenditure,Funds for International Collaboration (FIC 20 US),Brunel University London,99335833,85862.36,Research Grant Expenditure
BEIS,UKRI - AHRC,16/03/2022,Research Grant Expenditure,Funds for International Collaboration (FIC 20 US),University College London,99335834,36234.42,Research Grant Expenditure
BEIS,UKRI - AHRC,16/03/2022,Research Grant Expenditure,Funds for International Collaboration (FIC 20 US),University of Leeds,99335835,83480.23,Research Grant Expenditure
BEIS,UKRI - AHRC,16/03/2022,Research Grant Expenditure,Research Grants,University of Huddersfield,99335836,16658.01,Research Grant Expenditure
BEIS,UKRI - AHRC,16/03/2022,Research Grant Expenditure,Networks & Workshops,"Royal Holloway, University of London",99335837,5740.85,Research Grant Expenditure
BEIS,UKRI - AHRC,16/03/2022,Research Grant Expenditure,Research Grants,University of Edinburgh,99335838,25145.76,Research Grant Expenditure
BEIS,UKRI - AHRC,16/03/2022,Research Grant Expenditure,Networks & Workshops,University of Leicester,99335839,8254.49,Research Grant Expenditure
BEIS,UKRI - AHRC,16/03/2022,Research Grant Expenditure,Research Grants,University of Nottingham,99335840,43597.81,Research Grant Expenditure
BEIS,UKRI - AHRC,16/03/2022,Research Grant Expenditure,Research Grants,University of Salford,99335841,17497.25,Research Grant Expenditure
BEIS,UKRI - AHRC,16/03/2022,Research Grant Expenditure,RCUK Global Challenges Research Fund (RCUK GCRF),University of Exeter,99335842,16050.98,Research Grant Expenditure
BEIS,UKRI - AHRC,16/03/2022,Research Grant Expenditure,RCUK Global Challenges Research Fund (RCUK GCRF),University of Lincoln,99335843,6470.00,Research Grant Expenditure
BEIS,UKRI - AHRC,16/03/2022,Research Grant Expenditure,RCUK Global Challenges Research Fund (RCUK GCRF),University of Birmingham GRANT,99335844,7222.03,Research Grant Expenditure
BEIS,UKRI - AHRC,16/03/2022,Research Grant Expenditure,RCUK Global Challenges Research Fund (RCUK GCRF),UNIVERSITY OF ULSTER,99335845,9999.98,Research Grant Expenditure
BEIS,UKRI - AHRC,16/03/2022,Research Grant Expenditure,RCUK Global Challenges Research Fund (RCUK GCRF),University of Bath,99335846,15233.00,Research Grant Expenditure
BEIS,UKRI - AHRC,16/03/2022,Research Grant Expenditure,RCUK Global Challenges Research Fund (RCUK GCRF),Aberystwyth University,99335847,12552.00,Research Grant Expenditure
BEIS,UKRI - AHRC,16/03/2022,Research Grant Expenditure,RCUK Global Challenges Research Fund (RCUK GCRF),Keele University,99335848,15046.00,Research Grant Expenditure
BEIS,UKRI - AHRC,16/03/2022,Research Grant Expenditure,RCUK Global Challenges Research Fund (RCUK GCRF),University of Bristol GRANT,99335849,10814.00,Research Grant Expenditure
BEIS,UKRI - AHRC,16/03/2022,Research Grant Expenditure,Research Grants,UNIVERSITY OF ULSTER,99335850,16562.32,Research Grant Expenditure
BEIS,UKRI - AHRC,16/03/2022,Research Grant Expenditure,RCUK Global Challenges Research Fund (RCUK GCRF),University of Birmingham GRANT,99335851,6723.01,Research Grant Expenditure
BEIS,UKRI - AHRC,16/03/2022,Research Grant Expenditure,Research Grants,University of Oxford,99335852,47217.32,Research Grant Expenditure
BEIS,UKRI - AHRC,16/03/2022,Research Grant Expenditure,Networks & Workshops,University of Edinburgh,99335853,4983.46,Research Grant Expenditure
BEIS,UKRI - AHRC,16/03/2022,Research Grant Expenditure,DFID Collaborative Humanitarian Protection Research Programme (CHPRP),Queen's University Belfast GRANT,99335854,56727.24,Research Grant Expenditure
BEIS,UKRI - AHRC,16/03/2022,Research Grant Expenditure,DFID Collaborative Humanitarian Protection Research Programme (CHPRP),London School of Economics and Political Science,99335855,65288.98,Research Grant Expenditure
BEIS,UKRI - AHRC,16/03/2022,Research Grant Expenditure,DFID Collaborative Humanitarian Protection Research Programme (CHPRP),University of Warwick,99335856,57375.33,Research Grant Expenditure
BEIS,UKRI - AHRC,16/03/2022,Research Grant Expenditure,DFID Collaborative Humanitarian Protection Research Programme (CHPRP),University of Bath,99335857,86797.84,Research Grant Expenditure
BEIS,UKRI - AHRC,16/03/2022,Research Grant Expenditure,DFID Collaborative Humanitarian Protection Research Programme (CHPRP),Institute of Development Studies,99335858,65576.46,Research Grant Expenditure
BEIS,UKRI - AHRC,16/03/2022,Research Grant Expenditure,DFID Collaborative Humanitarian Protection Research Programme (CHPRP),University of Durham,99335859,50308.32,Research Grant Expenditure
BEIS,UKRI - AHRC,16/03/2022,Research Grant Expenditure,DFID Collaborative Humanitarian Protection Research Programme (CHPRP),University of Oxford,99335860,68615.65,Research Grant Expenditure
BEIS,UKRI - AHRC,16/03/2022,Research Grant Expenditure,DFID Collaborative Humanitarian Protection Research Programme (CHPRP),University of Portsmouth,99335865,65061.65,Research Grant Expenditure
BEIS,UKRI - AHRC,16/03/2022,Research Grant Expenditure,Research Grants,Oxford Brookes University,99335867,75884.68,Research Grant Expenditure
BEIS,UKRI - AHRC,16/03/2022,Research Grant Expenditure,Research Grants,The British Museum,99335868,18071.42,Research Grant Expenditure
BEIS,UKRI - AHRC,16/03/2022,Research Grant Expenditure,Research Grants,Bangor University,99335869,25054.44,Research Grant Expenditure
BEIS,UKRI - AHRC,16/03/2022,Research Grant Expenditure,Research Grants,University of Glasgow,99335870,59906.61,Research Grant Expenditure
BEIS,UKRI - AHRC,16/03/2022,Research Grant Expenditure,Research Grants,Birmingham City University,99335871,45923.42,Research Grant Expenditure
BEIS,UKRI - AHRC,16/03/2022,Research Grant Expenditure,Research Grants,University of Leicester,99335872,35576.11,Research Grant Expenditure
BEIS,UKRI - AHRC,16/03/2022,Research Grant Expenditure,Research Grants,Cardiff University,99335873,17101.45,Research Grant Expenditure
BEIS,UKRI - AHRC,16/03/2022,Research Grant Expenditure,Networks & Workshops,The University of Manchester,99335874,5092.43,Research Grant Expenditure
BEIS,UKRI - AHRC,16/03/2022,Research Grant Expenditure,Networks & Workshops,De Montfort University,99335875,6080.83,Research Grant Expenditure
BEIS,UKRI - AHRC,16/03/2022,Research Grant Expenditure,Research Grants,Loughborough University,99335876,40995.03,Research Grant Expenditure
BEIS,UKRI - AHRC,16/03/2022,Research Grant Expenditure,Research Grants,University of Nottingham,99335877,61613.89,Research Grant Expenditure
BEIS,UKRI - AHRC,16/03/2022,Research Grant Expenditure,Research Grants,Cardiff University,99335878,26686.45,Research Grant Expenditure
BEIS,UKRI - AHRC,16/03/2022,Research Grant Expenditure,Networks & Workshops,University of Portsmouth,99335879,6067.91,Research Grant Expenditure
BEIS,UKRI - AHRC,16/03/2022,Research Grant Expenditure,Research Grants,University of East Anglia,99335880,38154.56,Research Grant Expenditure
BEIS,UKRI - AHRC,16/03/2022,Research Grant Expenditure,Research Grants,The University of Manchester,99335881,27555.12,Research Grant Expenditure
BEIS,UKRI - AHRC,16/03/2022,Research Grant Expenditure,Follow-on Fund,Victoria and Albert Museum,99335882,18395.93,Research Grant Expenditure
BEIS,UKRI - AHRC,16/03/2022,Research Grant Expenditure,Research Grants,Loughborough University,99335883,18929.67,Research Grant Expenditure
BEIS,UKRI - AHRC,16/03/2022,Research Grant Expenditure,Research Grants,University of Hull,99335884,55079.27,Research Grant Expenditure
BEIS,UKRI - AHRC,16/03/2022,Research Grant Expenditure,Networks & Workshops,University of Leeds,99335885,4663.85,Research Grant Expenditure
BEIS,UKRI - AHRC,16/03/2022,Research Grant Expenditure,Networks & Workshops,University of Leeds,99335886,6073.46,Research Grant Expenditure
BEIS,UKRI - AHRC,16/03/2022,Research Grant Expenditure,Networks & Workshops,University of Hull,99335887,4514.72,Research Grant Expenditure
BEIS,UKRI - AHRC,16/03/2022,Research Grant Expenditure,Networks & Workshops,Leeds Beckett University,99335888,3039.90,Research Grant Expenditure
BEIS,UKRI - AHRC,16/03/2022,Research Grant Expenditure,Research Grants,University of York,99335889,29714.97,Research Grant Expenditure
BEIS,UKRI - AHRC,16/03/2022,Research Grant Expenditure,Research Grants,University of York,99335889,29955.64,Research Grant Expenditure
BEIS,UKRI - AHRC,16/03/2022,Research Grant Expenditure,Research Grants,University of York,99335889,29714.97,Research Grant Expenditure
BEIS,UKRI - AHRC,16/03/2022,Research Grant Expenditure,Research Grants,University of York,99335889,20852.14,Research Grant Expenditure
BEIS,UKRI - AHRC,16/03/2022,Research Grant Expenditure,Research Grants,University of York,99335889,29714.97,Research Grant Expenditure
BEIS,UKRI - AHRC,16/03/2022,Research Grant Expenditure,Research Grants,University of York,99335889,20852.14,Research Grant Expenditure
BEIS,UKRI - AHRC,16/03/2022,Research Grant Expenditure,Research Grants,University of Southampton GRANT,99335890,38595.86,Research Grant Expenditure
BEIS,UKRI - AHRC,16/03/2022,Research Grant Expenditure,Research Grants,University of Bristol GRANT,99335891,69938.47,Research Grant Expenditure
BEIS,UKRI - AHRC,16/03/2022,Research Grant Expenditure,Research Grants,The University of Manchester,99335892,62764.72,Research Grant Expenditure
BEIS,UKRI - AHRC,16/03/2022,Research Grant Expenditure,Research Grants,Keele University,99335893,33544.26,Research Grant Expenditure
BEIS,UKRI - AHRC,16/03/2022,Research Grant Expenditure,RCUK Global Challenges Research Fund (RCUK GCRF),University of Sheffield,99335894,22871.83,Research Grant Expenditure
BEIS,UKRI - AHRC,16/03/2022,Research Grant Expenditure,RCUK Global Challenges Research Fund (RCUK GCRF),University of Bristol GRANT,99335895,21533.06,Research Grant Expenditure
BEIS,UKRI - AHRC,16/03/2022,Research Grant Expenditure,Research Grants,University of Sussex,99335896,62179.69,Research Grant Expenditure
BEIS,UKRI - AHRC,16/03/2022,Research Grant Expenditure,RCUK Global Challenges Research Fund (RCUK GCRF),The Open University,99335897,20885.67,Research Grant Expenditure
BEIS,UKRI - AHRC,16/03/2022,Research Grant Expenditure,Networks & Workshops,University of Birmingham GRANT,99335898,5233.92,Research Grant Expenditure
BEIS,UKRI - AHRC,16/03/2022,Research Grant Expenditure,RCUK Global Challenges Research Fund (RCUK GCRF),University of Exeter,99335899,25327.38,Research Grant Expenditure
BEIS,UKRI - AHRC,16/03/2022,Research Grant Expenditure,Research Grants,University of Stirling,99335900,68877.94,Research Grant Expenditure
BEIS,UKRI - AHRC,16/03/2022,Research Grant Expenditure,Research Grants,University of Durham,99335901,63129.22,Research Grant Expenditure
BEIS,UKRI - AHRC,16/03/2022,Research Grant Expenditure,Commissioned Research,University of Nottingham,99335902,70783.26,Research Grant Expenditure
BEIS,UKRI - AHRC,16/03/2022,Research Grant Expenditure,Research Grants,University of Sussex,99335903,12462.28,Research Grant Expenditure
BEIS,UKRI - AHRC,16/03/2022,Research Grant Expenditure,Research Grants,University of Kent,99335904,22224.94,Research Grant Expenditure
BEIS,UKRI - AHRC,16/03/2022,Research Grant Expenditure,Research Grants,University of Sheffield,99335905,66177.63,Research Grant Expenditure
BEIS,UKRI - AHRC,16/03/2022,Research Grant Expenditure,Research Grants,University of Stirling,99335906,61476.97,Research Grant Expenditure
BEIS,UKRI - AHRC,16/03/2022,Research Grant Expenditure,Research Grants,University of Leicester,99335907,43407.43,Research Grant Expenditure
BEIS,UKRI - AHRC,16/03/2022,Research Grant Expenditure,Research Grants,University of Leeds,99335908,41947.59,Research Grant Expenditure
BEIS,UKRI - AHRC,16/03/2022,Research Grant Expenditure,Research Grants,The British Museum,99335909,51675.69,Research Grant Expenditure
BEIS,UKRI - AHRC,16/03/2022,Research Grant Expenditure,Research Grants,Manchester Metropolitan University,99335910,63108.29,Research Grant Expenditure
BEIS,UKRI - AHRC,16/03/2022,Research Grant Expenditure,Research Grants,University of Leicester,99335911,67070.27,Research Grant Expenditure
BEIS,UKRI - AHRC,16/03/2022,Research Grant Expenditure,Research Grants,University College London,99335912,20447.06,Research Grant Expenditure
BEIS,UKRI - AHRC,16/03/2022,Research Grant Expenditure,Research Grants,University of Oxford,99335913,56349.38,Research Grant Expenditure
BEIS,UKRI - AHRC,16/03/2022,Research Grant Expenditure,Research Grants,University of York,99335914,55798.71,Research Grant Expenditure
BEIS,UKRI - AHRC,16/03/2022,Research Grant Expenditure,Research Grants,University of Leeds,99335915,49581.46,Research Grant Expenditure
BEIS,UKRI - AHRC,16/03/2022,Research Grant Expenditure,Research Grants,University of Birmingham GRANT,99335916,20969.76,Research Grant Expenditure
BEIS,UKRI - AHRC,16/03/2022,Research Grant Expenditure,Research Grants,Royal College of Music,99335917,63882.55,Research Grant Expenditure
BEIS,UKRI - AHRC,16/03/2022,Research Grant Expenditure,Research Grants,The University of Manchester,99335918,16928.05,Research Grant Expenditure
BEIS,UKRI - AHRC,16/03/2022,Research Grant Expenditure,Cultural Values Project,University of Leeds,99335919,102449.58,Research Grant Expenditure
BEIS,UKRI - AHRC,16/03/2022,Research Grant Expenditure,Living with Machines (SPF),The Alan Turing Institute,99335920,401932.89,Research Grant Expenditure
BEIS,UKRI - AHRC,16/03/2022,Research Grant Expenditure,Research Grants,University of Reading,99335921,65283.92,Research Grant Expenditure
BEIS,UKRI - AHRC,16/03/2022,Research Grant Expenditure,Research Grants,University of Glasgow,99335922,58180.40,Research Grant Expenditure
BEIS,UKRI - AHRC,16/03/2022,Research Grant Expenditure,Research Grants,University of Oxford,99335923,45821.29,Research Grant Expenditure
BEIS,UKRI - AHRC,16/03/2022,Research Grant Expenditure,Research Grants,University of Oxford,99335924,31830.66,Research Grant Expenditure
BEIS,UKRI - AHRC,16/03/2022,Research Grant Expenditure,Research Grants,University of Southampton GRANT,99335925,55582.93,Research Grant Expenditure
BEIS,UKRI - AHRC,16/03/2022,Research Grant Expenditure,Research Grants,The University of Manchester,99335926,61467.64,Research Grant Expenditure
BEIS,UKRI - AHRC,16/03/2022,Research Grant Expenditure,Research Grants,University of Liverpool,99335927,70793.00,Research Grant Expenditure
BEIS,UKRI - AHRC,16/03/2022,Research Grant Expenditure,Research Grants,King's College London,99335928,67614.92,Research Grant Expenditure
BEIS,UKRI - AHRC,16/03/2022,Research Grant Expenditure,Research Grants,University of Cambridge,99335929,53029.47,Research Grant Expenditure
BEIS,UKRI - AHRC,16/03/2022,Research Grant Expenditure,Research Grants,University of Oxford,99335930,55925.10,Research Grant Expenditure
BEIS,UKRI - AHRC,16/03/2022,Research Grant Expenditure,Research Grants,University of Exeter,99335931,31179.43,Research Grant Expenditure
BEIS,UKRI - AHRC,16/03/2022,Research Grant Expenditure,Research Grants,University of York,99335932,64235.32,Research Grant Expenditure
BEIS,UKRI - AHRC,16/03/2022,Research Grant Expenditure,Research Grants,Cardiff University,99335933,46878.81,Research Grant Expenditure
BEIS,UKRI - AHRC,16/03/2022,Research Grant Expenditure,Research Grants,Lancaster University,99335934,51662.00,Research Grant Expenditure
BEIS,UKRI - AHRC,16/03/2022,Research Grant Expenditure,Research Grants,University College London,99335935,30687.83,Research Grant Expenditure
BEIS,UKRI - AHRC,16/03/2022,Research Grant Expenditure,Research Grants,University College London,99335935,30687.80,Research Grant Expenditure
BEIS,UKRI - AHRC,16/03/2022,Research Grant Expenditure,Research Grants,University of Bristol GRANT,99335936,80356.68,Research Grant Expenditure
BEIS,UKRI - AHRC,16/03/2022,Research Grant Expenditure,Research Grants,Guildhall School of Music and Drama,99335937,70557.84,Research Grant Expenditure
BEIS,UKRI - AHRC,16/03/2022,Research Grant Expenditure,Research Grants,Birmingham City University,99335938,14583.82,Research Grant Expenditure
BEIS,UKRI - AHRC,16/03/2022,Research Grant Expenditure,Research Grants,The University of Manchester,99335939,51464.02,Research Grant Expenditure
BEIS,UKRI - AHRC,16/03/2022,Research Grant Expenditure,Research Grants,Lancaster University,99335940,47264.33,Research Grant Expenditure
BEIS,UKRI - AHRC,16/03/2022,Research Grant Expenditure,RCUK Global Challenges Research Fund (RCUK GCRF),London School of Economics and Political Science,99335941,132178.97,Research Grant Expenditure
BEIS,UKRI - AHRC,16/03/2022,Research Grant Expenditure,Industrial Strategy Challenge Fund (ISCF) - Creative Clusters,University of the West of England,99335942,423930.20,Research Grant Expenditure
BEIS,UKRI - AHRC,16/03/2022,Research Grant Expenditure,Industrial Strategy Challenge Fund (ISCF) - Creative Clusters,Abertay University,99335943,394561.84,Research Grant Expenditure
BEIS,UKRI - AHRC,16/03/2022,Research Grant Expenditure,Industrial Strategy Challenge Fund (ISCF) - Creative Clusters,UNIVERSITY OF ULSTER,99335944,422741.19,Research Grant Expenditure
BEIS,UKRI - AHRC,16/03/2022,Research Grant Expenditure,Industrial Strategy Challenge Fund (ISCF) - Creative Clusters,University of York,99335945,416493.41,Research Grant Expenditure
BEIS,UKRI - AHRC,16/03/2022,Research Grant Expenditure,Industrial Strategy Challenge Fund (ISCF) - Creative Clusters,University of Leeds,99335946,415172.63,Research Grant Expenditure
BEIS,UKRI - AHRC,16/03/2022,Research Grant Expenditure,Industrial Strategy Challenge Fund (ISCF) - Creative Clusters,University of the Arts London,99335947,416806.69,Research Grant Expenditure
BEIS,UKRI - AHRC,16/03/2022,Research Grant Expenditure,Industrial Strategy Challenge Fund (ISCF) - Creative Clusters,Cardiff University,99335948,405416.64,Research Grant Expenditure
BEIS,UKRI - AHRC,16/03/2022,Research Grant Expenditure,Industrial Strategy Challenge Fund (ISCF) - Creative Clusters,University of Edinburgh,99335949,421913.11,Research Grant Expenditure
BEIS,UKRI - AHRC,16/03/2022,Research Grant Expenditure,Industrial Strategy Challenge Fund (ISCF) - Creative Clusters,"Royal Holloway, University of London",99335950,422542.80,Research Grant Expenditure
BEIS,UKRI - AHRC,16/03/2022,Research Grant Expenditure,Research Grants,University of Oxford,99335951,42020.88,Research Grant Expenditure
BEIS,UKRI - AHRC,16/03/2022,Research Grant Expenditure,Research Grants,University of Leeds,99335952,58921.26,Research Grant Expenditure
BEIS,UKRI - AHRC,16/03/2022,Research Grant Expenditure,Research Grants,University of Reading,99335953,67123.20,Research Grant Expenditure
BEIS,UKRI - AHRC,16/03/2022,Research Grant Expenditure,Industrial Strategy Challenge Fund (ISCF) - Creative Clusters,NESTA,99335954,314484.55,Research Grant Expenditure
BEIS,UKRI - AHRC,16/03/2022,Research Grant Expenditure,Research Grants,University of Reading,99335955,48293.25,Research Grant Expenditure
BEIS,UKRI - AHRC,16/03/2022,Research Grant Expenditure,Research Grants,University of East Anglia,99335956,35291.62,Research Grant Expenditure
BEIS,UKRI - AHRC,16/03/2022,Research Grant Expenditure,Newton Programme,University of Bedfordshire,99335957,805.99,Research Grant Expenditure
BEIS,UKRI - AHRC,16/03/2022,Research Grant Expenditure,Global Challenges Research Fund (GCRF),University of Liverpool,99335958,53058.01,Research Grant Expenditure
BEIS,UKRI - AHRC,16/03/2022,Research Grant Expenditure,Research Grants,University College London,99335959,34654.19,Research Grant Expenditure
BEIS,UKRI - AHRC,16/03/2022,Research Grant Expenditure,Research Grants,University of Glasgow,99335960,34785.08,Research Grant Expenditure
BEIS,UKRI - AHRC,16/03/2022,Research Grant Expenditure,RCUK Global Challenges Research Fund (RCUK GCRF),University of Huddersfield,99335961,408925.83,Research Grant Expenditure
BEIS,UKRI - AHRC,16/03/2022,Research Grant Expenditure,Science and Heritage Programme,University College London,99335962,48174.17,Research Grant Expenditure
BEIS,UKRI - AHRC,16/03/2022,Research Grant Expenditure,Research Grants,University of Oxford,99335963,26267.45,Research Grant Expenditure
BEIS,UKRI - AHRC,16/03/2022,Research Grant Expenditure,Research Grants,University of Oxford,99335963,26267.45,Research Grant Expenditure
BEIS,UKRI - AHRC,16/03/2022,Research Grant Expenditure,Research Grants,University of Aberdeen,99335964,25640.06,Research Grant Expenditure
BEIS,UKRI - AHRC,16/03/2022,Research Grant Expenditure,Funds for International Collaboration (FIC 20 US),Lancaster University,99335965,19417.83,Research Grant Expenditure
BEIS,UKRI - AHRC,16/03/2022,Research Grant Expenditure,Research Grants,University of Oxford,99335966,72886.95,Research Grant Expenditure
BEIS,UKRI - AHRC,16/03/2022,Research Grant Expenditure,Commissioned Research,The British Museum,99335967,-5621.16,Research Grant Expenditure
BEIS,UKRI - AHRC,16/03/2022,Research Grant Expenditure,Modern Slavery and Human Rights (SPF),Nottingham Trent University,99335968,17285.56,Research Grant Expenditure
BEIS,UKRI - AHRC,16/03/2022,Fellowships,Commissioned Research,Aston University,99335970,25405.01,Fellowships
BEIS,UKRI - AHRC,16/03/2022,Fellowships,Commissioned Research,University of Aberdeen,99335971,25361.91,Fellowships
BEIS,UKRI - AHRC,16/03/2022,Fellowships,Commissioned Research,University of Nottingham,99335972,25397.66,Fellowships
BEIS,UKRI - AHRC,16/03/2022,Fellowships,Public and Stakeholder Engagement,Loughborough University,99335973,120915.56,Fellowships
BEIS,UKRI - AHRC,16/03/2022,Fellowships,Mobilising Cultural and Natural Assets,University College London,99335974,74927.45,Fellowships
BEIS,UKRI - AHRC,16/03/2022,Fellowships,Research Fellowships,University of Liverpool,99335975,29859.79,Fellowships
BEIS,UKRI - AHRC,16/03/2022,Fellowships,Research Fellowships,University of Liverpool,99335976,20521.08,Fellowships
BEIS,UKRI - AHRC,16/03/2022,Fellowships,Research Fellowships,University of Birmingham GRANT,99335977,35688.37,Fellowships
BEIS,UKRI - AHRC,16/03/2022,Fellowships,Research Fellowships,University of the West of England,99335978,25181.33,Fellowships
BEIS,UKRI - AHRC,16/03/2022,Fellowships,Research Fellowships,University of Leicester,99335979,21959.35,Fellowships
BEIS,UKRI - AHRC,16/03/2022,Fellowships,Research Fellowships,University of Leeds,99335980,35284.53,Fellowships
BEIS,UKRI - AHRC,16/03/2022,Fellowships,Research Fellowships,University of Warwick,99335981,21997.45,Fellowships
BEIS,UKRI - AHRC,16/03/2022,Fellowships,Public and Stakeholder Engagement,Royal College of Music,99335982,1260.12,Fellowships
BEIS,UKRI - AHRC,16/03/2022,Fellowships,Public and Stakeholder Engagement,Birmingham City University,99335983,1260.12,Fellowships
BEIS,UKRI - AHRC,16/03/2022,Fellowships,Research Fellowships,University of Brighton,99335984,42572.61,Fellowships
BEIS,UKRI - AHRC,16/03/2022,Fellowships,Research Fellowships,University of St Andrews,99335985,37065.89,Fellowships
BEIS,UKRI - AHRC,16/03/2022,Fellowships,Research Fellowships,University of Exeter,99335986,33602.12,Fellowships
BEIS,UKRI - AHRC,16/03/2022,Fellowships,Research Fellowships,University of Sheffield,99335987,21101.84,Fellowships
BEIS,UKRI - AHRC,16/03/2022,Fellowships,Research Fellowships,University of Warwick,99335988,45657.95,Fellowships
BEIS,UKRI - AHRC,16/03/2022,Fellowships,Research Fellowships,Nottingham Trent University,99335989,31840.55,Fellowships
BEIS,UKRI - AHRC,16/03/2022,Fellowships,Research Fellowships,University of York,99335990,30571.77,Fellowships
BEIS,UKRI - AHRC,16/03/2022,Fellowships,Research Fellowships,University of Lincoln,99335991,27231.80,Fellowships
BEIS,UKRI - AHRC,16/03/2022,Fellowships,Research Fellowships,University of Lincoln,99335991,27231.80,Fellowships
BEIS,UKRI - AHRC,16/03/2022,Fellowships,Commissioned Research,The Open University,99335992,49788.41,Fellowships
BEIS,UKRI - AHRC,16/03/2022,Fellowships,Research Fellowships,Birmingham City University,99335993,21196.90,Fellowships
BEIS,UKRI - AHRC,16/03/2022,Fellowships,Research Fellowships,Newman University,99335994,20837.28,Fellowships
BEIS,UKRI - AHRC,16/03/2022,Fellowships,Research Fellowships,University of East Anglia,99335995,28959.69,Fellowships
BEIS,UKRI - AHRC,16/03/2022,Fellowships,Research Fellowships,University of Southampton GRANT,99335996,41057.82,Fellowships
BEIS,UKRI - AHRC,16/03/2022,Fellowships,Research Fellowships,University of Glasgow,99335997,46626.54,Fellowships
BEIS,UKRI - AHRC,16/03/2022,Fellowships,Research Fellowships,Northumbria University,99335998,22894.77,Fellowships
BEIS,UKRI - AHRC,16/03/2022,Fellowships,Research Fellowships,Northumbria University,99335999,20327.28,Fellowships
BEIS,UKRI - AHRC,16/03/2022,Fellowships,Research Fellowships,Northumbria University,99335999,20327.28,Fellowships
BEIS,UKRI - AHRC,16/03/2022,Fellowships,Research Fellowships,University of Greenwich,99336000,29075.83,Fellowships
BEIS,UKRI - AHRC,16/03/2022,Fellowships,Research Fellowships,University of Southampton GRANT,99336001,25401.96,Fellowships
BEIS,UKRI - AHRC,16/03/2022,Fellowships,Research Fellowships,Middlesex University,99336002,24219.52,Fellowships
BEIS,UKRI - AHRC,16/03/2022,Fellowships,Research Fellowships,Manchester Metropolitan University,99336003,21380.86,Fellowships
BEIS,UKRI - AHRC,16/03/2022,Fellowships,Research Fellowships,University of Sussex,99336004,30741.25,Fellowships
BEIS,UKRI - AHRC,16/03/2022,Fellowships,Research Fellowships,University of Glasgow,99336005,26916.40,Fellowships
BEIS,UKRI - AHRC,16/03/2022,Fellowships,Research Fellowships,University of Bristol GRANT,99336006,28183.33,Fellowships
BEIS,UKRI - AHRC,16/03/2022,Fellowships,Research Fellowships,University of St Andrews,99336007,27363.09,Fellowships
BEIS,UKRI - AHRC,16/03/2022,Fellowships,Research Fellowships,University of Bristol GRANT,99336008,38289.95,Fellowships
BEIS,UKRI - AHRC,16/03/2022,Fellowships,Research Fellowships,University of Bristol GRANT,99336009,27109.89,Fellowships
BEIS,UKRI - AHRC,16/03/2022,Fellowships,Research Fellowships,University of South Wales,99336010,22204.61,Fellowships
BEIS,UKRI - AHRC,16/03/2022,Fellowships,Research Fellowships,University of Sheffield,99336011,21571.40,Fellowships
BEIS,UKRI - AHRC,16/03/2022,Fellowships,Commissioned Research,University of Bristol GRANT,99336012,26840.34,Fellowships
BEIS,UKRI - AHRC,16/03/2022,Fellowships,Commissioned Research,Aston University,99336013,18274.63,Fellowships
BEIS,UKRI - AHRC,16/03/2022,Fellowships,Commissioned Research,University of Leicester,99336014,33646.22,Fellowships
BEIS,UKRI - AHRC,16/03/2022,Fellowships,Research Fellowships,University of Liverpool,99336015,18653.97,Fellowships
BEIS,UKRI - AHRC,16/03/2022,Fellowships,Research Fellowships,Goldsmiths College University of London,99336016,24490.98,Fellowships
BEIS,UKRI - AHRC,16/03/2022,Fellowships,Research Fellowships,University of Durham,99336017,32661.91,Fellowships
BEIS,UKRI - AHRC,16/03/2022,Fellowships,Research Fellowships,University of Durham,99336017,32926.46,Fellowships
BEIS,UKRI - AHRC,16/03/2022,Fellowships,Research Fellowships,University of Warwick,99336018,34186.62,Fellowships
BEIS,UKRI - AHRC,16/03/2022,Fellowships,Research Fellowships,University of the Arts London,99336019,26550.81,Fellowships
BEIS,UKRI - AHRC,16/03/2022,Fellowships,Research Fellowships,University of Leeds,99336020,26285.63,Fellowships
BEIS,UKRI - AHRC,16/03/2022,Fellowships,Research Fellowships,University of Central Lancashire,99336021,11636.85,Fellowships
BEIS,UKRI - AHRC,16/03/2022,Fellowships,Research Fellowships,University of Leeds,99336022,22321.91,Fellowships
BEIS,UKRI - AHRC,16/03/2022,Fellowships,Research Fellowships,Edge Hill University College,99336023,20673.59,Fellowships
BEIS,UKRI - AHRC,16/03/2022,Fellowships,Research Fellowships,University of Cambridge,99336024,35173.72,Fellowships
BEIS,UKRI - AHRC,16/03/2022,Fellowships,Research Fellowships,University of Cambridge,99336024,35173.72,Fellowships
BEIS,UKRI - AHRC,16/03/2022,Fellowships,Research Fellowships,University of Birmingham GRANT,99336025,23297.68,Fellowships
BEIS,UKRI - AHRC,16/03/2022,Fellowships,Research Fellowships,University of Birmingham GRANT,99336026,19994.39,Fellowships
BEIS,UKRI - AHRC,16/03/2022,Fellowships,Research Fellowships,The University of Manchester,99336027,27296.57,Fellowships
BEIS,UKRI - AHRC,16/03/2022,Fellowships,Research Fellowships,University of Brighton,99336028,10983.99,Fellowships
BEIS,UKRI - AHRC,16/03/2022,Fellowships,Research Fellowships,University of Durham,99336029,8498.23,Fellowships
BEIS,UKRI - AHRC,16/03/2022,Fellowships,Research Fellowships,University of Durham,99336029,8498.22,Fellowships
BEIS,UKRI - AHRC,16/03/2022,Fellowships,Research Fellowships,University of Exeter,99336035,-4692.48,Fellowships
BEIS,UKRI - AHRC,16/03/2022,Fellowships,NPIF Research Talent (RCUK Innovation Fellowships),University of Sheffield,99336036,22806.11,Fellowships
BEIS,UKRI - AHRC,16/03/2022,Fellowships,NPIF Research Talent (RCUK Innovation Fellowships),University of the West of England,99336037,19211.70,Fellowships
BEIS,UKRI - AHRC,16/03/2022,Fellowships,Research Fellowships,Goldsmiths College University of London,99336038,28366.62,Fellowships
BEIS,UKRI - AHRC,16/03/2022,Fellowships,Research Fellowships,University of Exeter,99336039,91489.59,Fellowships
BEIS,UKRI - AHRC,16/03/2022,Fellowships,Research Fellowships,Nottingham Trent University,99336040,35352.81,Fellowships
BEIS,UKRI - AHRC,16/03/2022,Fellowships,Research Fellowships,The University of Manchester,99336041,61504.30,Fellowships
BEIS,UKRI - AHRC,16/03/2022,Fellowships,Commissioned Research,University of Newcastle Upon Tyne,99336135,25014.97,Fellowships
BEIS,UKRI - AHRC,16/03/2022,Non-staff travel and subsistance,Infrastructure Fund - CoSTAR,Unspecified,99341303,67.15,Non-staff travel and subsistance
BEIS,UKRI - AHRC,16/03/2022,Fees (Including College Members),Operations,Unspecified,99341304,170.00,Fees (Including College Members)
BEIS,UKRI - AHRC,17/03/2022,Capital Grants & Equipment to HEIs,DEDEFI Capital Grants,NERC - British Antartic Survey,99335665,28599.00,Capital Grants & Equipment to HEIs
BEIS,UKRI - AHRC,17/03/2022,Research Grant Expenditure,DFID Collaborative Humanitarian Protection Research Programme (CHPRP),SIPRI,99335861,70290.78,Research Grant Expenditure
BEIS,UKRI - AHRC,17/03/2022,Research Grant Expenditure,DFID Collaborative Humanitarian Protection Research Programme (CHPRP),Global Public Policy Institute,99335862,73519.91,Research Grant Expenditure
BEIS,UKRI - AHRC,17/03/2022,Research Grant Expenditure,DFID Collaborative Humanitarian Protection Research Programme (CHPRP),American University of Beirut,99335863,60939.30,Research Grant Expenditure
BEIS,UKRI - AHRC,17/03/2022,Research Grant Expenditure,DFID Collaborative Humanitarian Protection Research Programme (CHPRP),Geneva Academy of International Humanitarian Law and Human Rights,99335864,60887.21,Research Grant Expenditure
BEIS,UKRI - AHRC,17/03/2022,Research Grant Expenditure,DFID Collaborative Humanitarian Protection Research Programme (CHPRP),"National University of Ireland, Galway",99335866,76468.14,Research Grant Expenditure
BEIS,UKRI - AHRC,17/03/2022,Staff Training,AI&Design,Plain Words Ltd,99343213,540.00,Staff Training
BEIS,UKRI - AHRC,17/03/2022,Conferences & Seminars,International Partnership and Engagement,Unspecified,99344129,50.00,Conferences & Seminars
BEIS,UKRI - AHRC,18/03/2022,Unspecified,Public Engagement,BRITISH BROADCASTING CORPORATION,99330701,32000.00,Legal & Professional Services
BEIS,UKRI - AHRC,18/03/2022,Research Grant Expenditure,Public Engagement,University of London,99344303,31321.52,Research Grant Expenditure
BEIS,UKRI - AHRC,21/03/2022,Unspecified,Infrastruture Roadmap,Alexander Mann Solutions Ltd,99345086,2772.24,Legal & Professional Services
BEIS,UKRI - AHRC,22/03/2022,Reward & Recognition Team Advances,Balance Sheet,UKRI - Engineering & Physical Sciences Research Council,99344917,879.99,Reward & Recognition Team Advances
BEIS,UKRI - AHRC,22/03/2022,Fees (Including College Members),Operations,Unspecified,99347714,170.00,Fees (Including College Members)
BEIS,UKRI - AHRC,22/03/2022,Fees (Including College Members),Operations,Unspecified,99347715,170.00,Fees (Including College Members)
BEIS,UKRI - AHRC,22/03/2022,Fees (Including College Members),Operations,Unspecified,99347716,170.00,Fees (Including College Members)
BEIS,UKRI - AHRC,22/03/2022,T&S UK - Public Transport,Executive Office,Unspecified,99348005,70.70,T&S UK - Public Transport
BEIS,UKRI - AHRC,23/03/2022,Unspecified,Infrastruture Roadmap,Alexander Mann Solutions Ltd,99331746,2772.24,Legal & Professional Services
BEIS,UKRI - AHRC,23/03/2022,T&S Overseas - Subsistence,"History, Heritage, Languages and Literature",Unspecified,99348621,15.00,T&S Overseas - Subsistence
BEIS,UKRI - AHRC,23/03/2022,T&S Overseas - Subsistence,"History, Heritage, Languages and Literature",Unspecified,99348621,52.12,T&S Overseas - Subsistence
BEIS,UKRI - AHRC,23/03/2022,T&S UK - Subsistence,Operations,Unspecified,99348622,24.31,T&S UK - Subsistence
BEIS,UKRI - AHRC,23/03/2022,T&S UK - Subsistence,Operations,Unspecified,99348622,20.84,T&S UK - Subsistence
BEIS,UKRI - AHRC,23/03/2022,Research Grant Expenditure,Public Engagement,The University of Manchester,99348757,-2514.36,Research Grant Expenditure
BEIS,UKRI - AHRC,23/03/2022,Research Grant Expenditure,Public Engagement,The University of Manchester,99348760,-0.50,Research Grant Expenditure
BEIS,UKRI - AHRC,24/03/2022,Unspecified,SMT,University of St Andrews,99346975,19224.23,Secondments
BEIS,UKRI - AHRC,24/03/2022,Staff Training,Operations,Remarkable Women Ltd,99348502,600.00,Staff Training
BEIS,UKRI - AHRC,25/03/2022,Unspecified,Industrial Strategy Challenge Fund (ISCF) - Creative Clusters,FRONTIER ECONOMICS LTD,99320352,30000.00,Legal & Professional Services
BEIS,UKRI - AHRC,25/03/2022,Research Grant Expenditure,Public Engagement,Think Impact Ltd,99334529,3000.00,Research Grant Expenditure
BEIS,UKRI - AHRC,25/03/2022,Research Grant Expenditure,Public Engagement,University of London,99343527,3000.00,Research Grant Expenditure
BEIS,UKRI - AHRC,25/03/2022,Other Programme Costs,Public Engagement,Film Access Scotland,99345733,5575.00,Other Programme Costs
BEIS,UKRI - AHRC,28/03/2022,Non-staff travel and subsistance,Infrastruture Roadmap,Unspecified,99352770,139.40,Non-staff travel and subsistance
BEIS,UKRI - AHRC,29/03/2022,Research Grant Expenditure,Global Uncertainties Programme,UKRI - Economic & Social Research Council,99109306,-10329.18,Research Grant Expenditure
BEIS,UKRI - AHRC,29/03/2022,Research Grant Expenditure,SUSI (Sustainable Urban Systems and Infrastructure),UKRI - Engineering & Physical Sciences Research Council,99348342,50000.00,Research Grant Expenditure
BEIS,UKRI - AHRC,29/03/2022,Fellowships,Public Policy,UKRI - Economic & Social Research Council,99350781,8572.76,Fellowships
BEIS,UKRI - AHRC,29/03/2022,Research Grant Expenditure,Commissioned Research,UKRI - Economic & Social Research Council,99351845,22548.12,Research Grant Expenditure
BEIS,UKRI - AHRC,29/03/2022,Research Grant Expenditure,Commissioned Research,UKRI - Economic & Social Research Council,99351845,5967.22,Research Grant Expenditure
BEIS,UKRI - AHRC,29/03/2022,Research Grant Expenditure,Commissioned Research,UKRI - Economic & Social Research Council,99351845,7056.39,Research Grant Expenditure
BEIS,UKRI - AHRC,29/03/2022,Research Grant Expenditure,Commissioned Research,UKRI - Economic & Social Research Council,99351845,6892.33,Research Grant Expenditure
BEIS,UKRI - AHRC,29/03/2022,Research Grant Expenditure,Commissioned Research,UKRI - Economic & Social Research Council,99351845,7575.07,Research Grant Expenditure
BEIS,UKRI - AHRC,29/03/2022,Research Grant Expenditure,Commissioned Research,UKRI - Economic & Social Research Council,99351845,6907.05,Research Grant Expenditure
BEIS,UKRI - AHRC,29/03/2022,Research Grant Expenditure,Commissioned Research,UKRI - Economic & Social Research Council,99351845,10792.77,Research Grant Expenditure
BEIS,UKRI - AHRC,29/03/2022,Research Grant Expenditure,Commissioned Research,UKRI - Economic & Social Research Council,99351845,7230.09,Research Grant Expenditure
BEIS,UKRI - AHRC,29/03/2022,Research Grant Expenditure,Commissioned Research,UKRI - Economic & Social Research Council,99351845,11751.14,Research Grant Expenditure
BEIS,UKRI - AHRC,29/03/2022,Research Grant Expenditure,Urban Living,UKRI - Economic & Social Research Council,99351847,794.16,Research Grant Expenditure
BEIS,UKRI - AHRC,29/03/2022,Research Grant Expenditure,Urban Living,UKRI - Economic & Social Research Council,99351847,1334.75,Research Grant Expenditure
BEIS,UKRI - AHRC,29/03/2022,Research Grant Expenditure,Urban Living,UKRI - Economic & Social Research Council,99351847,3079.28,Research Grant Expenditure
BEIS,UKRI - AHRC,29/03/2022,Research Grant Expenditure,Urban Living,UKRI - Economic & Social Research Council,99351847,1814.11,Research Grant Expenditure
BEIS,UKRI - AHRC,29/03/2022,Research Grant Expenditure,Urban Living,UKRI - Economic & Social Research Council,99351847,6707.06,Research Grant Expenditure
BEIS,UKRI - AHRC,29/03/2022,Research Grant Expenditure,Urban Living,UKRI - Economic & Social Research Council,99351847,1657.81,Research Grant Expenditure
BEIS,UKRI - AHRC,29/03/2022,Fees (Including College Members),Infrastructure Fund - CoSTAR,Unspecified,99357787,170.00,Fees (Including College Members)
BEIS,UKRI - AHRC,29/03/2022,Unspecified,Infrastruture Roadmap,Alexander Mann Solutions Ltd,99358947,2772.24,Legal & Professional Services
BEIS,UKRI - AHRC,29/03/2022,GPC Clearing - AHRC,Balance Sheet,Unspecified,99362757,-218.83,GPC Clearing - AHRC
BEIS,UKRI - AHRC,29/03/2022,T&S UK - Public Transport,Operations,Unspecified,99362757,9.00,T&S UK - Public Transport
BEIS,UKRI - AHRC,29/03/2022,T&S UK - Public Transport,Operations,Unspecified,99362757,3.50,T&S UK - Public Transport
BEIS,UKRI - AHRC,29/03/2022,T&S UK - Subsistence,Operations,Unspecified,99362757,200.58,T&S UK - Subsistence
BEIS,UKRI - AHRC,29/03/2022,T&S UK - Subsistence,Operations,Unspecified,99362757,5.75,T&S UK - Subsistence
BEIS,UKRI - AHRC,29/03/2022,T&S UK - Subsistence,Operations,Unspecified,99362757,10.00,T&S UK - Subsistence
BEIS,UKRI - AHRC,31/03/2022,Unspecified,SMT,University of St Andrews,99359886,38457.72,Secondments
BEIS,UKRI - AHRC,31/03/2022,Fees (Including College Members),Operations,Unspecified,99372069,170.00,Fees (Including College Members)
BEIS,UKRI - AHRC,31/03/2022,Fees (Including College Members),Impact Accelerator Accounts (IAA's),Unspecified,99372070,340.00,Fees (Including College Members)
BEIS,UKRI - AHRC,31/03/2022,Fees (Including College Members),Operations,Unspecified,99372071,340.00,Fees (Including College Members)
BEIS,UKRI - AHRC,31/03/2022,Fees (Including College Members),Impact Accelerator Accounts (IAA's),Unspecified,99372072,340.00,Fees (Including College Members)
BEIS,UKRI - AHRC,31/03/2022,Fees (Including College Members),Impact Accelerator Accounts (IAA's),Unspecified,99372073,340.00,Fees (Including College Members)
BEIS,UKRI - AHRC,31/03/2022,Fees (Including College Members),Impact Accelerator Accounts (IAA's),Unspecified,99372074,340.00,Fees (Including College Members)
BEIS,UKRI - AHRC,31/03/2022,Fees (Including College Members),Impact Accelerator Accounts (IAA's),Unspecified,99372075,340.00,Fees (Including College Members)
BEIS,UKRI - AHRC,31/03/2022,Fees (Including College Members),Impact Accelerator Accounts (IAA's),Unspecified,99372076,340.00,Fees (Including College Members)
BEIS,UKRI - AHRC,31/03/2022,Fees (Including College Members),Impact Accelerator Accounts (IAA's),Unspecified,99372077,340.00,Fees (Including College Members)
BEIS,UKRI - AHRC,31/03/2022,Fees (Including College Members),Impact Accelerator Accounts (IAA's),Unspecified,99372078,340.00,Fees (Including College Members)
BEIS,UKRI - AHRC,31/03/2022,Fees (Including College Members),Impact Accelerator Accounts (IAA's),Unspecified,99372079,340.00,Fees (Including College Members)
BEIS,UKRI - AHRC,31/03/2022,Fees (Including College Members),Impact Accelerator Accounts (IAA's),Unspecified,99372080,340.00,Fees (Including College Members)
BEIS,UKRI - AHRC,31/03/2022,Fees (Including College Members),Impact Accelerator Accounts (IAA's),Unspecified,99372081,340.00,Fees (Including College Members)
BEIS,UKRI - AHRC,31/03/2022,Fees (Including College Members),Impact Accelerator Accounts (IAA's),Unspecified,99372082,340.00,Fees (Including College Members)
BEIS,UKRI - AHRC,31/03/2022,Fees (Including College Members),Impact Accelerator Accounts (IAA's),Unspecified,99372083,340.00,Fees (Including College Members)
BEIS,UKRI - AHRC,31/03/2022,Fees (Including College Members),Operations,Unspecified,99372084,170.00,Fees (Including College Members)
BEIS,UKRI - AHRC,31/03/2022,Fees (Including College Members),Operations,Unspecified,99372085,170.00,Fees (Including College Members)
BEIS,UKRI - AHRC,31/03/2022,Fees (Including College Members),Impact Accelerator Accounts (IAA's),Unspecified,99372086,340.00,Fees (Including College Members)
BEIS,UKRI - BBSRC,01/03/2022,International Awards - Non Capital,GCRF Awards,UK Centre for Ecology and Hydrology,99275225,96568.73,International Awards - Non Capital
BEIS,UKRI - BBSRC,01/03/2022,Staff Training,PDG - Director,Transition15 Ltd,99320029,10794.00,Staff Training
BEIS,UKRI - BBSRC,01/03/2022,Health & Safety (inc. Medicals & Opticians),CIMG - Information Management,Unspecified,99323975,15.00,Health & Safety (inc. Medicals & Opticians)
BEIS,UKRI - BBSRC,02/03/2022,T&S UK - Parking Tolls Congestion Charges,CE - Chief Executive,Unspecified,99324205,8.20,T&S UK - Parking Tolls Congestion Charges
BEIS,UKRI - BBSRC,02/03/2022,T&S UK - Public Transport,CE - Chief Executive,Unspecified,99324205,20.00,T&S UK - Public Transport
BEIS,UKRI - BBSRC,02/03/2022,T&S UK - Mileage,Innovation and Skills Group,Unspecified,99324207,47.25,T&S UK - Mileage
BEIS,UKRI - BBSRC,02/03/2022,T&S UK - Parking Tolls Congestion Charges,Innovation and Skills Group,Unspecified,99324207,3.00,T&S UK - Parking Tolls Congestion Charges
BEIS,UKRI - BBSRC,02/03/2022,T&S UK - Subsistence,Innovation and Skills Group,Unspecified,99324207,13.04,T&S UK - Subsistence
BEIS,UKRI - BBSRC,02/03/2022,Fees (Including College Members),Science Group – Admin Function,Unspecified,99324922,170.00,Fees (Including College Members)
BEIS,UKRI - BBSRC,02/03/2022,Fees (Including College Members),Science Group – Admin Function,Unspecified,99324923,170.00,Fees (Including College Members)
BEIS,UKRI - BBSRC,02/03/2022,Fees (Including College Members),Science Group – Admin Function,Unspecified,99324924,170.00,Fees (Including College Members)
BEIS,UKRI - BBSRC,03/03/2022,University Fees,CE - CPS,University of Bristol,99305875,10000.00,University Fees
BEIS,UKRI - BBSRC,03/03/2022,International Awards - Non Capital,GCRF Awards,University of Edinburgh,99319075,132730.58,International Awards - Non Capital
BEIS,UKRI - BBSRC,03/03/2022,Research Institutes - Competitive Strategic Grant,Rothamsted Research,Rothamsted Research Ltd,99326691,6463.87,Research Institutes - Competitive Strategic Grant
BEIS,UKRI - BBSRC,03/03/2022,Research Institutes - Competitive Strategic Grant,Rothamsted Research,Rothamsted Research Ltd,99326691,27171.64,Research Institutes - Competitive Strategic Grant
BEIS,UKRI - BBSRC,03/03/2022,Research Institutes - Competitive Strategic Grant,Rothamsted Research,Rothamsted Research Ltd,99326691,3757.16,Research Institutes - Competitive Strategic Grant
BEIS,UKRI - BBSRC,03/03/2022,Research Institutes - Competitive Strategic Grant,Rothamsted Research,Rothamsted Research Ltd,99326691,11445.79,Research Institutes - Competitive Strategic Grant
BEIS,UKRI - BBSRC,03/03/2022,Research Institutes - Competitive Strategic Grant,Rothamsted Research,Rothamsted Research Ltd,99326691,411.54,Research Institutes - Competitive Strategic Grant
BEIS,UKRI - BBSRC,04/03/2022,Research Grant Expenditure,Research: Responsive,Wellcome Trust,99321702,64902.62,Research Grant Expenditure
BEIS,UKRI - BBSRC,04/03/2022,EC - Other,European Initiatives,Edinburgh Innovations Ltd,99330655,16500.00,EC - Other
BEIS,UKRI - BBSRC,04/03/2022,T&S UK - Other Charges,Science Group,Unspecified,99330752,14.99,T&S UK - Other Charges
BEIS,UKRI - BBSRC,04/03/2022,T&S UK - Other Charges,CE - IRU,Unspecified,99330753,38.99,T&S UK - Other Charges
BEIS,UKRI - BBSRC,07/03/2022,Research Grant Expenditure,SPF W1 EMBL EBI,EMBL (European Molecular Biology Laboratory),99324048,-199700.00,Research Grant Expenditure
BEIS,UKRI - BBSRC,07/03/2022,Research Institutes - Capital Grants: Minor Works,Estates - Projects,EMBL (European Molecular Biology Laboratory),99325044,199700.00,Research Institutes - Capital Grants: Minor Works
BEIS,UKRI - BBSRC,07/03/2022,Conferences & Seminars,Innovation and Skills Group CDSU,OBN (UK) LTD,99327738,600.00,Conferences & Seminars
BEIS,UKRI - BBSRC,07/03/2022,International Awards - Non Capital,GCRF Awards,John Innes Centre,99327939,100000.00,International Awards - Non Capital
BEIS,UKRI - BBSRC,07/03/2022,Research Grant Expenditure,SPF W1 EMBL EBI,EMBL (European Molecular Biology Laboratory),99332477,34331.08,Research Grant Expenditure
BEIS,UKRI - BBSRC,08/03/2022,Research Grant Expenditure,SPF W1 EMBL EBI,EMBL (European Molecular Biology Laboratory),99332355,71679.05,Research Grant Expenditure
BEIS,UKRI - BBSRC,08/03/2022,Fees (Including College Members),Science Group – Admin Function,Unspecified,99333927,170.00,Fees (Including College Members)
BEIS,UKRI - BBSRC,08/03/2022,Fees (Including College Members),Science Group – Admin Function,Unspecified,99333928,170.00,Fees (Including College Members)
BEIS,UKRI - BBSRC,08/03/2022,Fees (Including College Members),Science Group – Admin Function,Unspecified,99333929,170.00,Fees (Including College Members)
BEIS,UKRI - BBSRC,08/03/2022,Fees (Including College Members),Science Group – Admin Function,Unspecified,99333930,170.00,Fees (Including College Members)
BEIS,UKRI - BBSRC,08/03/2022,Fees (Including College Members),Science Group – Admin Function,Unspecified,99333931,170.00,Fees (Including College Members)
BEIS,UKRI - BBSRC,08/03/2022,Fees (Including College Members),Science Group – Admin Function,Unspecified,99333932,170.00,Fees (Including College Members)
BEIS,UKRI - BBSRC,08/03/2022,Fees (Including College Members),Science Group – Admin Function,Unspecified,99333933,170.00,Fees (Including College Members)
BEIS,UKRI - BBSRC,08/03/2022,Fees (Including College Members),Science Group – Admin Function,Unspecified,99333934,170.00,Fees (Including College Members)
BEIS,UKRI - BBSRC,08/03/2022,Fees (Including College Members),Science Group – Admin Function,Unspecified,99333935,170.00,Fees (Including College Members)
BEIS,UKRI - BBSRC,08/03/2022,Fees (Including College Members),Science Group – Admin Function,Unspecified,99333936,170.00,Fees (Including College Members)
BEIS,UKRI - BBSRC,08/03/2022,Fees (Including College Members),Science Group – Admin Function,Unspecified,99333937,170.00,Fees (Including College Members)
BEIS,UKRI - BBSRC,08/03/2022,Fees (Including College Members),Science Group – Admin Function,Unspecified,99333938,170.00,Fees (Including College Members)
BEIS,UKRI - BBSRC,08/03/2022,Research Institutes - Capital Grants: Minor Works,Rothamsted Research,Rothamsted Research Ltd,99334029,19236.00,Research Institutes - Capital Grants: Minor Works
BEIS,UKRI - BBSRC,08/03/2022,Research Grant Expenditure,SPF W1 EMBL EBI,EMBL (European Molecular Biology Laboratory),99334031,71800.00,Research Grant Expenditure
BEIS,UKRI - BBSRC,08/03/2022,T&S UK - Subsistence,FG - Estates,Unspecified,99334485,21.30,T&S UK - Subsistence
BEIS,UKRI - BBSRC,08/03/2022,T&S UK - Subsistence,FG - Estates,Unspecified,99334485,7.00,T&S UK - Subsistence
BEIS,UKRI - BBSRC,08/03/2022,T&S UK - Subsistence,FG - Estates,Unspecified,99334485,2.31,T&S UK - Subsistence
BEIS,UKRI - BBSRC,08/03/2022,T&S UK - Vehicle Hire,FG - Estates,Unspecified,99334485,83.21,T&S UK - Vehicle Hire
BEIS,UKRI - BBSRC,09/03/2022,Unspecified,Science Group – Admin Function,DEFRA,99320104,94268.80,Secondments
BEIS,UKRI - BBSRC,09/03/2022,T&S Overseas - Accommodation,Science Group – Admin Function,Corporate Travel Management (North) Ltd,99334885,113.61,T&S Overseas - Accommodation
BEIS,UKRI - BBSRC,09/03/2022,T&S UK - Accommodation,CIMG - Director,Corporate Travel Management (North) Ltd,99334885,0.80,T&S UK - Accommodation
BEIS,UKRI - BBSRC,09/03/2022,T&S UK - Accommodation,CIMG - Director,Corporate Travel Management (North) Ltd,99334885,248.40,T&S UK - Accommodation
BEIS,UKRI - BBSRC,09/03/2022,T&S UK - Accommodation,CIMG - Director,Corporate Travel Management (North) Ltd,99334885,0.80,T&S UK - Accommodation
BEIS,UKRI - BBSRC,09/03/2022,T&S UK - Accommodation,CIMG - Director,Corporate Travel Management (North) Ltd,99334885,111.15,T&S UK - Accommodation
BEIS,UKRI - BBSRC,09/03/2022,T&S UK - Accommodation,CIMG - Director,Corporate Travel Management (North) Ltd,99334885,0.32,T&S UK - Accommodation
BEIS,UKRI - BBSRC,09/03/2022,T&S UK - Accommodation,FG - Estates,Corporate Travel Management (North) Ltd,99334885,0.80,T&S UK - Accommodation
BEIS,UKRI - BBSRC,09/03/2022,T&S UK - Accommodation,FG - Estates,Corporate Travel Management (North) Ltd,99334885,115.00,T&S UK - Accommodation
BEIS,UKRI - BBSRC,09/03/2022,T&S UK - Accommodation,FG - Estates,Corporate Travel Management (North) Ltd,99334885,0.16,T&S UK - Accommodation
BEIS,UKRI - BBSRC,09/03/2022,T&S UK - Flights,Innovation and Skills Group,Corporate Travel Management (North) Ltd,99334885,2.50,T&S UK - Flights
BEIS,UKRI - BBSRC,09/03/2022,T&S UK - Flights,Innovation and Skills Group,Corporate Travel Management (North) Ltd,99334885,99.90,T&S UK - Flights
BEIS,UKRI - BBSRC,09/03/2022,T&S UK - Public Transport,CE - Chief Executive,Corporate Travel Management (North) Ltd,99334885,0.25,T&S UK - Public Transport
BEIS,UKRI - BBSRC,09/03/2022,T&S UK - Public Transport,CE - Chief Executive,Corporate Travel Management (North) Ltd,99334885,187.80,T&S UK - Public Transport
BEIS,UKRI - BBSRC,09/03/2022,T&S UK - Public Transport,Innovation and Skills Group,Corporate Travel Management (North) Ltd,99334885,0.25,T&S UK - Public Transport
BEIS,UKRI - BBSRC,09/03/2022,T&S UK - Public Transport,Innovation and Skills Group,Corporate Travel Management (North) Ltd,99334885,29.40,T&S UK - Public Transport
BEIS,UKRI - BBSRC,09/03/2022,T&S UK - Public Transport,Innovation and Skills Group,Corporate Travel Management (North) Ltd,99334885,0.25,T&S UK - Public Transport
BEIS,UKRI - BBSRC,09/03/2022,T&S UK - Public Transport,Innovation and Skills Group,Corporate Travel Management (North) Ltd,99334885,155.75,T&S UK - Public Transport
BEIS,UKRI - BBSRC,09/03/2022,T&S UK - Public Transport,Innovation and Skills Group,Corporate Travel Management (North) Ltd,99334885,0.25,T&S UK - Public Transport
BEIS,UKRI - BBSRC,09/03/2022,T&S UK - Public Transport,Innovation and Skills Group,Corporate Travel Management (North) Ltd,99334885,46.95,T&S UK - Public Transport
BEIS,UKRI - BBSRC,09/03/2022,T&S UK - Public Transport,Innovation and Skills Group,Corporate Travel Management (North) Ltd,99334885,0.25,T&S UK - Public Transport
BEIS,UKRI - BBSRC,09/03/2022,T&S UK - Public Transport,Innovation and Skills Group,Corporate Travel Management (North) Ltd,99334885,167.40,T&S UK - Public Transport
BEIS,UKRI - BBSRC,09/03/2022,T&S UK - Public Transport,Innovation and Skills Group,Corporate Travel Management (North) Ltd,99334885,0.50,T&S UK - Public Transport
BEIS,UKRI - BBSRC,09/03/2022,T&S UK - Public Transport,Innovation and Skills Group,Corporate Travel Management (North) Ltd,99334885,57.20,T&S UK - Public Transport
BEIS,UKRI - BBSRC,09/03/2022,T&S UK - Public Transport,Innovation and Skills Group,Corporate Travel Management (North) Ltd,99334885,161.50,T&S UK - Public Transport
BEIS,UKRI - BBSRC,09/03/2022,T&S UK - Public Transport,Innovation and Skills Group,Corporate Travel Management (North) Ltd,99334885,0.25,T&S UK - Public Transport
BEIS,UKRI - BBSRC,09/03/2022,T&S UK - Public Transport,Innovation and Skills Group,Corporate Travel Management (North) Ltd,99334885,56.20,T&S UK - Public Transport
BEIS,UKRI - BBSRC,09/03/2022,T&S UK - Public Transport,Innovation and Skills Group,Corporate Travel Management (North) Ltd,99334885,0.25,T&S UK - Public Transport
BEIS,UKRI - BBSRC,09/03/2022,T&S UK - Public Transport,Innovation and Skills Group,Corporate Travel Management (North) Ltd,99334885,161.50,T&S UK - Public Transport
BEIS,UKRI - BBSRC,09/03/2022,T&S UK - Public Transport,Innovation and Skills Group,Corporate Travel Management (North) Ltd,99334885,0.25,T&S UK - Public Transport
BEIS,UKRI - BBSRC,09/03/2022,T&S UK - Public Transport,Innovation and Skills Group,Corporate Travel Management (North) Ltd,99334885,122.40,T&S UK - Public Transport
BEIS,UKRI - BBSRC,09/03/2022,T&S UK - Public Transport,Science Group,Corporate Travel Management (North) Ltd,99334885,0.25,T&S UK - Public Transport
BEIS,UKRI - BBSRC,09/03/2022,T&S UK - Public Transport,Science Group,Corporate Travel Management (North) Ltd,99334885,197.00,T&S UK - Public Transport
BEIS,UKRI - BBSRC,09/03/2022,T&S UK - Public Transport,Science Group,Corporate Travel Management (North) Ltd,99334885,0.25,T&S UK - Public Transport
BEIS,UKRI - BBSRC,09/03/2022,T&S UK - Public Transport,Science Group,Corporate Travel Management (North) Ltd,99334885,76.30,T&S UK - Public Transport
BEIS,UKRI - BBSRC,09/03/2022,T&S UK - Public Transport,Science Group,Corporate Travel Management (North) Ltd,99334885,0.25,T&S UK - Public Transport
BEIS,UKRI - BBSRC,09/03/2022,T&S UK - Public Transport,Science Group,Corporate Travel Management (North) Ltd,99334885,153.80,T&S UK - Public Transport
BEIS,UKRI - BBSRC,09/03/2022,T&S UK - Public Transport,Science Group,Corporate Travel Management (North) Ltd,99334885,0.25,T&S UK - Public Transport
BEIS,UKRI - BBSRC,09/03/2022,T&S UK - Public Transport,Science Group,Corporate Travel Management (North) Ltd,99334885,227.40,T&S UK - Public Transport
BEIS,UKRI - BBSRC,09/03/2022,T&S UK - Public Transport,Science Group,Corporate Travel Management (North) Ltd,99334885,0.25,T&S UK - Public Transport
BEIS,UKRI - BBSRC,09/03/2022,T&S UK - Public Transport,Science Group,Corporate Travel Management (North) Ltd,99334885,83.10,T&S UK - Public Transport
BEIS,UKRI - BBSRC,09/03/2022,T&S UK - Public Transport,Science Group,Corporate Travel Management (North) Ltd,99334885,0.25,T&S UK - Public Transport
BEIS,UKRI - BBSRC,09/03/2022,T&S UK - Public Transport,Science Group,Corporate Travel Management (North) Ltd,99334885,151.60,T&S UK - Public Transport
BEIS,UKRI - BBSRC,09/03/2022,T&S UK - Public Transport,Science Group,Corporate Travel Management (North) Ltd,99334885,0.25,T&S UK - Public Transport
BEIS,UKRI - BBSRC,09/03/2022,T&S UK - Public Transport,Science Group,Corporate Travel Management (North) Ltd,99334885,203.00,T&S UK - Public Transport
BEIS,UKRI - BBSRC,09/03/2022,T&S UK - Public Transport,Science Group,Corporate Travel Management (North) Ltd,99334885,10.00,T&S UK - Public Transport
BEIS,UKRI - BBSRC,09/03/2022,T&S UK - Public Transport,Science Group,Corporate Travel Management (North) Ltd,99334885,-148.30,T&S UK - Public Transport
BEIS,UKRI - BBSRC,09/03/2022,Research Grant Expenditure,Research: Strategic,Euro-Bioimaging Eric,99334931,196712.67,Research Grant Expenditure
BEIS,UKRI - BBSRC,09/03/2022,Research Grant Expenditure,Impact & Knowledge Exchange,Royal Microscopical Society,99334949,177672.57,Research Grant Expenditure
BEIS,UKRI - BBSRC,09/03/2022,Research Grant Expenditure,Impact & Knowledge Exchange,Royal Microscopical Society,99334950,46768.86,Research Grant Expenditure
BEIS,UKRI - BBSRC,10/03/2022,Research Institutes - Capital Grants: Minor Works,Rothamsted Research,Rothamsted Research Ltd,99324891,139897.19,Research Institutes - Capital Grants: Minor Works
BEIS,UKRI - BBSRC,10/03/2022,Research Institutes - Capital Grants: Minor Works,Rothamsted Research,Rothamsted Research Ltd,99324893,76394.00,Research Institutes - Capital Grants: Minor Works
BEIS,UKRI - BBSRC,10/03/2022,Research Institutes - Capital Grants: Minor Works,Rothamsted Research,Rothamsted Research Ltd,99324897,52415.10,Research Institutes - Capital Grants: Minor Works
BEIS,UKRI - BBSRC,10/03/2022,Research Institutes - Capital Grants: Minor Works,Rothamsted Research,Rothamsted Research Ltd,99324898,30359.40,Research Institutes - Capital Grants: Minor Works
BEIS,UKRI - BBSRC,10/03/2022,Research Institutes - Capital Grants: Minor Works,Rothamsted Research,Rothamsted Research Ltd,99327930,15300.00,Research Institutes - Capital Grants: Minor Works
BEIS,UKRI - BBSRC,10/03/2022,Research Institutes - Capital Grants: Minor Works,Rothamsted Research,Rothamsted Research Ltd,99334027,3434.88,Research Institutes - Capital Grants: Minor Works
BEIS,UKRI - BBSRC,10/03/2022,Research Institutes - Capital Grants: Minor Works,Rothamsted Research,Rothamsted Research Ltd,99334028,6456.66,Research Institutes - Capital Grants: Minor Works
BEIS,UKRI - BBSRC,10/03/2022,Research Institutes - Capital Grants: Minor Works,Rothamsted Research,Rothamsted Research Ltd,99334030,6030.08,Research Institutes - Capital Grants: Minor Works
BEIS,UKRI - BBSRC,10/03/2022,Research Institutes - Capital Grants: Minor Works,Rothamsted Research,Rothamsted Research Ltd,99334426,-16800.00,Research Institutes - Capital Grants: Minor Works
BEIS,UKRI - BBSRC,10/03/2022,Research Institutes - Capital Grants: Minor Works,JIC,John Innes Centre,99334915,42405.79,Research Institutes - Capital Grants: Minor Works
BEIS,UKRI - BBSRC,10/03/2022,T&S UK - Other Charges,CE - CPS,Unspecified,99338554,76.99,T&S UK - Other Charges
BEIS,UKRI - BBSRC,11/03/2022,Fees (Including College Members),Science Group – Admin Function,Unspecified,99339872,340.00,Fees (Including College Members)
BEIS,UKRI - BBSRC,11/03/2022,Fees (Including College Members),Science Group – Admin Function,Unspecified,99339873,340.00,Fees (Including College Members)
BEIS,UKRI - BBSRC,11/03/2022,Fees (Including College Members),Science Group – Admin Function,Unspecified,99339874,340.00,Fees (Including College Members)
BEIS,UKRI - BBSRC,11/03/2022,Fees (Including College Members),Science Group – Admin Function,Unspecified,99339875,340.00,Fees (Including College Members)
BEIS,UKRI - BBSRC,11/03/2022,Fees (Including College Members),Science Group – Admin Function,Unspecified,99339876,340.00,Fees (Including College Members)
BEIS,UKRI - BBSRC,11/03/2022,Fees (Including College Members),Science Group – Admin Function,Unspecified,99339877,340.00,Fees (Including College Members)
BEIS,UKRI - BBSRC,11/03/2022,Fees (Including College Members),Science Group – Admin Function,Unspecified,99339878,460.00,Fees (Including College Members)
BEIS,UKRI - BBSRC,11/03/2022,Fees (Including College Members),Science Group – Admin Function,Unspecified,99339879,340.00,Fees (Including College Members)
BEIS,UKRI - BBSRC,11/03/2022,Fees (Including College Members),Science Group – Admin Function,Unspecified,99339880,340.00,Fees (Including College Members)
BEIS,UKRI - BBSRC,11/03/2022,Fees (Including College Members),Science Group – Admin Function,Unspecified,99339881,340.00,Fees (Including College Members)
BEIS,UKRI - BBSRC,11/03/2022,Fees (Including College Members),Science Group – Admin Function,Unspecified,99339882,340.00,Fees (Including College Members)
BEIS,UKRI - BBSRC,11/03/2022,Research Institutes - Capital Grants: Minor Works,Pirbright,The Pirbright Institute,99340014,9196.72,Research Institutes - Capital Grants: Minor Works
BEIS,UKRI - BBSRC,11/03/2022,Other Programme Costs,SPF W2 Food Systems,Emerald Network Ltd,99340065,12000.00,Other Programme Costs
BEIS,UKRI - BBSRC,14/03/2022,Unspecified,Balance Sheet,HM Revenue & Customs,99327713,78696.88,PAYE Payable Salaries
BEIS,UKRI - BBSRC,14/03/2022,Unspecified,Balance Sheet,HM Revenue & Customs,99327714,7054.00,Student Loans
BEIS,UKRI - BBSRC,14/03/2022,Unspecified,Balance Sheet,HM Revenue & Customs,99327715,107806.20,NI Payable Salaries
BEIS,UKRI - BBSRC,14/03/2022,Unspecified,FG - Accounts & Business Planning,HM Revenue & Customs,99327716,2787.00,Apprenticeship Levy
BEIS,UKRI - BBSRC,14/03/2022,Unspecified,Balance Sheet,HM Revenue & Customs,99328169,2315.56,PAYE Payable Salaries
BEIS,UKRI - BBSRC,14/03/2022,Unspecified,FG - Accounts & Business Planning,HM Revenue & Customs,99328173,34.00,Apprenticeship Levy
BEIS,UKRI - BBSRC,14/03/2022,Research Institutes - Capital Grants: Minor Works,Pirbright,The Pirbright Institute,99340015,128950.96,Research Institutes - Capital Grants: Minor Works
BEIS,UKRI - BBSRC,14/03/2022,Research Institutes - Capital Grants: Minor Works,Pirbright,The Pirbright Institute,99340017,75656.00,Research Institutes - Capital Grants: Minor Works
BEIS,UKRI - BBSRC,14/03/2022,Research Institutes - Capital Grants: Minor Works,Pirbright,The Pirbright Institute,99340019,67528.80,Research Institutes - Capital Grants: Minor Works
BEIS,UKRI - BBSRC,14/03/2022,Research Institutes - Capital Grants: Minor Works,Pirbright,The Pirbright Institute,99340020,101985.00,Research Institutes - Capital Grants: Minor Works
BEIS,UKRI - BBSRC,14/03/2022,Fees (Including College Members),Science Group – Admin Function,Unspecified,99340345,170.00,Fees (Including College Members)
BEIS,UKRI - BBSRC,14/03/2022,Fees (Including College Members),Science Group – Admin Function,Unspecified,99340346,170.00,Fees (Including College Members)
BEIS,UKRI - BBSRC,14/03/2022,Fees (Including College Members),Science Group – Admin Function,Unspecified,99340347,170.00,Fees (Including College Members)
BEIS,UKRI - BBSRC,14/03/2022,Fees (Including College Members),Science Group – Admin Function,Unspecified,99340348,170.00,Fees (Including College Members)
BEIS,UKRI - BBSRC,14/03/2022,Fees (Including College Members),Science Group – Admin Function,Unspecified,99340349,170.00,Fees (Including College Members)
BEIS,UKRI - BBSRC,14/03/2022,Fees (Including College Members),Science Group – Admin Function,Unspecified,99340350,170.00,Fees (Including College Members)
BEIS,UKRI - BBSRC,14/03/2022,Fees (Including College Members),Science Group – Admin Function,Unspecified,99340351,170.00,Fees (Including College Members)
BEIS,UKRI - BBSRC,14/03/2022,Fees (Including College Members),Science Group – Admin Function,Unspecified,99340352,170.00,Fees (Including College Members)
BEIS,UKRI - BBSRC,14/03/2022,Fees (Including College Members),Science Group – Admin Function,Unspecified,99340353,170.00,Fees (Including College Members)
BEIS,UKRI - BBSRC,14/03/2022,Fees (Including College Members),Science Group – Admin Function,Unspecified,99340354,170.00,Fees (Including College Members)
BEIS,UKRI - BBSRC,14/03/2022,Fees (Including College Members),Science Group – Admin Function,Unspecified,99340355,170.00,Fees (Including College Members)
BEIS,UKRI - BBSRC,14/03/2022,Fees (Including College Members),Science Group – Admin Function,Unspecified,99340356,170.00,Fees (Including College Members)
BEIS,UKRI - BBSRC,14/03/2022,Unspecified,CE - CPS,Open Policy Ltd T/A Overton,99341499,7200.00,Legal & Professional Services
BEIS,UKRI - BBSRC,15/03/2022,Conferences & Seminars,Science Group,Speakeasy Productions Ltd,99323613,12000.00,Conferences & Seminars
BEIS,UKRI - BBSRC,15/03/2022,Union Deductions,Balance Sheet,PCS Union,99327717,45.21,Union Deductions
BEIS,UKRI - BBSRC,15/03/2022,Voluntary Deductions,Balance Sheet,Swindon Office Sports and Social Club,99327718,46.00,Voluntary Deductions
BEIS,UKRI - BBSRC,15/03/2022,Unspecified,Balance Sheet,Unspecified,99327719,40946.78,Ees Pension Deductions - JSS
BEIS,UKRI - BBSRC,15/03/2022,Unspecified,Balance Sheet,Unspecified,99327720,165265.02,Ers Pension Deductions - JSS
BEIS,UKRI - BBSRC,15/03/2022,Unspecified,Balance Sheet,Scottish Widows Life Assurance,99327721,10.00,Other Pension Deductions
BEIS,UKRI - BBSRC,15/03/2022,Unspecified,Balance Sheet,Cabinet Office RM Shared Services,99327722,10.71,Ers Pension Deductions - JSS
BEIS,UKRI - BBSRC,15/03/2022,Unspecified,Balance Sheet,Cabinet Office RM Shared Services,99327723,13626.12,Ees Pension Deductions - MyCSP
BEIS,UKRI - BBSRC,15/03/2022,Unspecified,Balance Sheet,Cabinet Office RM Shared Services,99327724,67687.23,Ers Pension Deductions - MyCSP
BEIS,UKRI - BBSRC,15/03/2022,Nursery Deductions,Balance Sheet,UKRI - Engineering & Physical Sciences Research Council,99327725,1430.00,Nursery Deductions
BEIS,UKRI - BBSRC,15/03/2022,Unspecified,Balance Sheet,Unspecified,99327726,388.26,Ees Pension Deductions - MRC
BEIS,UKRI - BBSRC,15/03/2022,Unspecified,Balance Sheet,Unspecified,99327727,955.72,Ers Pension Deductions - MRC
BEIS,UKRI - BBSRC,15/03/2022,Fellowships,FG - Accounts & Business Planning,John Innes Centre,99332069,25202.49,Fellowships
BEIS,UKRI - BBSRC,15/03/2022,Fellowships,FG - Accounts & Business Planning,John Innes Centre,99332070,25202.49,Fellowships
BEIS,UKRI - BBSRC,15/03/2022,Fellowships,FG - Accounts & Business Planning,University of Nottingham,99332071,52469.58,Fellowships
BEIS,UKRI - BBSRC,15/03/2022,Fellowships,FG - Accounts & Business Planning,The University of Manchester,99332072,41735.71,Fellowships
BEIS,UKRI - BBSRC,15/03/2022,Fellowships,FG - Accounts & Business Planning,University of Nottingham,99332073,25191.16,Fellowships
BEIS,UKRI - BBSRC,15/03/2022,Fellowships,FG - Accounts & Business Planning,Manchester Metropolitan University,99332074,25129.57,Fellowships
BEIS,UKRI - BBSRC,15/03/2022,Fellowships,FG - Accounts & Business Planning,The University of Manchester,99332075,25167.88,Fellowships
BEIS,UKRI - BBSRC,15/03/2022,Fellowships,FG - Accounts & Business Planning,University of Edinburgh,99332076,25202.51,Fellowships
BEIS,UKRI - BBSRC,15/03/2022,Fellowships,FG - Accounts & Business Planning,University of Sussex,99332077,25197.92,Fellowships
BEIS,UKRI - BBSRC,15/03/2022,Fellowships,FG - Accounts & Business Planning,University of Oxford,99332078,25202.42,Fellowships
BEIS,UKRI - BBSRC,15/03/2022,Fellowships,FG - Accounts & Business Planning,University of Southampton GRANT,99332079,44473.40,Fellowships
BEIS,UKRI - BBSRC,15/03/2022,Fellowships,FG - Accounts & Business Planning,University of Exeter,99332080,55744.31,Fellowships
BEIS,UKRI - BBSRC,15/03/2022,Fellowships,FG - Accounts & Business Planning,University of Sheffield,99332081,25405.63,Fellowships
BEIS,UKRI - BBSRC,15/03/2022,Fellowships,FG - Accounts & Business Planning,Institute of Cancer Research,99332082,25600.40,Fellowships
BEIS,UKRI - BBSRC,15/03/2022,Fellowships,FG - Accounts & Business Planning,Cardiff University,99332083,25611.30,Fellowships
BEIS,UKRI - BBSRC,15/03/2022,Fellowships,FG - Accounts & Business Planning,University of Liverpool,99332084,54670.36,Fellowships
BEIS,UKRI - BBSRC,15/03/2022,Fellowships,FG - Accounts & Business Planning,University of Newcastle Upon Tyne,99332085,25403.13,Fellowships
BEIS,UKRI - BBSRC,15/03/2022,Fellowships,FG - Accounts & Business Planning,University of Cambridge,99332086,54432.40,Fellowships
BEIS,UKRI - BBSRC,15/03/2022,Fellowships,FG - Accounts & Business Planning,University of Strathclyde,99332087,25870.35,Fellowships
BEIS,UKRI - BBSRC,15/03/2022,Fellowships,FG - Accounts & Business Planning,University of Sheffield,99332088,25364.24,Fellowships
BEIS,UKRI - BBSRC,15/03/2022,Fellowships,FG - Accounts & Business Planning,University of Cambridge,99332089,25406.58,Fellowships
BEIS,UKRI - BBSRC,15/03/2022,Fellowships,FG - Accounts & Business Planning,University of Oxford,99332090,25406.63,Fellowships
BEIS,UKRI - BBSRC,15/03/2022,Fellowships,FG - Accounts & Business Planning,University of Nottingham,99332091,25606.02,Fellowships
BEIS,UKRI - BBSRC,15/03/2022,Fellowships,FG - Accounts & Business Planning,University of Edinburgh,99332092,8866.04,Fellowships
BEIS,UKRI - BBSRC,15/03/2022,Fellowships,FG - Accounts & Business Planning,The University of Manchester,99332093,12806.22,Fellowships
BEIS,UKRI - BBSRC,15/03/2022,Fellowships,FG - Accounts & Business Planning,University of Liverpool,99332094,55774.32,Fellowships
BEIS,UKRI - BBSRC,15/03/2022,Fellowships,FG - Accounts & Business Planning,The University of Manchester,99332095,25538.65,Fellowships
BEIS,UKRI - BBSRC,15/03/2022,Fellowships,FG - Accounts & Business Planning,University College London,99332096,44337.75,Fellowships
BEIS,UKRI - BBSRC,15/03/2022,Fellowships,FG - Accounts & Business Planning,University of Edinburgh,99332097,18981.87,Fellowships
BEIS,UKRI - BBSRC,15/03/2022,Fellowships,FG - Accounts & Business Planning,University of St Andrews,99332098,24382.24,Fellowships
BEIS,UKRI - BBSRC,15/03/2022,Fellowships,FG - Accounts & Business Planning,University of Birmingham GRANT,99332099,45692.13,Fellowships
BEIS,UKRI - BBSRC,15/03/2022,Fellowships,FG - Accounts & Business Planning,University of Newcastle Upon Tyne,99332100,50288.52,Fellowships
BEIS,UKRI - BBSRC,15/03/2022,Fellowships,FG - Accounts & Business Planning,University of Oxford,99332101,10071.75,Fellowships
BEIS,UKRI - BBSRC,15/03/2022,Fellowships,FG - Accounts & Business Planning,University of Cambridge,99332102,34083.54,Fellowships
BEIS,UKRI - BBSRC,15/03/2022,Fellowships,FG - Accounts & Business Planning,Imperial College London,99332104,42545.10,Fellowships
BEIS,UKRI - BBSRC,15/03/2022,Fellowships,FG - Accounts & Business Planning,Imperial College London,99332105,44521.35,Fellowships
BEIS,UKRI - BBSRC,15/03/2022,Fellowships,FG - Accounts & Business Planning,University of Cambridge,99332106,29223.15,Fellowships
BEIS,UKRI - BBSRC,15/03/2022,Fellowships,FG - Accounts & Business Planning,University of Birmingham GRANT,99332107,54836.54,Fellowships
BEIS,UKRI - BBSRC,15/03/2022,Fellowships,FG - Accounts & Business Planning,University of Bristol GRANT,99332108,55624.87,Fellowships
BEIS,UKRI - BBSRC,15/03/2022,Fellowships,FG - Accounts & Business Planning,John Innes Centre,99332109,16979.97,Fellowships
BEIS,UKRI - BBSRC,15/03/2022,Fellowships,FG - Accounts & Business Planning,University of Exeter,99332110,19727.30,Fellowships
BEIS,UKRI - BBSRC,15/03/2022,Fellowships,FG - Accounts & Business Planning,The University of Manchester,99332111,15475.57,Fellowships
BEIS,UKRI - BBSRC,15/03/2022,Fellowships,FG - Accounts & Business Planning,University of Oxford,99332112,22388.17,Fellowships
BEIS,UKRI - BBSRC,15/03/2022,Fellowships,FG - Accounts & Business Planning,The University of Manchester,99332113,25370.91,Fellowships
BEIS,UKRI - BBSRC,15/03/2022,Fellowships,FG - Accounts & Business Planning,University of Oxford,99332114,25202.49,Fellowships
BEIS,UKRI - BBSRC,15/03/2022,Fellowships,FG - Accounts & Business Planning,University of Exeter,99332116,37437.06,Fellowships
BEIS,UKRI - BBSRC,15/03/2022,Fellowships,FG - Accounts & Business Planning,Royal Veterinary College,99332117,7888.38,Fellowships
BEIS,UKRI - BBSRC,15/03/2022,Research Grant Expenditure,FG - Accounts & Business Planning,University of Birmingham GRANT,99332276,113203.92,Research Grant Expenditure
BEIS,UKRI - BBSRC,15/03/2022,Research Grant Expenditure,FG - Accounts & Business Planning,Queen's University Belfast GRANT,99332692,7786.10,Research Grant Expenditure
BEIS,UKRI - BBSRC,15/03/2022,Research Grant Expenditure,FG - Accounts & Business Planning,University of Birmingham GRANT,99332693,21411.43,Research Grant Expenditure
BEIS,UKRI - BBSRC,15/03/2022,Research Grant Expenditure,FG - Accounts & Business Planning,Lancaster University,99332694,21986.43,Research Grant Expenditure
BEIS,UKRI - BBSRC,15/03/2022,Research Grant Expenditure,FG - Accounts & Business Planning,University of Liverpool,99332695,21945.58,Research Grant Expenditure
BEIS,UKRI - BBSRC,15/03/2022,Research Grant Expenditure,FG - Accounts & Business Planning,University of Southampton GRANT,99332696,22967.65,Research Grant Expenditure
BEIS,UKRI - BBSRC,15/03/2022,Research Grant Expenditure,FG - Accounts & Business Planning,Queen Mary University of London,99332697,25201.89,Research Grant Expenditure
BEIS,UKRI - BBSRC,15/03/2022,Research Grant Expenditure,FG - Accounts & Business Planning,University of Newcastle Upon Tyne,99332698,25165.92,Research Grant Expenditure
BEIS,UKRI - BBSRC,15/03/2022,Research Grant Expenditure,FG - Accounts & Business Planning,The University of Manchester,99332699,107687.96,Research Grant Expenditure
BEIS,UKRI - BBSRC,15/03/2022,Research Grant Expenditure,FG - Accounts & Business Planning,Liverpool School of Tropical Medicine,99332700,75219.25,Research Grant Expenditure
BEIS,UKRI - BBSRC,15/03/2022,Research Grant Expenditure,FG - Accounts & Business Planning,University College London,99332701,86605.82,Research Grant Expenditure
BEIS,UKRI - BBSRC,15/03/2022,Capital Grants & Equipment to HEIs,FG - Accounts & Business Planning,University of Cambridge,99332702,7500.00,Capital Grants & Equipment to HEIs
BEIS,UKRI - BBSRC,15/03/2022,Research Grant Expenditure,FG - Accounts & Business Planning,University of Cambridge,99332702,159049.36,Research Grant Expenditure
BEIS,UKRI - BBSRC,15/03/2022,Research Grant Expenditure,FG - Accounts & Business Planning,University of Nottingham,99332703,182790.45,Research Grant Expenditure
BEIS,UKRI - BBSRC,15/03/2022,Research Grant Expenditure,FG - Accounts & Business Planning,The University of Manchester,99332704,165456.47,Research Grant Expenditure
BEIS,UKRI - BBSRC,15/03/2022,Research Grant Expenditure,FG - Accounts & Business Planning,University of Durham,99332705,35123.49,Research Grant Expenditure
BEIS,UKRI - BBSRC,15/03/2022,Research Grant Expenditure,FG - Accounts & Business Planning,John Innes Centre,99332706,188924.17,Research Grant Expenditure
BEIS,UKRI - BBSRC,15/03/2022,Research Grant Expenditure,FG - Accounts & Business Planning,Quadram Institute Bioscience,99332707,36302.31,Research Grant Expenditure
BEIS,UKRI - BBSRC,15/03/2022,Research Grant Expenditure,FG - Accounts & Business Planning,University of Bristol GRANT,99332708,116637.18,Research Grant Expenditure
BEIS,UKRI - BBSRC,15/03/2022,Research Grant Expenditure,FG - Accounts & Business Planning,"Royal Holloway, University of London",99332709,149391.81,Research Grant Expenditure
BEIS,UKRI - BBSRC,15/03/2022,Research Grant Expenditure,FG - Accounts & Business Planning,Imperial College London,99332710,101976.67,Research Grant Expenditure
BEIS,UKRI - BBSRC,15/03/2022,Research Grant Expenditure,FG - Accounts & Business Planning,University of Edinburgh,99332711,37391.43,Research Grant Expenditure
BEIS,UKRI - BBSRC,15/03/2022,Research Grant Expenditure,FG - Accounts & Business Planning,Imperial College London,99332712,33603.30,Research Grant Expenditure
BEIS,UKRI - BBSRC,15/03/2022,Research Grant Expenditure,FG - Accounts & Business Planning,University of East Anglia,99332713,32206.62,Research Grant Expenditure
BEIS,UKRI - BBSRC,15/03/2022,Research Grant Expenditure,FG - Accounts & Business Planning,The University of Manchester,99332714,25185.27,Research Grant Expenditure
BEIS,UKRI - BBSRC,15/03/2022,Research Grant Expenditure,FG - Accounts & Business Planning,University of Bristol GRANT,99332715,25167.01,Research Grant Expenditure
BEIS,UKRI - BBSRC,15/03/2022,Research Grant Expenditure,FG - Accounts & Business Planning,Northumbria University,99332716,20077.55,Research Grant Expenditure
BEIS,UKRI - BBSRC,15/03/2022,Research Grant Expenditure,FG - Accounts & Business Planning,University of Nottingham,99332717,24927.87,Research Grant Expenditure
BEIS,UKRI - BBSRC,15/03/2022,Research Grant Expenditure,FG - Accounts & Business Planning,University of Bristol GRANT,99332718,24929.57,Research Grant Expenditure
BEIS,UKRI - BBSRC,15/03/2022,Research Grant Expenditure,FG - Accounts & Business Planning,University of Bristol GRANT,99332719,23421.37,Research Grant Expenditure
BEIS,UKRI - BBSRC,15/03/2022,Research Grant Expenditure,FG - Accounts & Business Planning,Rothamsted Research Ltd,99332720,25005.32,Research Grant Expenditure
BEIS,UKRI - BBSRC,15/03/2022,Research Grant Expenditure,FG - Accounts & Business Planning,University of Cambridge,99332721,44395.10,Research Grant Expenditure
BEIS,UKRI - BBSRC,15/03/2022,Research Grant Expenditure,FG - Accounts & Business Planning,Oxford Brookes University,99332722,25108.79,Research Grant Expenditure
BEIS,UKRI - BBSRC,15/03/2022,Capital Grants & Equipment to HEIs,FG - Accounts & Business Planning,University of Oxford,99332723,4375.00,Capital Grants & Equipment to HEIs
BEIS,UKRI - BBSRC,15/03/2022,Research Grant Expenditure,FG - Accounts & Business Planning,University of Oxford,99332723,16434.09,Research Grant Expenditure
BEIS,UKRI - BBSRC,15/03/2022,Research Grant Expenditure,FG - Accounts & Business Planning,University of Newcastle Upon Tyne,99332724,18784.56,Research Grant Expenditure
BEIS,UKRI - BBSRC,15/03/2022,Research Grant Expenditure,FG - Accounts & Business Planning,University of Liverpool,99332725,58932.95,Research Grant Expenditure
BEIS,UKRI - BBSRC,15/03/2022,Research Grant Expenditure,FG - Accounts & Business Planning,Imperial College London,99332726,40538.23,Research Grant Expenditure
BEIS,UKRI - BBSRC,15/03/2022,Research Grant Expenditure,FG - Accounts & Business Planning,University College London,99332727,35021.79,Research Grant Expenditure
BEIS,UKRI - BBSRC,15/03/2022,Research Grant Expenditure,FG - Accounts & Business Planning,University of Edinburgh,99332728,25355.13,Research Grant Expenditure
BEIS,UKRI - BBSRC,15/03/2022,Research Grant Expenditure,FG - Accounts & Business Planning,University of Nottingham,99332729,48457.91,Research Grant Expenditure
BEIS,UKRI - BBSRC,15/03/2022,Research Grant Expenditure,FG - Accounts & Business Planning,Swansea University,99332730,10696.05,Research Grant Expenditure
BEIS,UKRI - BBSRC,15/03/2022,Research Grant Expenditure,FG - Accounts & Business Planning,University of York,99332731,9477.43,Research Grant Expenditure
BEIS,UKRI - BBSRC,15/03/2022,Research Grant Expenditure,FG - Accounts & Business Planning,Queen's University Belfast GRANT,99332732,40049.82,Research Grant Expenditure
BEIS,UKRI - BBSRC,15/03/2022,Research Grant Expenditure,FG - Accounts & Business Planning,University of Edinburgh,99332734,36091.63,Research Grant Expenditure
BEIS,UKRI - BBSRC,15/03/2022,Research Grant Expenditure,FG - Accounts & Business Planning,University of Oxford,99332735,64857.12,Research Grant Expenditure
BEIS,UKRI - BBSRC,15/03/2022,Research Grant Expenditure,FG - Accounts & Business Planning,Imperial College London,99332736,3704.54,Research Grant Expenditure
BEIS,UKRI - BBSRC,15/03/2022,Research Grant Expenditure,FG - Accounts & Business Planning,University of Bristol GRANT,99332737,65181.13,Research Grant Expenditure
BEIS,UKRI - BBSRC,15/03/2022,Research Grant Expenditure,FG - Accounts & Business Planning,University of Newcastle Upon Tyne,99332738,39397.63,Research Grant Expenditure
BEIS,UKRI - BBSRC,15/03/2022,Research Grant Expenditure,FG - Accounts & Business Planning,University of Liverpool,99332739,29351.42,Research Grant Expenditure
BEIS,UKRI - BBSRC,15/03/2022,Research Grant Expenditure,FG - Accounts & Business Planning,University of Nottingham,99332740,14571.60,Research Grant Expenditure
BEIS,UKRI - BBSRC,15/03/2022,Research Grant Expenditure,FG - Accounts & Business Planning,Cardiff University,99332741,100396.66,Research Grant Expenditure
BEIS,UKRI - BBSRC,15/03/2022,Research Grant Expenditure,FG - Accounts & Business Planning,Cardiff University,99332742,32827.42,Research Grant Expenditure
BEIS,UKRI - BBSRC,15/03/2022,Research Grant Expenditure,FG - Accounts & Business Planning,University of Bristol GRANT,99332743,33304.18,Research Grant Expenditure
BEIS,UKRI - BBSRC,15/03/2022,Research Grant Expenditure,FG - Accounts & Business Planning,University of Nottingham,99332744,83365.38,Research Grant Expenditure
BEIS,UKRI - BBSRC,15/03/2022,Research Grant Expenditure,FG - Accounts & Business Planning,University of Liverpool,99332745,31503.11,Research Grant Expenditure
BEIS,UKRI - BBSRC,15/03/2022,Research Grant Expenditure,FG - Accounts & Business Planning,University of Liverpool,99332745,31503.12,Research Grant Expenditure
BEIS,UKRI - BBSRC,15/03/2022,Research Grant Expenditure,FG - Accounts & Business Planning,University of Cambridge,99332746,132620.42,Research Grant Expenditure
BEIS,UKRI - BBSRC,15/03/2022,Research Grant Expenditure,FG - Accounts & Business Planning,University of Warwick,99332747,65717.89,Research Grant Expenditure
BEIS,UKRI - BBSRC,15/03/2022,Research Grant Expenditure,FG - Accounts & Business Planning,Quadram Institute Bioscience,99332748,41161.16,Research Grant Expenditure
BEIS,UKRI - BBSRC,15/03/2022,Capital Grants & Equipment to HEIs,FG - Accounts & Business Planning,Imperial College London,99332749,11460.20,Capital Grants & Equipment to HEIs
BEIS,UKRI - BBSRC,15/03/2022,Research Grant Expenditure,FG - Accounts & Business Planning,Imperial College London,99332749,44451.48,Research Grant Expenditure
BEIS,UKRI - BBSRC,15/03/2022,Research Grant Expenditure,FG - Accounts & Business Planning,European Bioinformatics Institute,99332750,41238.37,Research Grant Expenditure
BEIS,UKRI - BBSRC,15/03/2022,Research Grant Expenditure,FG - Accounts & Business Planning,King's College London,99332751,39385.19,Research Grant Expenditure
BEIS,UKRI - BBSRC,15/03/2022,Research Grant Expenditure,FG - Accounts & Business Planning,University of Edinburgh,99332752,57599.36,Research Grant Expenditure
BEIS,UKRI - BBSRC,15/03/2022,Research Grant Expenditure,FG - Accounts & Business Planning,University of East Anglia,99332753,31374.47,Research Grant Expenditure
BEIS,UKRI - BBSRC,15/03/2022,Research Grant Expenditure,FG - Accounts & Business Planning,University of Bristol GRANT,99332754,35024.20,Research Grant Expenditure
BEIS,UKRI - BBSRC,15/03/2022,Capital Grants & Equipment to HEIs,FG - Accounts & Business Planning,University of Essex,99332755,10287.75,Capital Grants & Equipment to HEIs
BEIS,UKRI - BBSRC,15/03/2022,Research Grant Expenditure,FG - Accounts & Business Planning,University of Essex,99332755,33477.76,Research Grant Expenditure
BEIS,UKRI - BBSRC,15/03/2022,Research Grant Expenditure,FG - Accounts & Business Planning,University of Surrey,99332756,7329.00,Research Grant Expenditure
BEIS,UKRI - BBSRC,15/03/2022,Research Grant Expenditure,FG - Accounts & Business Planning,University of Edinburgh,99332757,8428.39,Research Grant Expenditure
BEIS,UKRI - BBSRC,15/03/2022,Research Grant Expenditure,FG - Accounts & Business Planning,University of Bristol GRANT,99332758,43387.92,Research Grant Expenditure
BEIS,UKRI - BBSRC,15/03/2022,Research Grant Expenditure,FG - Accounts & Business Planning,Babraham Institute,99332759,36802.26,Research Grant Expenditure
BEIS,UKRI - BBSRC,15/03/2022,Research Grant Expenditure,FG - Accounts & Business Planning,University of Oxford,99332760,38528.44,Research Grant Expenditure
BEIS,UKRI - BBSRC,15/03/2022,Research Grant Expenditure,FG - Accounts & Business Planning,University of Cambridge,99332761,56158.23,Research Grant Expenditure
BEIS,UKRI - BBSRC,15/03/2022,Research Grant Expenditure,FG - Accounts & Business Planning,University of Bristol GRANT,99332762,67005.56,Research Grant Expenditure
BEIS,UKRI - BBSRC,15/03/2022,Research Grant Expenditure,FG - Accounts & Business Planning,John Innes Centre,99332763,37429.28,Research Grant Expenditure
BEIS,UKRI - BBSRC,15/03/2022,Research Grant Expenditure,FG - Accounts & Business Planning,Imperial College London,99332764,52915.25,Research Grant Expenditure
BEIS,UKRI - BBSRC,15/03/2022,Research Grant Expenditure,FG - Accounts & Business Planning,The University of Manchester,99332765,48235.20,Research Grant Expenditure
BEIS,UKRI - BBSRC,15/03/2022,Research Grant Expenditure,FG - Accounts & Business Planning,University of York,99332766,35381.41,Research Grant Expenditure
BEIS,UKRI - BBSRC,15/03/2022,Research Grant Expenditure,FG - Accounts & Business Planning,University of Cambridge,99332767,45787.00,Research Grant Expenditure
BEIS,UKRI - BBSRC,15/03/2022,Research Grant Expenditure,FG - Accounts & Business Planning,University of Leeds,99332768,41284.22,Research Grant Expenditure
BEIS,UKRI - BBSRC,15/03/2022,Research Grant Expenditure,FG - Accounts & Business Planning,University of Cambridge,99332769,35049.41,Research Grant Expenditure
BEIS,UKRI - BBSRC,15/03/2022,Research Grant Expenditure,FG - Accounts & Business Planning,Earlham Institute,99332770,150000.00,Research Grant Expenditure
BEIS,UKRI - BBSRC,15/03/2022,Research Grant Expenditure,FG - Accounts & Business Planning,University of Dundee,99332771,84308.19,Research Grant Expenditure
BEIS,UKRI - BBSRC,15/03/2022,Research Grant Expenditure,FG - Accounts & Business Planning,University of Sussex,99332772,25595.41,Research Grant Expenditure
BEIS,UKRI - BBSRC,15/03/2022,Research Grant Expenditure,FG - Accounts & Business Planning,University of Glasgow,99332773,52074.65,Research Grant Expenditure
BEIS,UKRI - BBSRC,15/03/2022,Research Grant Expenditure,FG - Accounts & Business Planning,Moredun Research Institute,99332774,14727.75,Research Grant Expenditure
BEIS,UKRI - BBSRC,15/03/2022,Research Grant Expenditure,FG - Accounts & Business Planning,University of Aberdeen,99332775,21657.99,Research Grant Expenditure
BEIS,UKRI - BBSRC,15/03/2022,Research Grant Expenditure,FG - Accounts & Business Planning,University of Edinburgh,99332776,33514.92,Research Grant Expenditure
BEIS,UKRI - BBSRC,15/03/2022,Research Grant Expenditure,FG - Accounts & Business Planning,University of Edinburgh,99332777,36131.89,Research Grant Expenditure
BEIS,UKRI - BBSRC,15/03/2022,Research Grant Expenditure,FG - Accounts & Business Planning,University of Greenwich,99332778,37931.15,Research Grant Expenditure
BEIS,UKRI - BBSRC,15/03/2022,Research Grant Expenditure,FG - Accounts & Business Planning,University of Oxford,99332779,10042.41,Research Grant Expenditure
BEIS,UKRI - BBSRC,15/03/2022,Research Grant Expenditure,FG - Accounts & Business Planning,The Pirbright Institute,99332780,40855.57,Research Grant Expenditure
BEIS,UKRI - BBSRC,15/03/2022,Research Grant Expenditure,FG - Accounts & Business Planning,University of Southampton GRANT,99332781,25593.28,Research Grant Expenditure
BEIS,UKRI - BBSRC,15/03/2022,Research Grant Expenditure,FG - Accounts & Business Planning,University of Liverpool,99332782,22104.78,Research Grant Expenditure
BEIS,UKRI - BBSRC,15/03/2022,Capital Grants & Equipment to HEIs,FG - Accounts & Business Planning,University of Dundee,99332783,101587.25,Capital Grants & Equipment to HEIs
BEIS,UKRI - BBSRC,15/03/2022,Capital Grants & Equipment to HEIs,FG - Accounts & Business Planning,Imperial College London,99332784,131068.65,Capital Grants & Equipment to HEIs
BEIS,UKRI - BBSRC,15/03/2022,Capital Grants & Equipment to HEIs,FG - Accounts & Business Planning,University of Leeds,99332785,57000.50,Capital Grants & Equipment to HEIs
BEIS,UKRI - BBSRC,15/03/2022,Capital Grants & Equipment to HEIs,FG - Accounts & Business Planning,Imperial College London,99332786,104063.25,Capital Grants & Equipment to HEIs
BEIS,UKRI - BBSRC,15/03/2022,Capital Grants & Equipment to HEIs,FG - Accounts & Business Planning,University of Oxford,99332787,165527.50,Capital Grants & Equipment to HEIs
BEIS,UKRI - BBSRC,15/03/2022,Research Grant Expenditure,FG - Accounts & Business Planning,University of Oxford,99332787,0.20,Research Grant Expenditure
BEIS,UKRI - BBSRC,15/03/2022,Capital Grants & Equipment to HEIs,FG - Accounts & Business Planning,King's College London,99332788,51305.75,Capital Grants & Equipment to HEIs
BEIS,UKRI - BBSRC,15/03/2022,Capital Grants & Equipment to HEIs,FG - Accounts & Business Planning,King's College London,99332788,51305.75,Capital Grants & Equipment to HEIs
BEIS,UKRI - BBSRC,15/03/2022,Capital Grants & Equipment to HEIs,FG - Accounts & Business Planning,University of Strathclyde,99332789,109374.50,Capital Grants & Equipment to HEIs
BEIS,UKRI - BBSRC,15/03/2022,Capital Grants & Equipment to HEIs,FG - Accounts & Business Planning,University of Dundee,99332790,186511.00,Capital Grants & Equipment to HEIs
BEIS,UKRI - BBSRC,15/03/2022,Capital Grants & Equipment to HEIs,FG - Accounts & Business Planning,University of Leicester,99332791,172726.80,Capital Grants & Equipment to HEIs
BEIS,UKRI - BBSRC,15/03/2022,Capital Grants & Equipment to HEIs,FG - Accounts & Business Planning,King's College London,99332792,92911.50,Capital Grants & Equipment to HEIs
BEIS,UKRI - BBSRC,15/03/2022,Capital Grants & Equipment to HEIs,FG - Accounts & Business Planning,University of Nottingham,99332793,193420.52,Capital Grants & Equipment to HEIs
BEIS,UKRI - BBSRC,15/03/2022,Capital Grants & Equipment to HEIs,FG - Accounts & Business Planning,University of Sheffield,99332794,67500.00,Capital Grants & Equipment to HEIs
BEIS,UKRI - BBSRC,15/03/2022,Capital Grants & Equipment to HEIs,FG - Accounts & Business Planning,University of Sheffield,99332795,102807.25,Capital Grants & Equipment to HEIs
BEIS,UKRI - BBSRC,15/03/2022,Capital Grants & Equipment to HEIs,FG - Accounts & Business Planning,The University of Manchester,99332796,120373.75,Capital Grants & Equipment to HEIs
BEIS,UKRI - BBSRC,15/03/2022,Capital Grants & Equipment to HEIs,FG - Accounts & Business Planning,SRUC,99332797,56030.39,Capital Grants & Equipment to HEIs
BEIS,UKRI - BBSRC,15/03/2022,Research Grant Expenditure,FG - Accounts & Business Planning,Queen's University Belfast GRANT,99332798,26204.50,Research Grant Expenditure
BEIS,UKRI - BBSRC,15/03/2022,Capital Grants & Equipment to HEIs,FG - Accounts & Business Planning,The University of Manchester,99332799,84840.00,Capital Grants & Equipment to HEIs
BEIS,UKRI - BBSRC,15/03/2022,Capital Grants & Equipment to HEIs,FG - Accounts & Business Planning,University of Bristol GRANT,99332800,172470.34,Capital Grants & Equipment to HEIs
BEIS,UKRI - BBSRC,15/03/2022,Capital Grants & Equipment to HEIs,FG - Accounts & Business Planning,University of Edinburgh,99332801,187258.20,Capital Grants & Equipment to HEIs
BEIS,UKRI - BBSRC,15/03/2022,Capital Grants & Equipment to HEIs,FG - Accounts & Business Planning,University of Leeds,99332802,162752.88,Capital Grants & Equipment to HEIs
BEIS,UKRI - BBSRC,15/03/2022,Capital Grants & Equipment to HEIs,FG - Accounts & Business Planning,University of Cambridge,99332803,174637.34,Capital Grants & Equipment to HEIs
BEIS,UKRI - BBSRC,15/03/2022,Research Grant Expenditure,FG - Accounts & Business Planning,University of Oxford,99332804,17597.90,Research Grant Expenditure
BEIS,UKRI - BBSRC,15/03/2022,Research Grant Expenditure,FG - Accounts & Business Planning,University of Oxford,99332804,17597.95,Research Grant Expenditure
BEIS,UKRI - BBSRC,15/03/2022,Research Grant Expenditure,FG - Accounts & Business Planning,University of Edinburgh,99332805,43346.93,Research Grant Expenditure
BEIS,UKRI - BBSRC,15/03/2022,Research Grant Expenditure,FG - Accounts & Business Planning,University of Leeds,99332806,15636.65,Research Grant Expenditure
BEIS,UKRI - BBSRC,15/03/2022,Research Grant Expenditure,FG - Accounts & Business Planning,The James Hutton Institute,99332807,1890.19,Research Grant Expenditure
BEIS,UKRI - BBSRC,15/03/2022,Research Grant Expenditure,FG - Accounts & Business Planning,University of Edinburgh,99332808,27827.55,Research Grant Expenditure
BEIS,UKRI - BBSRC,15/03/2022,Research Grant Expenditure,FG - Accounts & Business Planning,University of Sheffield,99332809,16662.10,Research Grant Expenditure
BEIS,UKRI - BBSRC,15/03/2022,Research Grant Expenditure,FG - Accounts & Business Planning,University of Nottingham,99332810,41523.70,Research Grant Expenditure
BEIS,UKRI - BBSRC,15/03/2022,Research Grant Expenditure,FG - Accounts & Business Planning,The Rosalind Franklin Institute,99332811,80630.61,Research Grant Expenditure
BEIS,UKRI - BBSRC,15/03/2022,Research Grant Expenditure,FG - Accounts & Business Planning,University of Oxford,99332812,46540.52,Research Grant Expenditure
BEIS,UKRI - BBSRC,15/03/2022,Research Grant Expenditure,FG - Accounts & Business Planning,University of Nottingham,99332813,20636.80,Research Grant Expenditure
BEIS,UKRI - BBSRC,15/03/2022,Research Grant Expenditure,FG - Accounts & Business Planning,University of Reading,99332814,25410.12,Research Grant Expenditure
BEIS,UKRI - BBSRC,15/03/2022,Research Grant Expenditure,FG - Accounts & Business Planning,Queen Mary University of London,99332815,1973.35,Research Grant Expenditure
BEIS,UKRI - BBSRC,15/03/2022,Research Grant Expenditure,FG - Accounts & Business Planning,Quadram Institute Bioscience,99332816,3150.31,Research Grant Expenditure
BEIS,UKRI - BBSRC,15/03/2022,Research Grant Expenditure,FG - Accounts & Business Planning,University of Nottingham,99332817,840.11,Research Grant Expenditure
BEIS,UKRI - BBSRC,15/03/2022,Research Grant Expenditure,FG - Accounts & Business Planning,University of Southampton GRANT,99332818,6300.62,Research Grant Expenditure
BEIS,UKRI - BBSRC,15/03/2022,Research Grant Expenditure,FG - Accounts & Business Planning,King's College London,99332819,6598.85,Research Grant Expenditure
BEIS,UKRI - BBSRC,15/03/2022,Research Grant Expenditure,FG - Accounts & Business Planning,University of Exeter,99332820,3095.81,Research Grant Expenditure
BEIS,UKRI - BBSRC,15/03/2022,Research Grant Expenditure,FG - Accounts & Business Planning,University of Surrey,99332821,3574.55,Research Grant Expenditure
BEIS,UKRI - BBSRC,15/03/2022,Research Grant Expenditure,FG - Accounts & Business Planning,University of Nottingham,99332822,3118.81,Research Grant Expenditure
BEIS,UKRI - BBSRC,15/03/2022,Research Grant Expenditure,FG - Accounts & Business Planning,University of Nottingham,99332823,3150.31,Research Grant Expenditure
BEIS,UKRI - BBSRC,15/03/2022,Research Grant Expenditure,FG - Accounts & Business Planning,Cardiff University,99332824,3150.31,Research Grant Expenditure
BEIS,UKRI - BBSRC,15/03/2022,Research Grant Expenditure,FG - Accounts & Business Planning,Quadram Institute Bioscience,99332825,3053.62,Research Grant Expenditure
BEIS,UKRI - BBSRC,15/03/2022,Research Grant Expenditure,FG - Accounts & Business Planning,University College London,99332826,2031.32,Research Grant Expenditure
BEIS,UKRI - BBSRC,15/03/2022,Research Grant Expenditure,FG - Accounts & Business Planning,University of Birmingham GRANT,99332827,71700.30,Research Grant Expenditure
BEIS,UKRI - BBSRC,15/03/2022,Research Grant Expenditure,FG - Accounts & Business Planning,University of Cambridge,99332828,39452.12,Research Grant Expenditure
BEIS,UKRI - BBSRC,15/03/2022,Research Grant Expenditure,FG - Accounts & Business Planning,Liverpool School of Tropical Medicine,99332829,33617.30,Research Grant Expenditure
BEIS,UKRI - BBSRC,15/03/2022,Capital Grants & Equipment to HEIs,FG - Accounts & Business Planning,The Pirbright Institute,99332830,9770.00,Capital Grants & Equipment to HEIs
BEIS,UKRI - BBSRC,15/03/2022,Research Grant Expenditure,FG - Accounts & Business Planning,The Pirbright Institute,99332830,36835.22,Research Grant Expenditure
BEIS,UKRI - BBSRC,15/03/2022,Research Grant Expenditure,FG - Accounts & Business Planning,University of Newcastle Upon Tyne,99332831,32728.55,Research Grant Expenditure
BEIS,UKRI - BBSRC,15/03/2022,Research Grant Expenditure,FG - Accounts & Business Planning,University of Nottingham,99332832,29287.94,Research Grant Expenditure
BEIS,UKRI - BBSRC,15/03/2022,Research Grant Expenditure,FG - Accounts & Business Planning,University of Nottingham,99332832,29287.97,Research Grant Expenditure
BEIS,UKRI - BBSRC,15/03/2022,Research Grant Expenditure,FG - Accounts & Business Planning,Manchester Metropolitan University,99332833,31729.06,Research Grant Expenditure
BEIS,UKRI - BBSRC,15/03/2022,Research Grant Expenditure,FG - Accounts & Business Planning,Manchester Metropolitan University,99332833,31729.03,Research Grant Expenditure
BEIS,UKRI - BBSRC,15/03/2022,Research Grant Expenditure,FG - Accounts & Business Planning,National Institute For Agricultural Botany (NIAB),99332834,33244.22,Research Grant Expenditure
